BODY,BODY NAME,SUPPLIER CODE,SUPPLIER NAME,TRANSACTION NUMBER,INVOICE DATE,THEIR REF,NARR1,PAID DATE,VAT AMOUNT,EXCLUSIVE AMOUNT,INCLUSIVE AMOUNT,EXPENSE AREA,EXPENSE TYPE,EXPENSE CODE
http://statistics.data.gov.uk/id/local-authority/12UE,Huntingdonshire District Council,200918,1ST CHOICE RECRUITMENT,50233,19/06/2021,4000009410,REDACTED,15/07/2021,113.64,568.18,681.82,Covid-19,Agency Staff,60011
http://statistics.data.gov.uk/id/local-authority/12UE,Huntingdonshire District Council,200918,1ST CHOICE RECRUITMENT,51988,24/07/2021,4000009480,REDACTED,19/08/2021,112.91,564.56,677.47,Covid-19,Agency Staff,60011
http://statistics.data.gov.uk/id/local-authority/12UE,Huntingdonshire District Council,200918,1ST CHOICE RECRUITMENT,51269,17/07/2021,4000009460,REDACTED,10/08/2021,112.19,560.94,673.13,Covid-19,Agency Staff,60011
http://statistics.data.gov.uk/id/local-authority/12UE,Huntingdonshire District Council,200918,1ST CHOICE RECRUITMENT,50973,10/07/2021,4000009444,REDACTED,05/08/2021,110.74,553.7,664.44,Covid-19,Agency Staff,60011
http://statistics.data.gov.uk/id/local-authority/12UE,Huntingdonshire District Council,200918,1ST CHOICE RECRUITMENT,50930,03/07/2021,4000009431,REDACTED,29/07/2021,108.57,542.84,651.41,Covid-19,Agency Staff,60011
http://statistics.data.gov.uk/id/local-authority/12UE,Huntingdonshire District Council,200918,1ST CHOICE RECRUITMENT,50232,19/06/2021,4000009409,REDACTED,15/07/2021,63.8,318.98,382.78,Covid-19,Agency Staff,60011
http://statistics.data.gov.uk/id/local-authority/12UE,Huntingdonshire District Council,200918,1ST CHOICE RECRUITMENT,50282,26/06/2021,4000009419,REDACTED,22/07/2021,63.8,318.98,382.78,Covid-19,Agency Staff,60011
http://statistics.data.gov.uk/id/local-authority/12UE,Huntingdonshire District Council,200918,1ST CHOICE RECRUITMENT,50929,03/07/2021,4000009430,REDACTED,29/07/2021,63.8,318.98,382.78,Covid-19,Agency Staff,60011
http://statistics.data.gov.uk/id/local-authority/12UE,Huntingdonshire District Council,200918,1ST CHOICE RECRUITMENT,50972,10/07/2021,4000009443,REDACTED,05/08/2021,62.35,311.75,374.1,Covid-19,Agency Staff,60011
http://statistics.data.gov.uk/id/local-authority/12UE,Huntingdonshire District Council,200918,1ST CHOICE RECRUITMENT,49839,12/06/2021,4000009400,REDACTED,08/07/2021,103.5,517.5,621,Covid-19,Agency Staff,60011
http://statistics.data.gov.uk/id/local-authority/12UE,Huntingdonshire District Council,200918,1ST CHOICE RECRUITMENT,50281,26/06/2021,4000009420,REDACTED,22/07/2021,89.17,445.84,535.01,Covid-19,Agency Staff,60011
http://statistics.data.gov.uk/id/local-authority/12UE,Huntingdonshire District Council,200918,1ST CHOICE RECRUITMENT,49568,05/06/2021,4000009390,REDACTED,01/07/2021,88.44,442.22,530.66,Covid-19,Agency Staff,60011
http://statistics.data.gov.uk/id/local-authority/12UE,Huntingdonshire District Council,200918,1ST CHOICE RECRUITMENT,49567,05/06/2021,4000009389,REDACTED,01/07/2021,42.6,213,255.6,Covid-19,Agency Staff,60011
http://statistics.data.gov.uk/id/local-authority/12UE,Huntingdonshire District Council,200918,1ST CHOICE RECRUITMENT,53312,28/08/2021,9576,REDACTED,23/09/2021,112.19,560.94,673.13,Operations Business Support,Agency Staff,60011
http://statistics.data.gov.uk/id/local-authority/12UE,Huntingdonshire District Council,200918,1ST CHOICE RECRUITMENT,51990,24/07/2021,4000009479,REDACTED,19/08/2021,88.66,443.32,531.98,Operations Business Support,Agency Staff,60011
http://statistics.data.gov.uk/id/local-authority/12UE,Huntingdonshire District Council,200918,1ST CHOICE RECRUITMENT,53315,31/07/2021,9500,REDACTED,23/09/2021,63.8,318.98,382.78,Operations Business Support,Agency Staff,60011
http://statistics.data.gov.uk/id/local-authority/12UE,Huntingdonshire District Council,200918,1ST CHOICE RECRUITMENT,53313,04/09/2021,9594,REDACTED,30/09/2021,86.28,431.38,517.66,Operations Business Support,Agency Staff,60011
http://statistics.data.gov.uk/id/local-authority/12UE,Huntingdonshire District Council,200918,1ST CHOICE RECRUITMENT,51990,24/07/2021,4000009479,REDACTED,19/08/2021,17.73,88.67,106.4,Trade Refuse,Agency Staff,60011
http://statistics.data.gov.uk/id/local-authority/12UE,Huntingdonshire District Council,200918,1ST CHOICE RECRUITMENT,49838,12/06/2021,4000009399,REDACTED,08/07/2021,106.4,531.98,638.38,Trade Refuse,Agency Staff,60011
http://statistics.data.gov.uk/id/local-authority/12UE,Huntingdonshire District Council,200918,1ST CHOICE RECRUITMENT,50232,19/06/2021,4000009409,REDACTED,15/07/2021,42.6,213,255.6,Trade Refuse,Agency Staff,60011
http://statistics.data.gov.uk/id/local-authority/12UE,Huntingdonshire District Council,200918,1ST CHOICE RECRUITMENT,50282,26/06/2021,4000009419,REDACTED,22/07/2021,42.6,213,255.6,Trade Refuse,Agency Staff,60011
http://statistics.data.gov.uk/id/local-authority/12UE,Huntingdonshire District Council,200918,1ST CHOICE RECRUITMENT,50929,03/07/2021,4000009430,REDACTED,29/07/2021,42.6,213,255.6,Trade Refuse,Agency Staff,60011
http://statistics.data.gov.uk/id/local-authority/12UE,Huntingdonshire District Council,200918,1ST CHOICE RECRUITMENT,53315,31/07/2021,9500,REDACTED,23/09/2021,42.6,213,255.6,Trade Refuse,Agency Staff,60011
http://statistics.data.gov.uk/id/local-authority/12UE,Huntingdonshire District Council,200918,1ST CHOICE RECRUITMENT,50972,10/07/2021,4000009443,REDACTED,05/08/2021,42.6,213,255.6,Trade Refuse,Agency Staff,60011
http://statistics.data.gov.uk/id/local-authority/12UE,Huntingdonshire District Council,200918,1ST CHOICE RECRUITMENT,49567,05/06/2021,4000009389,REDACTED,01/07/2021,20.66,103.31,123.97,Trade Refuse,Agency Staff,60011
http://statistics.data.gov.uk/id/local-authority/12UE,Huntingdonshire District Council,201106,A & C ENERGY SURVEYS LTD,50322,01/07/2021,2768,ENTERPRISE CENTRE CAXTON ROAD,01/07/2021,0,64,64,St Ives Enterprise Centre,Consultancy Fees,62400
http://statistics.data.gov.uk/id/local-authority/12UE,Huntingdonshire District Council,201106,A & C ENERGY SURVEYS LTD,50322,01/07/2021,2768,ENTERPRISE CENTRE CAXTON ROAD,01/07/2021,0,63,63,St Ives Enterprise Centre,Consultancy Fees,62400
http://statistics.data.gov.uk/id/local-authority/12UE,Huntingdonshire District Council,201106,A & C ENERGY SURVEYS LTD,50322,01/07/2021,2768,ENTERPRISE CENTRE CAXTON ROAD,01/07/2021,0,63,63,St Ives Enterprise Centre,Consultancy Fees,62400
http://statistics.data.gov.uk/id/local-authority/12UE,Huntingdonshire District Council,201106,A & C ENERGY SURVEYS LTD,50322,01/07/2021,2768,ENTERPRISE CENTRE CAXTON ROAD,01/07/2021,0,63,63,St Ives Enterprise Centre,Consultancy Fees,62400
http://statistics.data.gov.uk/id/local-authority/12UE,Huntingdonshire District Council,201106,A & C ENERGY SURVEYS LTD,50322,01/07/2021,2768,ENTERPRISE CENTRE CAXTON ROAD,01/07/2021,0,63,63,St Ives Enterprise Centre,Consultancy Fees,62400
http://statistics.data.gov.uk/id/local-authority/12UE,Huntingdonshire District Council,201106,A & C ENERGY SURVEYS LTD,50322,01/07/2021,2768,ENTERPRISE CENTRE CAXTON ROAD,01/07/2021,0,63,63,St Ives Enterprise Centre,Consultancy Fees,62400
http://statistics.data.gov.uk/id/local-authority/12UE,Huntingdonshire District Council,201106,A & C ENERGY SURVEYS LTD,50322,01/07/2021,2768,ENTERPRISE CENTRE CAXTON ROAD,01/07/2021,0,130,130,St Ives Enterprise Centre,Consultancy Fees,62400
http://statistics.data.gov.uk/id/local-authority/12UE,Huntingdonshire District Council,201106,A & C ENERGY SURVEYS LTD,50322,01/07/2021,2768,ENTERPRISE CENTRE CAXTON ROAD,01/07/2021,0,130,130,St Ives Enterprise Centre,Consultancy Fees,62400
http://statistics.data.gov.uk/id/local-authority/12UE,Huntingdonshire District Council,201106,A & C ENERGY SURVEYS LTD,50322,01/07/2021,2768,ENTERPRISE CENTRE CAXTON ROAD,01/07/2021,0,130,130,St Ives Enterprise Centre,Consultancy Fees,62400
http://statistics.data.gov.uk/id/local-authority/12UE,Huntingdonshire District Council,201106,A & C ENERGY SURVEYS LTD,50322,01/07/2021,2768,ENTERPRISE CENTRE CAXTON ROAD,01/07/2021,0,130,130,St Ives Enterprise Centre,Consultancy Fees,62400
http://statistics.data.gov.uk/id/local-authority/12UE,Huntingdonshire District Council,201106,A & C ENERGY SURVEYS LTD,50322,01/07/2021,2768,ENTERPRISE CENTRE CAXTON ROAD,01/07/2021,0,130,130,St Ives Enterprise Centre,Consultancy Fees,62400
http://statistics.data.gov.uk/id/local-authority/12UE,Huntingdonshire District Council,201106,A & C ENERGY SURVEYS LTD,50322,01/07/2021,2768,ENTERPRISE CENTRE CAXTON ROAD,01/07/2021,0,130,130,St Ives Enterprise Centre,Consultancy Fees,62400
http://statistics.data.gov.uk/id/local-authority/12UE,Huntingdonshire District Council,201106,A & C ENERGY SURVEYS LTD,50322,01/07/2021,2768,ENTERPRISE CENTRE CAXTON ROAD,01/07/2021,0,130,130,St Ives Enterprise Centre,Consultancy Fees,62400
http://statistics.data.gov.uk/id/local-authority/12UE,Huntingdonshire District Council,201106,A & C ENERGY SURVEYS LTD,50322,01/07/2021,2768,ENTERPRISE CENTRE CAXTON ROAD,01/07/2021,0,130,130,St Ives Enterprise Centre,Consultancy Fees,62400
http://statistics.data.gov.uk/id/local-authority/12UE,Huntingdonshire District Council,200000,A C COMMERCIALS A C COMMERCIALS,49344,04/06/2021,INV0012155,ORDER 3068,01/07/2021,210,1050,1260,Emergency Planning,Equipment,61713
http://statistics.data.gov.uk/id/local-authority/12UE,Huntingdonshire District Council,200000,A C COMMERCIALS A C COMMERCIALS,51888,03/08/2021,INV0013045,OPS CLAMP ASSY FOR ROTAMASTER,26/08/2021,169.2,846,1015.2,Vehicle Maintenance,Equipment,61713
http://statistics.data.gov.uk/id/local-authority/12UE,Huntingdonshire District Council,200000,A C COMMERCIALS A C COMMERCIALS,51398,20/07/2021,INV0012818,OPS OIL PUMP,12/08/2021,59.19,295.97,355.16,Vehicle Maintenance,Equipment,61713
http://statistics.data.gov.uk/id/local-authority/12UE,Huntingdonshire District Council,200000,A C COMMERCIALS A C COMMERCIALS,53110,23/08/2021,INV00013292,ADBLUE BULK DELV,16/09/2021,93,465,558,Recycling Collections,Vehicle Repairs And Maintenance,60904
http://statistics.data.gov.uk/id/local-authority/12UE,Huntingdonshire District Council,200000,A C COMMERCIALS A C COMMERCIALS,51749,23/07/2021,INV0012898,ops oil,19/08/2021,89,445,534,Recycling Collections,Vehicle Repairs And Maintenance,60904
http://statistics.data.gov.uk/id/local-authority/12UE,Huntingdonshire District Council,200000,A C COMMERCIALS A C COMMERCIALS,51876,03/08/2021,INV0013044,OPS TITAN GEAR OIL,26/08/2021,37.07,185.35,222.42,Recycling Collections,Vehicle Repairs And Maintenance,60904
http://statistics.data.gov.uk/id/local-authority/12UE,Huntingdonshire District Council,200000,A C COMMERCIALS A C COMMERCIALS,53110,23/08/2021,INV00013292,ADBLUE BULK DELV,16/09/2021,55.8,279,334.8,Street Cleansing,Vehicle Repairs And Maintenance,60904
http://statistics.data.gov.uk/id/local-authority/12UE,Huntingdonshire District Council,200000,A C COMMERCIALS A C COMMERCIALS,51749,23/07/2021,INV0012898,ops oil,19/08/2021,89,445,534,Street Cleansing,Vehicle Repairs And Maintenance,60904
http://statistics.data.gov.uk/id/local-authority/12UE,Huntingdonshire District Council,200000,A C COMMERCIALS A C COMMERCIALS,53110,23/08/2021,INV00013292,ADBLUE BULK DELV,16/09/2021,93,465,558,Domestic Waste Collection,Vehicle Repairs And Maintenance,60904
http://statistics.data.gov.uk/id/local-authority/12UE,Huntingdonshire District Council,200000,A C COMMERCIALS A C COMMERCIALS,51749,23/07/2021,INV0012898,ops oil,19/08/2021,89,445,534,Domestic Waste Collection,Vehicle Repairs And Maintenance,60904
http://statistics.data.gov.uk/id/local-authority/12UE,Huntingdonshire District Council,200000,A C COMMERCIALS A C COMMERCIALS,51876,03/08/2021,INV0013044,OPS TITAN GEAR OIL,26/08/2021,37.07,185.36,222.43,Domestic Waste Collection,Vehicle Repairs And Maintenance,60904
http://statistics.data.gov.uk/id/local-authority/12UE,Huntingdonshire District Council,200000,A C COMMERCIALS A C COMMERCIALS,53110,23/08/2021,INV00013292,ADBLUE BULK DELV,16/09/2021,93,465,558,Green Waste Collection,Vehicle Repairs And Maintenance,60904
http://statistics.data.gov.uk/id/local-authority/12UE,Huntingdonshire District Council,200000,A C COMMERCIALS A C COMMERCIALS,51749,23/07/2021,INV0012898,ops oil,19/08/2021,89,445,534,Green Waste Collection,Vehicle Repairs And Maintenance,60904
http://statistics.data.gov.uk/id/local-authority/12UE,Huntingdonshire District Council,200000,A C COMMERCIALS A C COMMERCIALS,51876,03/08/2021,INV0013044,OPS TITAN GEAR OIL,26/08/2021,37.07,185.35,222.42,Green Waste Collection,Vehicle Repairs And Maintenance,60904
http://statistics.data.gov.uk/id/local-authority/12UE,Huntingdonshire District Council,200000,A C COMMERCIALS A C COMMERCIALS,53110,23/08/2021,INV00013292,ADBLUE BULK DELV,16/09/2021,37.2,186,223.2,Grounds Maintenance,Vehicle Repairs And Maintenance,60904
http://statistics.data.gov.uk/id/local-authority/12UE,Huntingdonshire District Council,200000,A C COMMERCIALS A C COMMERCIALS,53254,27/08/2021,INV0013354,OPS HYDRAULIC OIL,23/09/2021,97.92,489.6,587.52,Grounds Maintenance,Vehicle Repairs And Maintenance,60904
http://statistics.data.gov.uk/id/local-authority/12UE,Huntingdonshire District Council,200000,A C COMMERCIALS A C COMMERCIALS,53304,01/09/2021,INV0013427,BREAKPADS,23/09/2021,21.54,107.72,129.26,Domestic Waste Collection,Vehicle Repairs And Maintenance,60904
http://statistics.data.gov.uk/id/local-authority/12UE,Huntingdonshire District Council,200000,A C COMMERCIALS A C COMMERCIALS,53304,01/09/2021,INV0013427,BREAKPADS,23/09/2021,10.77,53.85,64.62,Domestic Waste Collection,Vehicle Repairs And Maintenance,60904
http://statistics.data.gov.uk/id/local-authority/12UE,Huntingdonshire District Council,200000,A C COMMERCIALS A C COMMERCIALS,53304,01/09/2021,INV0013427,BREAKPADS,23/09/2021,21.54,107.71,129.25,Green Waste Collection,Vehicle Repairs And Maintenance,60904
http://statistics.data.gov.uk/id/local-authority/12UE,Huntingdonshire District Council,200000,A C COMMERCIALS A C COMMERCIALS,53304,01/09/2021,INV0013427,BREAKPADS,23/09/2021,10.77,53.85,64.62,Green Waste Collection,Vehicle Repairs And Maintenance,60904
http://statistics.data.gov.uk/id/local-authority/12UE,Huntingdonshire District Council,200000,A C COMMERCIALS A C COMMERCIALS,50247,25/06/2021,INV0012461,ORDER 3148,22/07/2021,60.73,303.64,364.37,Recycling Collections,Vehicle Repairs And Maintenance,60904
http://statistics.data.gov.uk/id/local-authority/12UE,Huntingdonshire District Council,200000,A C COMMERCIALS A C COMMERCIALS,51485,15/07/2021,INV0012671 & INV0012772,OPS INV0012671 & INV0012772,10/08/2021,38.09,190.45,228.54,Bin Deliveries,Vehicle Repairs And Maintenance,60904
http://statistics.data.gov.uk/id/local-authority/12UE,Huntingdonshire District Council,200000,A C COMMERCIALS A C COMMERCIALS,51485,15/07/2021,INV0012671 & INV0012772,OPS INV0012671 & INV0012772,10/08/2021,43.52,217.6,261.12,Bin Deliveries,Vehicle Repairs And Maintenance,60904
http://statistics.data.gov.uk/id/local-authority/12UE,Huntingdonshire District Council,202636,A2B Euro Cars Ltd,50599,06/07/2021,PRF 060721,partial refund can 00840,29/07/2021,61.67,308.33,370,Ph Operators,Licence And Permit Income,53900
http://statistics.data.gov.uk/id/local-authority/12UE,Huntingdonshire District Council,201618,ABBEY ROOFING,52321,04/08/2021,11423,CAFE ROOF REPAIR HBP,19/08/2021,52,260,312,Hinchingbrooke Park Management,Maintenance - Building,60201
http://statistics.data.gov.uk/id/local-authority/12UE,Huntingdonshire District Council,200038,ABBOTT TOXICOLOGY LTD ALERE TOXICOLOGY PLC,51253,19/07/2021,778018,CALL ON SERVICE,12/08/2021,70,350,420,HR Services,Laboratory Services,62406
http://statistics.data.gov.uk/id/local-authority/12UE,Huntingdonshire District Council,200017,ACCESS & AUTOMATION LTD ACCESS & AUTOMATION LTD,52766,25/08/2021,6686,200746,16/09/2021,0,850,850,Disables Facilities Grants,Mandatory Grants,64601
http://statistics.data.gov.uk/id/local-authority/12UE,Huntingdonshire District Council,200032,ACOEM UK LTD AIR MONITORS LTD,53125,11/08/2021,11924,community nitric oxide,16/09/2021,117,585,702,Air Quality,Equipment,61713
http://statistics.data.gov.uk/id/local-authority/12UE,Huntingdonshire District Council,200021,ACTIVE IN TIME LTD ACTIVE IN TIME LTD,49880,18/06/2021,2000407,LICENCES,15/07/2021,62.4,312,374.4,One Leisure Support Team,Licences,60410
http://statistics.data.gov.uk/id/local-authority/12UE,Huntingdonshire District Council,200021,ACTIVE IN TIME LTD ACTIVE IN TIME LTD,49880,18/06/2021,2000407,LICENCES,15/07/2021,62.4,312,374.4,One Leisure Support Team,Licences,60410
http://statistics.data.gov.uk/id/local-authority/12UE,Huntingdonshire District Council,200021,ACTIVE IN TIME LTD ACTIVE IN TIME LTD,49880,18/06/2021,2000407,LICENCES,15/07/2021,62.4,312,374.4,One Leisure Support Team,Licences,60410
http://statistics.data.gov.uk/id/local-authority/12UE,Huntingdonshire District Council,200021,ACTIVE IN TIME LTD ACTIVE IN TIME LTD,49880,18/06/2021,2000407,LICENCES,15/07/2021,62.4,312,374.4,One Leisure Support Team,Licences,60410
http://statistics.data.gov.uk/id/local-authority/12UE,Huntingdonshire District Council,200028,AEBI SCHMIDT AEBI SCHMIDT,51229,30/04/2021,6029729,OPS SCRUBBING DECK,29/07/2021,2538,12690,15228,Vehicles & Plant,"Acquisition - Vehicles, Plant And Equipment",60801
http://statistics.data.gov.uk/id/local-authority/12UE,Huntingdonshire District Council,200028,AEBI SCHMIDT AEBI SCHMIDT,49950,14/06/2021,60270767,ORDER 3068,08/07/2021,38.67,193.36,232.03,Street Cleansing,Vehicle Repairs And Maintenance,60904
http://statistics.data.gov.uk/id/local-authority/12UE,Huntingdonshire District Council,200028,AEBI SCHMIDT AEBI SCHMIDT,49950,14/06/2021,60270767,ORDER 3068,08/07/2021,38.67,193.34,232.01,Street Cleansing,Vehicle Repairs And Maintenance,60904
http://statistics.data.gov.uk/id/local-authority/12UE,Huntingdonshire District Council,200028,AEBI SCHMIDT AEBI SCHMIDT,49951,14/06/2021,60270783,ORDER 3090,08/07/2021,94.56,472.82,567.38,Street Cleansing,Vehicle Repairs And Maintenance,60904
http://statistics.data.gov.uk/id/local-authority/12UE,Huntingdonshire District Council,200028,AEBI SCHMIDT AEBI SCHMIDT,50586,15/06/2021,60270818,ops vehicles,08/07/2021,55.52,277.61,333.13,Street Cleansing,Vehicle Repairs And Maintenance,60904
http://statistics.data.gov.uk/id/local-authority/12UE,Huntingdonshire District Council,200028,AEBI SCHMIDT AEBI SCHMIDT,49950,14/06/2021,60270767,ORDER 3068,08/07/2021,38.67,193.34,232.01,Street Cleansing,Vehicle Repairs And Maintenance,60904
http://statistics.data.gov.uk/id/local-authority/12UE,Huntingdonshire District Council,200028,AEBI SCHMIDT AEBI SCHMIDT,52599,18/06/2021,60270913,OPS MATERIALS,26/08/2021,115.61,578.06,693.67,Street Cleansing,Vehicle Repairs And Maintenance,60904
http://statistics.data.gov.uk/id/local-authority/12UE,Huntingdonshire District Council,200028,AEBI SCHMIDT AEBI SCHMIDT,50000,08/06/2021,60270679,ORDER 3074,01/07/2021,62.74,313.68,376.42,Street Cleansing,Vehicle Repairs And Maintenance,60904
http://statistics.data.gov.uk/id/local-authority/12UE,Huntingdonshire District Council,200028,AEBI SCHMIDT AEBI SCHMIDT,52680,20/08/2021,60272692,OPS VEHICLE MATERIALS,16/09/2021,231.74,1158.69,1390.43,Street Cleansing,Vehicle Repairs And Maintenance,60904
http://statistics.data.gov.uk/id/local-authority/12UE,Huntingdonshire District Council,200028,AEBI SCHMIDT AEBI SCHMIDT,51397,21/07/2021,60271882,OPS DISC BRUSH,12/08/2021,114.24,571.2,685.44,Street Cleansing,Vehicle Repairs And Maintenance,60904
http://statistics.data.gov.uk/id/local-authority/12UE,Huntingdonshire District Council,200028,AEBI SCHMIDT AEBI SCHMIDT,49994,17/06/2021,60270865,ORDER 3081,15/07/2021,71.23,356.15,427.38,Street Cleansing,Vehicle Repairs And Maintenance,60904
http://statistics.data.gov.uk/id/local-authority/12UE,Huntingdonshire District Council,200033,AIRQUEE LTD AIRQUEE LTD,52148,09/08/2021,IN29494,OLSI INFLATABLES,02/09/2021,60,300,360,OLSI - Site & Centre Management,Equipment,61713
http://statistics.data.gov.uk/id/local-authority/12UE,Huntingdonshire District Council,200033,AIRQUEE LTD AIRQUEE LTD,52148,09/08/2021,IN29494,OLSI INFLATABLES,02/09/2021,13,65,78,OLSI - Site & Centre Management,Equipment,61713
http://statistics.data.gov.uk/id/local-authority/12UE,Huntingdonshire District Council,200033,AIRQUEE LTD AIRQUEE LTD,52148,09/08/2021,IN29494,OLSI INFLATABLES,02/09/2021,799,3995,4794,OLSI - Swimming,Equipment,61713
http://statistics.data.gov.uk/id/local-authority/12UE,Huntingdonshire District Council,200924,ALCONBURY PARISH COUNCIL,53569,24/09/2021,PARISH PRECEPT SEP 21,Parish Precept - September 2021,24/09/2021,0,16000,16000,P C Precept Alconbury,Precepts,66301
http://statistics.data.gov.uk/id/local-authority/12UE,Huntingdonshire District Council,200042,ALFA TAIL LIFTS LTD ALFA TAIL LIFTS LTD,49966,08/06/2021,500399,ORDER 3092,01/07/2021,65.91,329.53,395.44,Domestic Waste Collection,Vehicle Maintenance - External,60921
http://statistics.data.gov.uk/id/local-authority/12UE,Huntingdonshire District Council,202635,Alina Ltd,50965,07/07/2021,46331,REFUSE CONTAINERS,29/07/2021,475.2,2376,2851.2,Wheeled Bins,Refuse Containers/Litter Bins,61200
http://statistics.data.gov.uk/id/local-authority/12UE,Huntingdonshire District Council,202267,ALPHADRUGS LTD,51128,13/07/2021,HDC002,OPS SHARPS,05/08/2021,0,600,600,Domestic Waste Collection,Waste Disposal Costs,64050
http://statistics.data.gov.uk/id/local-authority/12UE,Huntingdonshire District Council,200047,AMEYCESPA (EAST) LTD AMEYCESPA (EAST) LTD,51014,30/06/2021,9994067,OPS RECYCLING,22/07/2021,2665.73,13328.67,15994.4,Recycling Collections,Recycling Collection,63500
http://statistics.data.gov.uk/id/local-authority/12UE,Huntingdonshire District Council,200047,AMEYCESPA (EAST) LTD AMEYCESPA (EAST) LTD,52165,31/07/2021,9994144,OPS MARKET SUPPLEMENT,26/08/2021,1262.52,6312.59,7575.11,Recycling Collections,Recycling Collection,63500
http://statistics.data.gov.uk/id/local-authority/12UE,Huntingdonshire District Council,200047,AMEYCESPA (EAST) LTD AMEYCESPA (EAST) LTD,53537,31/08/2021,9994216,RECYCLING COLLECTION,23/09/2021,944.55,4722.76,5667.31,Recycling Collections,Recycling Collection,63500
http://statistics.data.gov.uk/id/local-authority/12UE,Huntingdonshire District Council,200047,AMEYCESPA (EAST) LTD AMEYCESPA (EAST) LTD,51014,30/06/2021,9994067,OPS RECYCLING,22/07/2021,37.69,188.43,226.12,Trade Refuse,Waste Disposal Costs,64050
http://statistics.data.gov.uk/id/local-authority/12UE,Huntingdonshire District Council,200047,AMEYCESPA (EAST) LTD AMEYCESPA (EAST) LTD,52165,31/07/2021,9994144,OPS MARKET SUPPLEMENT,26/08/2021,16.37,81.86,98.23,Trade Refuse,Waste Disposal Costs,64050
http://statistics.data.gov.uk/id/local-authority/12UE,Huntingdonshire District Council,200047,AMEYCESPA (EAST) LTD AMEYCESPA (EAST) LTD,53537,31/08/2021,9994216,RECYCLING COLLECTION,23/09/2021,15.31,76.52,91.83,Trade Refuse,Waste Disposal Costs,64050
http://statistics.data.gov.uk/id/local-authority/12UE,Huntingdonshire District Council,200879,AMULET (CHURCHILL SECURITY SERVICES) LTD,49502,09/06/2021,82192,OAK TREE CENTRE,01/07/2021,196,980,1176,Oak Tree Remedial Work,Site Alterations And Materials,60273
http://statistics.data.gov.uk/id/local-authority/12UE,Huntingdonshire District Council,200879,AMULET (CHURCHILL SECURITY SERVICES) LTD,52126,10/08/2021,83027,SECURITY OAK TREE JULY 21,02/09/2021,192,960,1152,Oak Tree Remedial Work,Site Alterations And Materials,60273
http://statistics.data.gov.uk/id/local-authority/12UE,Huntingdonshire District Council,200879,AMULET (CHURCHILL SECURITY SERVICES) LTD,50711,30/06/2021,82531,finance POs,22/07/2021,180,900,1080,Oak Tree Remedial Work,Site Alterations And Materials,60273
http://statistics.data.gov.uk/id/local-authority/12UE,Huntingdonshire District Council,201344,ANDREW FIREBRACE PARTNERSHIP LTD,51790,30/07/2021,8743,oak tree 230121,26/08/2021,1100,5500,6600,Oak Tree Remedial Work,Consultancy Fees,62400
http://statistics.data.gov.uk/id/local-authority/12UE,Huntingdonshire District Council,201124,ANDY KNOTT CONSTRUCTION,51650,22/06/2021,4323,REDACTED,05/08/2021,0,4364.26,4364.26,Disables Facilities Grants,Mandatory Grants,64601
http://statistics.data.gov.uk/id/local-authority/12UE,Huntingdonshire District Council,202251,REDACTED,53774,01/08/2021,1069,ops cleans aug,30/09/2021,0,680,680,Covid-19,Vehicle Cleaning,60923
http://statistics.data.gov.uk/id/local-authority/12UE,Huntingdonshire District Council,202251,REDACTED,53774,01/08/2021,1069,ops cleans aug,30/09/2021,0,75,75,Covid-19,Vehicle Cleaning,60923
http://statistics.data.gov.uk/id/local-authority/12UE,Huntingdonshire District Council,202251,REDACTED,53774,01/08/2021,1069,ops cleans aug,30/09/2021,0,165,165,Covid-19,Vehicle Cleaning,60923
http://statistics.data.gov.uk/id/local-authority/12UE,Huntingdonshire District Council,202251,REDACTED,53774,01/08/2021,1069,ops cleans aug,30/09/2021,0,150,150,Covid-19,Vehicle Cleaning,60923
http://statistics.data.gov.uk/id/local-authority/12UE,Huntingdonshire District Council,202251,REDACTED,53774,01/08/2021,1069,ops cleans aug,30/09/2021,0,15,15,Covid-19,Vehicle Cleaning,60923
http://statistics.data.gov.uk/id/local-authority/12UE,Huntingdonshire District Council,202251,REDACTED,52481,25/07/2021,1068,OPS VEHICLE DISINFECT,26/08/2021,0,620,620,Covid-19,Vehicle Cleaning,60923
http://statistics.data.gov.uk/id/local-authority/12UE,Huntingdonshire District Council,202251,REDACTED,52481,25/07/2021,1068,OPS VEHICLE DISINFECT,26/08/2021,0,75,75,Covid-19,Vehicle Cleaning,60923
http://statistics.data.gov.uk/id/local-authority/12UE,Huntingdonshire District Council,202251,REDACTED,52481,25/07/2021,1068,OPS VEHICLE DISINFECT,26/08/2021,0,150,150,Covid-19,Vehicle Cleaning,60923
http://statistics.data.gov.uk/id/local-authority/12UE,Huntingdonshire District Council,202251,REDACTED,52481,25/07/2021,1068,OPS VEHICLE DISINFECT,26/08/2021,0,165,165,Covid-19,Vehicle Cleaning,60923
http://statistics.data.gov.uk/id/local-authority/12UE,Huntingdonshire District Council,202251,REDACTED,52481,25/07/2021,1068,OPS VEHICLE DISINFECT,26/08/2021,0,15,15,Covid-19,Vehicle Cleaning,60923
http://statistics.data.gov.uk/id/local-authority/12UE,Huntingdonshire District Council,202251,REDACTED,53778,08/08/2021,1070,ops cleaning 0908-1308,30/09/2021,0,620,620,Covid-19,Vehicle Cleaning,60923
http://statistics.data.gov.uk/id/local-authority/12UE,Huntingdonshire District Council,202251,REDACTED,53778,08/08/2021,1070,ops cleaning 0908-1308,30/09/2021,0,75,75,Covid-19,Vehicle Cleaning,60923
http://statistics.data.gov.uk/id/local-authority/12UE,Huntingdonshire District Council,202251,REDACTED,53778,08/08/2021,1070,ops cleaning 0908-1308,30/09/2021,0,165,165,Covid-19,Vehicle Cleaning,60923
http://statistics.data.gov.uk/id/local-authority/12UE,Huntingdonshire District Council,202251,REDACTED,53778,08/08/2021,1070,ops cleaning 0908-1308,30/09/2021,0,150,150,Covid-19,Vehicle Cleaning,60923
http://statistics.data.gov.uk/id/local-authority/12UE,Huntingdonshire District Council,202251,REDACTED,53778,08/08/2021,1070,ops cleaning 0908-1308,30/09/2021,0,15,15,Covid-19,Vehicle Cleaning,60923
http://statistics.data.gov.uk/id/local-authority/12UE,Huntingdonshire District Council,202251,REDACTED,53779,15/08/2021,1071,OPS CLEANS 1608-2008,30/09/2021,0,620,620,Covid-19,Vehicle Cleaning,60923
http://statistics.data.gov.uk/id/local-authority/12UE,Huntingdonshire District Council,202251,REDACTED,53779,15/08/2021,1071,OPS CLEANS 1608-2008,30/09/2021,0,75,75,Covid-19,Vehicle Cleaning,60923
http://statistics.data.gov.uk/id/local-authority/12UE,Huntingdonshire District Council,202251,REDACTED,53779,15/08/2021,1071,OPS CLEANS 1608-2008,30/09/2021,0,165,165,Covid-19,Vehicle Cleaning,60923
http://statistics.data.gov.uk/id/local-authority/12UE,Huntingdonshire District Council,202251,REDACTED,53779,15/08/2021,1071,OPS CLEANS 1608-2008,30/09/2021,0,150,150,Covid-19,Vehicle Cleaning,60923
http://statistics.data.gov.uk/id/local-authority/12UE,Huntingdonshire District Council,202251,REDACTED,53779,15/08/2021,1071,OPS CLEANS 1608-2008,30/09/2021,0,15,15,Covid-19,Vehicle Cleaning,60923
http://statistics.data.gov.uk/id/local-authority/12UE,Huntingdonshire District Council,202251,REDACTED,53780,22/08/2021,1072,OPS CLEANS 2308-2708,30/09/2021,0,600,600,Covid-19,Vehicle Cleaning,60923
http://statistics.data.gov.uk/id/local-authority/12UE,Huntingdonshire District Council,202251,REDACTED,53780,22/08/2021,1072,OPS CLEANS 2308-2708,30/09/2021,0,75,75,Covid-19,Vehicle Cleaning,60923
http://statistics.data.gov.uk/id/local-authority/12UE,Huntingdonshire District Council,202251,REDACTED,53780,22/08/2021,1072,OPS CLEANS 2308-2708,30/09/2021,0,165,165,Covid-19,Vehicle Cleaning,60923
http://statistics.data.gov.uk/id/local-authority/12UE,Huntingdonshire District Council,202251,REDACTED,53780,22/08/2021,1072,OPS CLEANS 2308-2708,30/09/2021,0,150,150,Covid-19,Vehicle Cleaning,60923
http://statistics.data.gov.uk/id/local-authority/12UE,Huntingdonshire District Council,202251,REDACTED,53780,22/08/2021,1072,OPS CLEANS 2308-2708,30/09/2021,0,15,15,Covid-19,Vehicle Cleaning,60923
http://statistics.data.gov.uk/id/local-authority/12UE,Huntingdonshire District Council,202251,REDACTED,52480,18/07/2021,1067,OPS VEHICLE DISINFECT,26/08/2021,0,540,540,Covid-19,Vehicle Cleaning,60923
http://statistics.data.gov.uk/id/local-authority/12UE,Huntingdonshire District Council,202251,REDACTED,52480,18/07/2021,1067,OPS VEHICLE DISINFECT,26/08/2021,0,75,75,Covid-19,Vehicle Cleaning,60923
http://statistics.data.gov.uk/id/local-authority/12UE,Huntingdonshire District Council,202251,REDACTED,52480,18/07/2021,1067,OPS VEHICLE DISINFECT,26/08/2021,0,165,165,Covid-19,Vehicle Cleaning,60923
http://statistics.data.gov.uk/id/local-authority/12UE,Huntingdonshire District Council,202251,REDACTED,52480,18/07/2021,1067,OPS VEHICLE DISINFECT,26/08/2021,0,165,165,Covid-19,Vehicle Cleaning,60923
http://statistics.data.gov.uk/id/local-authority/12UE,Huntingdonshire District Council,202251,REDACTED,52480,18/07/2021,1067,OPS VEHICLE DISINFECT,26/08/2021,0,15,15,Covid-19,Vehicle Cleaning,60923
http://statistics.data.gov.uk/id/local-authority/12UE,Huntingdonshire District Council,202251,REDACTED,51782,07/06/2021,1061,OPS REFUSE VEHICLES,10/08/2021,0,560,560,Covid-19,Vehicle Cleaning,60923
http://statistics.data.gov.uk/id/local-authority/12UE,Huntingdonshire District Council,202251,REDACTED,51782,07/06/2021,1061,OPS REFUSE VEHICLES,10/08/2021,0,30,30,Covid-19,Vehicle Cleaning,60923
http://statistics.data.gov.uk/id/local-authority/12UE,Huntingdonshire District Council,202251,REDACTED,51782,07/06/2021,1061,OPS REFUSE VEHICLES,10/08/2021,0,150,150,Covid-19,Vehicle Cleaning,60923
http://statistics.data.gov.uk/id/local-authority/12UE,Huntingdonshire District Council,202251,REDACTED,51782,07/06/2021,1061,OPS REFUSE VEHICLES,10/08/2021,0,150,150,Covid-19,Vehicle Cleaning,60923
http://statistics.data.gov.uk/id/local-authority/12UE,Huntingdonshire District Council,202251,REDACTED,51782,07/06/2021,1061,OPS REFUSE VEHICLES,10/08/2021,0,15,15,Covid-19,Vehicle Cleaning,60923
http://statistics.data.gov.uk/id/local-authority/12UE,Huntingdonshire District Council,202251,REDACTED,51783,13/06/2021,1062,OPS WEEKLY VEHICLE CLEAN,10/08/2021,0,560,560,Covid-19,Vehicle Cleaning,60923
http://statistics.data.gov.uk/id/local-authority/12UE,Huntingdonshire District Council,202251,REDACTED,51783,13/06/2021,1062,OPS WEEKLY VEHICLE CLEAN,10/08/2021,0,30,30,Covid-19,Vehicle Cleaning,60923
http://statistics.data.gov.uk/id/local-authority/12UE,Huntingdonshire District Council,202251,REDACTED,51783,13/06/2021,1062,OPS WEEKLY VEHICLE CLEAN,10/08/2021,0,150,150,Covid-19,Vehicle Cleaning,60923
http://statistics.data.gov.uk/id/local-authority/12UE,Huntingdonshire District Council,202251,REDACTED,51783,13/06/2021,1062,OPS WEEKLY VEHICLE CLEAN,10/08/2021,0,150,150,Covid-19,Vehicle Cleaning,60923
http://statistics.data.gov.uk/id/local-authority/12UE,Huntingdonshire District Council,202251,REDACTED,51783,13/06/2021,1062,OPS WEEKLY VEHICLE CLEAN,10/08/2021,0,15,15,Covid-19,Vehicle Cleaning,60923
http://statistics.data.gov.uk/id/local-authority/12UE,Huntingdonshire District Council,202251,REDACTED,51784,20/06/2021,1063,OPS 210621-250621,10/08/2021,0,560,560,Covid-19,Vehicle Cleaning,60923
http://statistics.data.gov.uk/id/local-authority/12UE,Huntingdonshire District Council,202251,REDACTED,51784,20/06/2021,1063,OPS 210621-250621,10/08/2021,0,30,30,Covid-19,Vehicle Cleaning,60923
http://statistics.data.gov.uk/id/local-authority/12UE,Huntingdonshire District Council,202251,REDACTED,51784,20/06/2021,1063,OPS 210621-250621,10/08/2021,0,150,150,Covid-19,Vehicle Cleaning,60923
http://statistics.data.gov.uk/id/local-authority/12UE,Huntingdonshire District Council,202251,REDACTED,51784,20/06/2021,1063,OPS 210621-250621,10/08/2021,0,150,150,Covid-19,Vehicle Cleaning,60923
http://statistics.data.gov.uk/id/local-authority/12UE,Huntingdonshire District Council,202251,REDACTED,51784,20/06/2021,1063,OPS 210621-250621,10/08/2021,0,15,15,Covid-19,Vehicle Cleaning,60923
http://statistics.data.gov.uk/id/local-authority/12UE,Huntingdonshire District Council,202251,REDACTED,51785,27/06/2021,1064,OPS CLEANING 2806020721,10/08/2021,0,560,560,Covid-19,Vehicle Cleaning,60923
http://statistics.data.gov.uk/id/local-authority/12UE,Huntingdonshire District Council,202251,REDACTED,51785,27/06/2021,1064,OPS CLEANING 2806020721,10/08/2021,0,30,30,Covid-19,Vehicle Cleaning,60923
http://statistics.data.gov.uk/id/local-authority/12UE,Huntingdonshire District Council,202251,REDACTED,51785,27/06/2021,1064,OPS CLEANING 2806020721,10/08/2021,0,150,150,Covid-19,Vehicle Cleaning,60923
http://statistics.data.gov.uk/id/local-authority/12UE,Huntingdonshire District Council,202251,REDACTED,51785,27/06/2021,1064,OPS CLEANING 2806020721,10/08/2021,0,150,150,Covid-19,Vehicle Cleaning,60923
http://statistics.data.gov.uk/id/local-authority/12UE,Huntingdonshire District Council,202251,REDACTED,51785,27/06/2021,1064,OPS CLEANING 2806020721,10/08/2021,0,15,15,Covid-19,Vehicle Cleaning,60923
http://statistics.data.gov.uk/id/local-authority/12UE,Huntingdonshire District Council,202251,REDACTED,52473,11/07/2021,1066,OPS VEHICLE DISINFECT,26/08/2021,0,540,540,Covid-19,Vehicle Cleaning,60923
http://statistics.data.gov.uk/id/local-authority/12UE,Huntingdonshire District Council,202251,REDACTED,52473,11/07/2021,1066,OPS VEHICLE DISINFECT,26/08/2021,0,75,75,Covid-19,Vehicle Cleaning,60923
http://statistics.data.gov.uk/id/local-authority/12UE,Huntingdonshire District Council,202251,REDACTED,52473,11/07/2021,1066,OPS VEHICLE DISINFECT,26/08/2021,0,135,135,Covid-19,Vehicle Cleaning,60923
http://statistics.data.gov.uk/id/local-authority/12UE,Huntingdonshire District Council,202251,REDACTED,52473,11/07/2021,1066,OPS VEHICLE DISINFECT,26/08/2021,0,150,150,Covid-19,Vehicle Cleaning,60923
http://statistics.data.gov.uk/id/local-authority/12UE,Huntingdonshire District Council,202251,REDACTED,52469,04/07/2021,1065,OPS VEHICLE DISINFECT,26/08/2021,0,540,540,Covid-19,Vehicle Cleaning,60923
http://statistics.data.gov.uk/id/local-authority/12UE,Huntingdonshire District Council,202251,REDACTED,52469,04/07/2021,1065,OPS VEHICLE DISINFECT,26/08/2021,0,30,30,Covid-19,Vehicle Cleaning,60923
http://statistics.data.gov.uk/id/local-authority/12UE,Huntingdonshire District Council,202251,REDACTED,52469,04/07/2021,1065,OPS VEHICLE DISINFECT,26/08/2021,0,150,150,Covid-19,Vehicle Cleaning,60923
http://statistics.data.gov.uk/id/local-authority/12UE,Huntingdonshire District Council,202251,REDACTED,52469,04/07/2021,1065,OPS VEHICLE DISINFECT,26/08/2021,0,135,135,Covid-19,Vehicle Cleaning,60923
http://statistics.data.gov.uk/id/local-authority/12UE,Huntingdonshire District Council,202251,REDACTED,52469,04/07/2021,1065,OPS VEHICLE DISINFECT,26/08/2021,0,15,15,Covid-19,Vehicle Cleaning,60923
http://statistics.data.gov.uk/id/local-authority/12UE,Huntingdonshire District Council,200050,ANTALIS LTD ANTALIS LTD,50572,30/06/2021,9870435,DOCS A4 PAPER,22/07/2021,112.6,563,675.6,Printing,Paper,62803
http://statistics.data.gov.uk/id/local-authority/12UE,Huntingdonshire District Council,200050,ANTALIS LTD ANTALIS LTD,52738,24/08/2021,9947774,OPS ECOPRINT GRAPHICS,16/09/2021,61.91,309.53,371.44,Printing,Paper,62803
http://statistics.data.gov.uk/id/local-authority/12UE,Huntingdonshire District Council,201474,APEX TRAINING CENTRES (UK) LTD,52761,26/08/2021,17781,OPS LGV TRAINNING&TEST FEE,23/09/2021,380,1900,2280,Domestic Waste Collection,Staff Development And Training,60115
http://statistics.data.gov.uk/id/local-authority/12UE,Huntingdonshire District Council,201474,APEX TRAINING CENTRES (UK) LTD,52761,26/08/2021,17781,OPS LGV TRAINNING&TEST FEE,23/09/2021,0,230,230,Domestic Waste Collection,Staff Development And Training,60115
http://statistics.data.gov.uk/id/local-authority/12UE,Huntingdonshire District Council,201474,APEX TRAINING CENTRES (UK) LTD,52761,26/08/2021,17781,OPS LGV TRAINNING&TEST FEE,23/09/2021,1,5,6,Domestic Waste Collection,Staff Development And Training,60115
http://statistics.data.gov.uk/id/local-authority/12UE,Huntingdonshire District Council,201474,APEX TRAINING CENTRES (UK) LTD,49452,08/06/2021,16872,TRAINING,01/07/2021,0,270,270,Domestic Waste Collection,Staff Development And Training,60115
http://statistics.data.gov.uk/id/local-authority/12UE,Huntingdonshire District Council,201474,APEX TRAINING CENTRES (UK) LTD,49452,08/06/2021,16872,TRAINING,01/07/2021,10,50,60,Domestic Waste Collection,Staff Development And Training,60115
http://statistics.data.gov.uk/id/local-authority/12UE,Huntingdonshire District Council,201474,APEX TRAINING CENTRES (UK) LTD,50133,25/06/2021,17062,TRAINING,22/07/2021,25,125,150,Domestic Waste Collection,Staff Development And Training,60115
http://statistics.data.gov.uk/id/local-authority/12UE,Huntingdonshire District Council,201474,APEX TRAINING CENTRES (UK) LTD,50133,25/06/2021,17062,TRAINING,22/07/2021,25,125,150,Domestic Waste Collection,Staff Development And Training,60115
http://statistics.data.gov.uk/id/local-authority/12UE,Huntingdonshire District Council,201474,APEX TRAINING CENTRES (UK) LTD,50133,25/06/2021,17062,TRAINING,22/07/2021,0,45,45,Domestic Waste Collection,Staff Development And Training,60115
http://statistics.data.gov.uk/id/local-authority/12UE,Huntingdonshire District Council,201474,APEX TRAINING CENTRES (UK) LTD,50133,25/06/2021,17062,TRAINING,22/07/2021,1.67,8.33,10,Domestic Waste Collection,Staff Development And Training,60115
http://statistics.data.gov.uk/id/local-authority/12UE,Huntingdonshire District Council,200054.01,APSE,49558,10/06/2021,2122/651,TRAINING,08/07/2021,105,525,630,One Leisure Support Team,"Advertising, Publicity And Marketing",62005
http://statistics.data.gov.uk/id/local-authority/12UE,Huntingdonshire District Council,200054.01,APSE,52188,06/08/2021,2122/1001,Social Media Online Training,02/09/2021,105,525,630,One Leisure Support Team,"Advertising, Publicity And Marketing",62005
http://statistics.data.gov.uk/id/local-authority/12UE,Huntingdonshire District Council,200054.01,APSE,52533,12/07/2021,PN2122/89,NETWORK MEMBER 2021-2022,26/08/2021,286.47,1432.33,1718.8,Street Cleansing,Membership And Subscriptions,64800
http://statistics.data.gov.uk/id/local-authority/12UE,Huntingdonshire District Council,200054.01,APSE,52533,12/07/2021,PN2122/89,NETWORK MEMBER 2021-2022,26/08/2021,286.47,1432.33,1718.8,Grounds Maintenance,Membership And Subscriptions,64800
http://statistics.data.gov.uk/id/local-authority/12UE,Huntingdonshire District Council,200054.01,APSE,52533,12/07/2021,PN2122/89,NETWORK MEMBER 2021-2022,26/08/2021,286.47,1432.33,1718.8,Trade Refuse,Membership And Subscriptions,64800
http://statistics.data.gov.uk/id/local-authority/12UE,Huntingdonshire District Council,202059.01,AQUASERVE MAINTENANCE LTD,50874,06/07/2021,AQMAIN21047,GROUNDS MAINTENANCE,29/07/2021,753.3,3766.52,4519.82,Barford Road Pocket Park,Grounds Maintenance,60503
http://statistics.data.gov.uk/id/local-authority/12UE,Huntingdonshire District Council,202059.01,AQUASERVE MAINTENANCE LTD,50042,21/06/2021,AQMAIN21041,WAC TESTING,15/07/2021,312.41,1562.05,1874.46,Watercourses,Open Spaces Works,60507
http://statistics.data.gov.uk/id/local-authority/12UE,Huntingdonshire District Council,202059.01,AQUASERVE MAINTENANCE LTD,50564,02/07/2021,AQMAIN21046,OL AREA 9 SECTION 2,29/07/2021,1850.71,9253.53,11104.24,Parks & Open Spaces,Subcontractors,62401
http://statistics.data.gov.uk/id/local-authority/12UE,Huntingdonshire District Council,202059.01,AQUASERVE MAINTENANCE LTD,49374,08/06/2021,AQMAIN21036,AREA 9 SECTION 1,01/07/2021,1603.43,8017.16,9620.59,Parks & Open Spaces,Subcontractors,62401
http://statistics.data.gov.uk/id/local-authority/12UE,Huntingdonshire District Council,202059.01,AQUASERVE MAINTENANCE LTD,51719,02/08/2021,AQMAIN21052,AQMI18200,26/08/2021,6270.85,31354.27,37625.12,Watercourses,Subcontractors,62401
http://statistics.data.gov.uk/id/local-authority/12UE,Huntingdonshire District Council,202059.01,AQUASERVE MAINTENANCE LTD,51263,08/07/2021,AQMAIN21048,facilities wac testing,02/08/2021,76.5,382.5,459,Watercourses,Subcontractors,62401
http://statistics.data.gov.uk/id/local-authority/12UE,Huntingdonshire District Council,202059,AQUASERVE MANAGEMENT LTD,50566,30/06/2021,AQMAN21020,DRAIN SERVICE,22/07/2021,63.14,315.7,378.84,Watercourses,Site Alterations And Materials,60273
http://statistics.data.gov.uk/id/local-authority/12UE,Huntingdonshire District Council,200058,ARCHANT HERTS AND CAMBS ARCHANT HERTS AND CAMBS,51586,06/03/2021,56824956,HDC GREEN PAGE HUNTS POST,05/08/2021,61.95,309.76,371.71,Waste Minimisation,"Advertising, Publicity And Marketing",62005
http://statistics.data.gov.uk/id/local-authority/12UE,Huntingdonshire District Council,200058,ARCHANT HERTS AND CAMBS ARCHANT HERTS AND CAMBS,51586,06/03/2021,56824956,HDC GREEN PAGE HUNTS POST,05/08/2021,20,99.99,119.99,Waste Minimisation,"Advertising, Publicity And Marketing",62005
http://statistics.data.gov.uk/id/local-authority/12UE,Huntingdonshire District Council,200058,ARCHANT HERTS AND CAMBS ARCHANT HERTS AND CAMBS,53186,04/09/2021,56901351,HDC GREEN PAGE,30/09/2021,81.95,409.75,491.7,Waste Minimisation,"Advertising, Publicity And Marketing",62005
http://statistics.data.gov.uk/id/local-authority/12UE,Huntingdonshire District Council,200058,ARCHANT HERTS AND CAMBS ARCHANT HERTS AND CAMBS,50008,19/06/2021,56867746,ADVERTISING,15/07/2021,52.8,264,316.8,Dm Application Processing,Statutory Advertising,62006
http://statistics.data.gov.uk/id/local-authority/12UE,Huntingdonshire District Council,200060,ARTHUR IBBETT LTD ARTHUR IBBETT LTD,50295,30/06/2021,109855,PADLOCKS,22/07/2021,76.75,383.76,460.51,Street Cleansing,Equipment,61713
http://statistics.data.gov.uk/id/local-authority/12UE,Huntingdonshire District Council,200060,ARTHUR IBBETT LTD ARTHUR IBBETT LTD,50295,30/06/2021,109855,PADLOCKS,22/07/2021,76.75,383.76,460.51,Grounds Maintenance,Equipment,61713
http://statistics.data.gov.uk/id/local-authority/12UE,Huntingdonshire District Council,202653,Ashtons Legal,51268,02/06/2021,73875,settlement agreement,29/07/2021,70,350,420,HR Services,Legal Fees,63200
http://statistics.data.gov.uk/id/local-authority/12UE,Huntingdonshire District Council,200065,ASP ASP,53331,03/09/2021,14671HD,OL MAINT,30/09/2021,119,595,714,OLH - Site & Centre Management,"Maintenance - Equipment, Furniture And Materials",61702
http://statistics.data.gov.uk/id/local-authority/12UE,Huntingdonshire District Council,200065,ASP ASP,53331,03/09/2021,14671HD,OL MAINT,30/09/2021,119,595,714,OLSI - Site & Centre Management,"Maintenance - Equipment, Furniture And Materials",61702
http://statistics.data.gov.uk/id/local-authority/12UE,Huntingdonshire District Council,200065,ASP ASP,53331,03/09/2021,14671HD,OL MAINT,30/09/2021,119,595,714,OLSN - Site & Centre Management,"Maintenance - Equipment, Furniture And Materials",61702
http://statistics.data.gov.uk/id/local-authority/12UE,Huntingdonshire District Council,200742,ASTREA ACADEMY TRUST - ST IVO ACADEMY ST IVO SCHOOL,50659,06/07/2021,37SI49,OLSI WATER MAR-JUNE,29/07/2021,0,1214.36,1214.36,OLSI - Site & Centre Management,Water And Sewerage,60302
http://statistics.data.gov.uk/id/local-authority/12UE,Huntingdonshire District Council,200742,ASTREA ACADEMY TRUST - ST IVO ACADEMY ST IVO SCHOOL,53556,03/09/2021,37SI 52,OL water recharges,30/09/2021,0,728.37,728.37,OLSI - Site & Centre Management,Water And Sewerage,60302
http://statistics.data.gov.uk/id/local-authority/12UE,Huntingdonshire District Council,200811,ATOS IT SERVICES UK LTD UNIFY,51357,23/07/2021,5584368614,3CICT SERVICE CHARGE,19/08/2021,2430.42,12152.1,14582.52,Cambridge City Business Case ,Land Line Rental,64077
http://statistics.data.gov.uk/id/local-authority/12UE,Huntingdonshire District Council,200811,ATOS IT SERVICES UK LTD UNIFY,50685,21/06/2021,5584366169,3CICT MAY SERVICE CHARGE,15/07/2021,2262.34,11311.71,13574.05,Cambridge City Business Case ,Land Line Rental,64077
http://statistics.data.gov.uk/id/local-authority/12UE,Huntingdonshire District Council,200811,ATOS IT SERVICES UK LTD UNIFY,53008,25/08/2021,5584370882,SERVICE CHARGE 0107-310721,16/09/2021,1.77,8.87,10.64,Cambridge City Business Case ,Landline Call Charges,64082
http://statistics.data.gov.uk/id/local-authority/12UE,Huntingdonshire District Council,200811,ATOS IT SERVICES UK LTD UNIFY,51357,23/07/2021,5584368614,3CICT SERVICE CHARGE,19/08/2021,1.29,6.47,7.76,Cambridge City Business Case ,Landline Call Charges,64082
http://statistics.data.gov.uk/id/local-authority/12UE,Huntingdonshire District Council,200811,ATOS IT SERVICES UK LTD UNIFY,50685,21/06/2021,5584366169,3CICT MAY SERVICE CHARGE,15/07/2021,1.65,8.23,9.88,Cambridge City Business Case ,Landline Call Charges,64082
http://statistics.data.gov.uk/id/local-authority/12UE,Huntingdonshire District Council,200811,ATOS IT SERVICES UK LTD UNIFY,53008,25/08/2021,5584370882,SERVICE CHARGE 0107-310721,16/09/2021,2609.56,13047.8,15657.36,Cambridge City Business Case ,Line Rental,64075
http://statistics.data.gov.uk/id/local-authority/12UE,Huntingdonshire District Council,200072,B & H DIGITAL LTD B & H DIGITAL LTD,51142,20/07/2021,35686,doc centre bin hangers,12/08/2021,14,70,84,Waste Minimisation,Design And Photographic Costs,62800
http://statistics.data.gov.uk/id/local-authority/12UE,Huntingdonshire District Council,200072,B & H DIGITAL LTD B & H DIGITAL LTD,51271,20/07/2021,35687,doc centre register to vote,12/08/2021,0,49.46,49.46,Printing,"Maintenance - Equipment, Furniture And Materials",61702
http://statistics.data.gov.uk/id/local-authority/12UE,Huntingdonshire District Council,200072,B & H DIGITAL LTD B & H DIGITAL LTD,51271,20/07/2021,35687,doc centre register to vote,12/08/2021,331.29,1656.43,1987.72,Printing,"Maintenance - Equipment, Furniture And Materials",61702
http://statistics.data.gov.uk/id/local-authority/12UE,Huntingdonshire District Council,200072,B & H DIGITAL LTD B & H DIGITAL LTD,50743,30/06/2021,35622,PRINTING JUNE,22/07/2021,0,131.18,131.18,Printing,"Maintenance - Equipment, Furniture And Materials",61702
http://statistics.data.gov.uk/id/local-authority/12UE,Huntingdonshire District Council,200072,B & H DIGITAL LTD B & H DIGITAL LTD,50743,30/06/2021,35622,PRINTING JUNE,22/07/2021,134.11,670.56,804.67,Printing,"Maintenance - Equipment, Furniture And Materials",61702
http://statistics.data.gov.uk/id/local-authority/12UE,Huntingdonshire District Council,200072,B & H DIGITAL LTD B & H DIGITAL LTD,52818,31/08/2021,35882,MAINT EQUPIT,23/09/2021,0,361.76,361.76,Printing,"Maintenance - Equipment, Furniture And Materials",61702
http://statistics.data.gov.uk/id/local-authority/12UE,Huntingdonshire District Council,200072,B & H DIGITAL LTD B & H DIGITAL LTD,52818,31/08/2021,35882,MAINT EQUPIT,23/09/2021,73.73,368.64,442.37,Printing,"Maintenance - Equipment, Furniture And Materials",61702
http://statistics.data.gov.uk/id/local-authority/12UE,Huntingdonshire District Council,200072,B & H DIGITAL LTD B & H DIGITAL LTD,51914,31/07/2021,35782,DOC CENTRE VOTING CARDS,26/08/2021,0,312.86,312.86,Printing,"Maintenance - Equipment, Furniture And Materials",61702
http://statistics.data.gov.uk/id/local-authority/12UE,Huntingdonshire District Council,200072,B & H DIGITAL LTD B & H DIGITAL LTD,51914,31/07/2021,35782,DOC CENTRE VOTING CARDS,26/08/2021,48.81,244.06,292.87,Printing,"Maintenance - Equipment, Furniture And Materials",61702
http://statistics.data.gov.uk/id/local-authority/12UE,Huntingdonshire District Council,200072,B & H DIGITAL LTD B & H DIGITAL LTD,51142,20/07/2021,35686,doc centre bin hangers,12/08/2021,205.54,1027.69,1233.23,Waste Minimisation,Printing,62001
http://statistics.data.gov.uk/id/local-authority/12UE,Huntingdonshire District Council,200075,B S GRAVES ELECTRICAL LTD B S GRAVES ELECTRICAL LTD,51150,20/07/2021,30118,cctv install sockets,12/08/2021,73,365,438,Cctv Huntingdonshire,Electricity/Lighting (Communal Areas),60304
http://statistics.data.gov.uk/id/local-authority/12UE,Huntingdonshire District Council,200075,B S GRAVES ELECTRICAL LTD B S GRAVES ELECTRICAL LTD,50017,22/06/2021,30060,COUNTRY PARK,15/07/2021,84,420,504,Hinchingbrooke Park Management,Maintenance - Building,60201
http://statistics.data.gov.uk/id/local-authority/12UE,Huntingdonshire District Council,200075,B S GRAVES ELECTRICAL LTD B S GRAVES ELECTRICAL LTD,51145,16/07/2021,30114,mhp meter supply,10/08/2021,132,660,792,Mobile Home Park,Maintenance - Building,60201
http://statistics.data.gov.uk/id/local-authority/12UE,Huntingdonshire District Council,200075,B S GRAVES ELECTRICAL LTD B S GRAVES ELECTRICAL LTD,53322,07/09/2021,30188,ELEC WORK 9 MHP,30/09/2021,150,750,900,Mobile Home Park - Electrical Works,Maintenance - Mechanical And Electrical,60203
http://statistics.data.gov.uk/id/local-authority/12UE,Huntingdonshire District Council,200075,B S GRAVES ELECTRICAL LTD B S GRAVES ELECTRICAL LTD,53324,08/09/2021,30191,ELEC WORK 13 MHP,30/09/2021,110,550,660,Mobile Home Park - Electrical Works,Maintenance - Mechanical And Electrical,60203
http://statistics.data.gov.uk/id/local-authority/12UE,Huntingdonshire District Council,201155,BALFOUR BEATTY LIVING PLACES LTD,52344,17/08/2021,CSUK OU/INV/110642,Monitoring Equip Lamp Posts,09/09/2021,81.04,405.18,486.22,Air Quality,Equipment,61713
http://statistics.data.gov.uk/id/local-authority/12UE,Huntingdonshire District Council,200079,BANDVULC TRUCK TYRES BANDVULC TRUCK TYRES,52899,30/08/2021,160852,TYRES P:8 W:0,23/09/2021,0.01,0,0.01,Finance,Over/Under VAT Rounding,68350
http://statistics.data.gov.uk/id/local-authority/12UE,Huntingdonshire District Council,200079,BANDVULC TRUCK TYRES BANDVULC TRUCK TYRES,52899,30/08/2021,160852,TYRES P:8 W:0,23/09/2021,190.84,954.19,1145.03,Recycling Collections,Tyres,62926
http://statistics.data.gov.uk/id/local-authority/12UE,Huntingdonshire District Council,200079,BANDVULC TRUCK TYRES BANDVULC TRUCK TYRES,52899,30/08/2021,160852,TYRES P:8 W:0,23/09/2021,230.64,1153.19,1383.83,Domestic Waste Collection,Tyres,62926
http://statistics.data.gov.uk/id/local-authority/12UE,Huntingdonshire District Council,200079,BANDVULC TRUCK TYRES BANDVULC TRUCK TYRES,52899,30/08/2021,160852,TYRES P:8 W:0,23/09/2021,12.52,62.61,75.13,Domestic Waste Collection,Tyres,62926
http://statistics.data.gov.uk/id/local-authority/12UE,Huntingdonshire District Council,200079,BANDVULC TRUCK TYRES BANDVULC TRUCK TYRES,52899,30/08/2021,160852,TYRES P:8 W:0,23/09/2021,73.12,365.62,438.74,Recycling Collections,Tyres,62926
http://statistics.data.gov.uk/id/local-authority/12UE,Huntingdonshire District Council,200079,BANDVULC TRUCK TYRES BANDVULC TRUCK TYRES,52899,30/08/2021,160852,TYRES P:8 W:0,23/09/2021,48.45,242.25,290.7,Green Waste Collection,Tyres,62926
http://statistics.data.gov.uk/id/local-authority/12UE,Huntingdonshire District Council,200079,BANDVULC TRUCK TYRES BANDVULC TRUCK TYRES,52899,30/08/2021,160852,TYRES P:8 W:0,23/09/2021,29.54,147.71,177.25,Trade Refuse,Tyres,62926
http://statistics.data.gov.uk/id/local-authority/12UE,Huntingdonshire District Council,200079,BANDVULC TRUCK TYRES BANDVULC TRUCK TYRES,52899,30/08/2021,160852,TYRES P:8 W:0,23/09/2021,12.52,62.61,75.13,Recycling Collections,Tyres,62926
http://statistics.data.gov.uk/id/local-authority/12UE,Huntingdonshire District Council,200096,BEN BURGESS & COMPANY BEN BURGESS & COMPANY,50788,08/07/2021,942935,olsi  mower roller,02/08/2021,1300,6500,7800,OLSIO - Site & Centre Management,Equipment,61713
http://statistics.data.gov.uk/id/local-authority/12UE,Huntingdonshire District Council,200101,BID HUNTINGDON BID HUNTINGDON,51992,28/07/2021,INV-1895,OPS FAMILY FUN DAY 15.06.21,12/08/2021,0,7350,7350,Covid-19,"Advertising, Publicity And Marketing",62005
http://statistics.data.gov.uk/id/local-authority/12UE,Huntingdonshire District Council,200101,BID HUNTINGDON BID HUNTINGDON,50882,09/07/2021,INV-1894,bid for june 21,15/07/2021,1162.5,5812.5,6975,Bid Revenue Account,Payment Of Amount Due,23003
http://statistics.data.gov.uk/id/local-authority/12UE,Huntingdonshire District Council,200103,BIGPRINTING BIGPRINTING,50074,22/06/2021,1713660,OL ST IVES,15/07/2021,245.4,1227,1472.4,OLSI - Site & Centre Management,"Advertising, Publicity And Marketing",62005
http://statistics.data.gov.uk/id/local-authority/12UE,Huntingdonshire District Council,200103,BIGPRINTING BIGPRINTING,49976,16/06/2021,1713647,OL ST IVES,08/07/2021,55,275,330,OLSN - Site & Centre Management,Equipment,61713
http://statistics.data.gov.uk/id/local-authority/12UE,Huntingdonshire District Council,202004,BLOOM PROCUREMENT SERVICES LTD,53067,31/08/2021,SIN026339,PAYMENT SCHEDULE JUL21,09/09/2021,1413.4,7067,8480.4,Bridge Place Car Park Const,Consultancy Fees,62400
http://statistics.data.gov.uk/id/local-authority/12UE,Huntingdonshire District Council,202004,BLOOM PROCUREMENT SERVICES LTD,53067,31/08/2021,SIN026339,PAYMENT SCHEDULE JUL21,09/09/2021,1413.2,7066,8479.2,Hinchingbrooke Country Park,Consultancy Fees,62400
http://statistics.data.gov.uk/id/local-authority/12UE,Huntingdonshire District Council,202004,BLOOM PROCUREMENT SERVICES LTD,53067,31/08/2021,SIN026339,PAYMENT SCHEDULE JUL21,09/09/2021,1413.4,7067,8480.4,St Neots Riverside Park Path/Cycle Imps,Consultancy Fees,62400
http://statistics.data.gov.uk/id/local-authority/12UE,Huntingdonshire District Council,202004,BLOOM PROCUREMENT SERVICES LTD,52553,24/08/2021,SIN026189,facilites payment schedule 1,26/08/2021,20400,102000,122400,Pathfinder House Decarbonisation Scheme,Consultancy Fees,62400
http://statistics.data.gov.uk/id/local-authority/12UE,Huntingdonshire District Council,202004,BLOOM PROCUREMENT SERVICES LTD,53508,01/09/2021,SIN026378,FACILITIES PAYMENT SCHEDULE 2,23/09/2021,2244.6,11223,13467.6,Pathfinder House Decarbonisation Scheme,Consultancy Fees,62400
http://statistics.data.gov.uk/id/local-authority/12UE,Huntingdonshire District Council,202004,BLOOM PROCUREMENT SERVICES LTD,52554,24/08/2021,SIN026188,FACILITES PS1 CONSTRUCTION COMMENCEMENT,26/08/2021,12022.2,60111,72133.2,OL Ramsey Decarbonisation Scheme,Consultancy Fees,62400
http://statistics.data.gov.uk/id/local-authority/12UE,Huntingdonshire District Council,202004,BLOOM PROCUREMENT SERVICES LTD,53098,08/09/2021,SIN026582,OL PAY SCH MONTH 1,16/09/2021,1200,6000,7200,OL Ramsey Decarbonisation Scheme,Consultancy Fees,62400
http://statistics.data.gov.uk/id/local-authority/12UE,Huntingdonshire District Council,200109,BLUE PRAWN DESIGN LTD BLUE PRAWN DESIGN LTD,52467,01/05/2021,1230,WEBSITE HOSTING 0420-0421,26/08/2021,390,1950,2340,Business & Enterprise Support,Ict Software,64071
http://statistics.data.gov.uk/id/local-authority/12UE,Huntingdonshire District Council,201199,Bluntisham Parish Council,53569,24/09/2021,PARISH PRECEPT SEP 22,Parish Precept - September 2021,24/09/2021,0,46413,46413,P C Precept Bluntisham,Precepts,66301
http://statistics.data.gov.uk/id/local-authority/12UE,Huntingdonshire District Council,202115,BONSKA CONSULTANCY LTD,51595,28/07/2021,HDC JULY21,OL INTERVIEW 5 CANDIDATES,05/08/2021,92.88,464.4,557.28,One Leisure Support Team,Consultancy Fees,62400
http://statistics.data.gov.uk/id/local-authority/12UE,Huntingdonshire District Council,202115,BONSKA CONSULTANCY LTD,50758,30/06/2021,HDC JUNE21,olsi recruitment,15/07/2021,51.44,257.2,308.64,One Leisure Support Team,Consultancy Fees,62400
http://statistics.data.gov.uk/id/local-authority/12UE,Huntingdonshire District Council,200113,BOOKER CASH AND CARRY BOOKER CASH AND CARRY,50184,24/06/2021,2113782572,COUNTRY PARK,22/07/2021,0,166.25,166.25,Hinchingbrooke Park Cafe,Catering Supplies,61900
http://statistics.data.gov.uk/id/local-authority/12UE,Huntingdonshire District Council,200113,BOOKER CASH AND CARRY BOOKER CASH AND CARRY,50184,24/06/2021,2113782572,COUNTRY PARK,22/07/2021,201.77,1008.84,1210.61,Hinchingbrooke Park Cafe,Catering Supplies,61900
http://statistics.data.gov.uk/id/local-authority/12UE,Huntingdonshire District Council,200113,BOOKER CASH AND CARRY BOOKER CASH AND CARRY,53100,29/08/2021,2114300895,HCP CAFE FOOD,23/09/2021,0,398.17,398.17,Hinchingbrooke Park Cafe,Catering Supplies,61900
http://statistics.data.gov.uk/id/local-authority/12UE,Huntingdonshire District Council,200113,BOOKER CASH AND CARRY BOOKER CASH AND CARRY,53100,29/08/2021,2114300895,HCP CAFE FOOD,23/09/2021,9.2,46.02,55.22,Hinchingbrooke Park Cafe,Catering Supplies,61900
http://statistics.data.gov.uk/id/local-authority/12UE,Huntingdonshire District Council,200113,BOOKER CASH AND CARRY BOOKER CASH AND CARRY,53168,19/08/2021,2114221053,HCP CAFE FOOD,16/09/2021,0,185.43,185.43,Hinchingbrooke Park Cafe,Catering Supplies,61900
http://statistics.data.gov.uk/id/local-authority/12UE,Huntingdonshire District Council,200113,BOOKER CASH AND CARRY BOOKER CASH AND CARRY,53168,19/08/2021,2114221053,HCP CAFE FOOD,16/09/2021,16.9,84.48,101.38,Hinchingbrooke Park Cafe,Catering Supplies,61900
http://statistics.data.gov.uk/id/local-authority/12UE,Huntingdonshire District Council,201138,BORNEY UK LTD,51509,28/07/2021,53637,ops laminate,19/08/2021,117.4,587,704.4,Markets Management,"Advertising, Publicity And Marketing",62005
http://statistics.data.gov.uk/id/local-authority/12UE,Huntingdonshire District Council,201138,BORNEY UK LTD,51373,26/07/2021,53624,PARKING BANNERS,19/08/2021,77.4,387,464.4,Markets Management,"Advertising, Publicity And Marketing",62005
http://statistics.data.gov.uk/id/local-authority/12UE,Huntingdonshire District Council,201138,BORNEY UK LTD,52812,16/08/2021,53719,SUMMER BANNER,09/09/2021,235.1,1175.5,1410.6,Covid-19,Signs,60299
http://statistics.data.gov.uk/id/local-authority/12UE,Huntingdonshire District Council,201138,BORNEY UK LTD,50325,30/07/2021,53476,ops banners,26/08/2021,181,905,1086,Covid-19,Signs,60299
http://statistics.data.gov.uk/id/local-authority/12UE,Huntingdonshire District Council,202241,BOSTON SEEDS LTD,50740,01/06/2021,1025834,OPS SEEDS,15/07/2021,424,2120,2544,Grounds Maintenance,Gardening Supplies,60506
http://statistics.data.gov.uk/id/local-authority/12UE,Huntingdonshire District Council,201490,BPHA LTD,52299,17/08/2021,H3752,Homeless Prevention Grant,19/08/2021,0,438.26,438.26,Homelessness,Homeless Prevention Payments,64403
http://statistics.data.gov.uk/id/local-authority/12UE,Huntingdonshire District Council,201200,Brampton Parish Council,53569,24/09/2021,PARISH PRECEPT SEP 23,Parish Precept - September 2021,24/09/2021,0,141688,141688,P C Precept Brampton,Precepts,66301
http://statistics.data.gov.uk/id/local-authority/12UE,Huntingdonshire District Council,201200,Brampton Parish Council,51012,12/07/2021,PRF 3RD PARTY ANNUAL TEXTILE,3RD PARTY ANNUAL TEXTILE,15/07/2021,0,318.75,318.75,Recycling Collections,Recycling Collection,63500
http://statistics.data.gov.uk/id/local-authority/12UE,Huntingdonshire District Council,202447,BRANDED CUPPA LTD/ SARAH SHARPS,50240,19/05/2021,HDC1476,CONSULTANCY,01/07/2021,525,2625,3150,Covid-19,Agency Staff,60011
http://statistics.data.gov.uk/id/local-authority/12UE,Huntingdonshire District Council,200119,BRENNTAG UK LTD BRENNTAG UK LTD,52854,22/06/2021,38SI 3937942,OLH POOL CHEM,02/09/2021,156.4,782,938.4,OLH - Swimming,Chemicals,64000
http://statistics.data.gov.uk/id/local-authority/12UE,Huntingdonshire District Council,200119,BRENNTAG UK LTD BRENNTAG UK LTD,52508,07/07/2021,38SI 393116,OLH MATERIALS,26/08/2021,109.48,547.4,656.88,OLH - Swimming,Chemicals,64000
http://statistics.data.gov.uk/id/local-authority/12UE,Huntingdonshire District Council,200119,BRENNTAG UK LTD BRENNTAG UK LTD,51374,16/07/2021,38SI3940148,OLR PHARMACEUTICALS,10/08/2021,69.15,345.76,414.91,OLR - Swimming,Chemicals,64000
http://statistics.data.gov.uk/id/local-authority/12UE,Huntingdonshire District Council,200119,BRENNTAG UK LTD BRENNTAG UK LTD,52370,18/06/2021,38SI 3937757,OLSI SUGAR,26/08/2021,100.24,501.2,601.44,OLSI - Swimming,Chemicals,64000
http://statistics.data.gov.uk/id/local-authority/12UE,Huntingdonshire District Council,200119,BRENNTAG UK LTD BRENNTAG UK LTD,52050,03/08/2021,38SI 3941207,OLSI SUGAR,26/08/2021,93.84,469.2,563.04,OLSI - Swimming,Chemicals,64000
http://statistics.data.gov.uk/id/local-authority/12UE,Huntingdonshire District Council,200119,BRENNTAG UK LTD BRENNTAG UK LTD,51978,04/08/2021,38SI 3941310,OLSI SUGAR,26/08/2021,133.32,666.6,799.92,OLSN - Swimming,Chemicals,64000
http://statistics.data.gov.uk/id/local-authority/12UE,Huntingdonshire District Council,200119,BRENNTAG UK LTD BRENNTAG UK LTD,50688,02/07/2021,38SI 3938857,OLSTN SUGAR,29/07/2021,125.12,625.6,750.72,OLSN - Swimming,Chemicals,64000
http://statistics.data.gov.uk/id/local-authority/12UE,Huntingdonshire District Council,200126,BRITISH GAS BUSINESS BRITISH GAS BUSINESS,51260,20/07/2021,716268650,OLH DRY MAY 21,29/07/2021,137.41,687.04,824.45,OLH - Site & Centre Management,Gas,60305
http://statistics.data.gov.uk/id/local-authority/12UE,Huntingdonshire District Council,200126,BRITISH GAS BUSINESS BRITISH GAS BUSINESS,51261,20/07/2021,716268651,OLH DRY JUNE 21,29/07/2021,62.72,313.59,376.31,OLH - Site & Centre Management,Gas,60305
http://statistics.data.gov.uk/id/local-authority/12UE,Huntingdonshire District Council,200126,BRITISH GAS BUSINESS BRITISH GAS BUSINESS,52963,03/09/2021,430652934,OLH DRY GAS 0108-310821,09/09/2021,117.2,586,703.2,OLH - Site & Centre Management,Gas,60305
http://statistics.data.gov.uk/id/local-authority/12UE,Huntingdonshire District Council,200126,BRITISH GAS BUSINESS BRITISH GAS BUSINESS,53579,12/08/2021,716404439,OLH DRY,30/09/2021,108.04,540.22,648.26,OLH - Site & Centre Management,Gas,60305
http://statistics.data.gov.uk/id/local-authority/12UE,Huntingdonshire District Council,200126,BRITISH GAS BUSINESS BRITISH GAS BUSINESS,51516,20/07/2021,716268393,olh dry may 21 cred,12/08/2021,-140.82,-704.11,-844.93,OLH - Site & Centre Management,Gas,60305
http://statistics.data.gov.uk/id/local-authority/12UE,Huntingdonshire District Council,200126,BRITISH GAS BUSINESS BRITISH GAS BUSINESS,52067,07/08/2021,716372333,OLH WET JULY 21,19/08/2021,654.59,3272.95,3927.54,OLH - Swimming,Gas,60305
http://statistics.data.gov.uk/id/local-authority/12UE,Huntingdonshire District Council,200126,BRITISH GAS BUSINESS BRITISH GAS BUSINESS,51148,20/07/2021,995442117,OLH JUNE,29/07/2021,553.54,2767.71,3321.25,OLH - Swimming,Gas,60305
http://statistics.data.gov.uk/id/local-authority/12UE,Huntingdonshire District Council,200126,BRITISH GAS BUSINESS BRITISH GAS BUSINESS,53173,06/09/2021,716531653,OLH GAS 0108-310821,16/09/2021,521.57,2607.83,3129.4,OLH - Swimming,Gas,60305
http://statistics.data.gov.uk/id/local-authority/12UE,Huntingdonshire District Council,200126,BRITISH GAS BUSINESS BRITISH GAS BUSINESS,52006,05/08/2021,963743822,olr july 21,12/08/2021,211.74,1058.68,1270.42,OLR - Site & Centre Management,Gas,60305
http://statistics.data.gov.uk/id/local-authority/12UE,Huntingdonshire District Council,200126,BRITISH GAS BUSINESS BRITISH GAS BUSINESS,52960,03/09/2021,430652940,OLR GAS BILL 0108-310821,09/09/2021,207.7,1038.5,1246.2,OLR - Site & Centre Management,Gas,60305
http://statistics.data.gov.uk/id/local-authority/12UE,Huntingdonshire District Council,200126,BRITISH GAS BUSINESS BRITISH GAS BUSINESS,50606,05/07/2021,994402179,OLRA JUN 21,15/07/2021,190.77,953.86,1144.63,OLR - Site & Centre Management,Gas,60305
http://statistics.data.gov.uk/id/local-authority/12UE,Huntingdonshire District Council,200126,BRITISH GAS BUSINESS BRITISH GAS BUSINESS,52965,03/09/2021,430652935,OLSI INDOOR 0108-310821,09/09/2021,749.47,3747.36,4496.83,OLSI - Site & Centre Management,Gas,60305
http://statistics.data.gov.uk/id/local-authority/12UE,Huntingdonshire District Council,200126,BRITISH GAS BUSINESS BRITISH GAS BUSINESS,50604,05/07/2021,994402177,OLSI JUNE 21,15/07/2021,546.3,2731.5,3277.8,OLSI - Site & Centre Management,Gas,60305
http://statistics.data.gov.uk/id/local-authority/12UE,Huntingdonshire District Council,200126,BRITISH GAS BUSINESS BRITISH GAS BUSINESS,52005,05/08/2021,963743820,olsi july 21,12/08/2021,526.62,2633.11,3159.73,OLSI - Site & Centre Management,Gas,60305
http://statistics.data.gov.uk/id/local-authority/12UE,Huntingdonshire District Council,200126,BRITISH GAS BUSINESS BRITISH GAS BUSINESS,53607,27/09/2021,716605806,OLSI APRL 21,30/09/2021,-12.8,-256.05,-268.85,OLSI - Site & Centre Management,Gas,60305
http://statistics.data.gov.uk/id/local-authority/12UE,Huntingdonshire District Council,200126,BRITISH GAS BUSINESS BRITISH GAS BUSINESS,53609,27/09/2021,716605804,OLSI JUNE 21,30/09/2021,-12.8,-256.05,-268.85,OLSI - Site & Centre Management,Gas,60305
http://statistics.data.gov.uk/id/local-authority/12UE,Huntingdonshire District Council,200126,BRITISH GAS BUSINESS BRITISH GAS BUSINESS,53608,27/09/2021,716605805,OLSI MAY 21,30/09/2021,-13.23,-264.58,-277.81,OLSI - Site & Centre Management,Gas,60305
http://statistics.data.gov.uk/id/local-authority/12UE,Huntingdonshire District Council,200126,BRITISH GAS BUSINESS BRITISH GAS BUSINESS,53610,27/09/2021,716605803,OLSI JULY 21,30/09/2021,-13.23,-264.58,-277.81,OLSI - Site & Centre Management,Gas,60305
http://statistics.data.gov.uk/id/local-authority/12UE,Huntingdonshire District Council,200126,BRITISH GAS BUSINESS BRITISH GAS BUSINESS,53611,27/09/2021,716605802,olsi aug 21,30/09/2021,-13.23,-264.58,-277.81,OLSI - Site & Centre Management,Gas,60305
http://statistics.data.gov.uk/id/local-authority/12UE,Huntingdonshire District Council,200126,BRITISH GAS BUSINESS BRITISH GAS BUSINESS,53606,27/09/2021,716605807,OLH MAR 21,30/09/2021,-14.13,-282.64,-296.77,OLSI - Site & Centre Management,Gas,60305
http://statistics.data.gov.uk/id/local-authority/12UE,Huntingdonshire District Council,200126,BRITISH GAS BUSINESS BRITISH GAS BUSINESS,53619,21/09/2021,716605832,olsi mar-may 21,30/09/2021,304.75,1523.75,1828.5,OLSIO - Site & Centre Management,Gas,60305
http://statistics.data.gov.uk/id/local-authority/12UE,Huntingdonshire District Council,200126,BRITISH GAS BUSINESS BRITISH GAS BUSINESS,53618,21/09/2021,716605833,olsi july 21,30/09/2021,36.92,738.33,775.25,OLSIO - Site & Centre Management,Gas,60305
http://statistics.data.gov.uk/id/local-authority/12UE,Huntingdonshire District Council,200126,BRITISH GAS BUSINESS BRITISH GAS BUSINESS,53617,21/09/2021,716605834,olsi aug 21,30/09/2021,17.56,351.25,368.81,OLSIO - Site & Centre Management,Gas,60305
http://statistics.data.gov.uk/id/local-authority/12UE,Huntingdonshire District Council,200126,BRITISH GAS BUSINESS BRITISH GAS BUSINESS,52007,05/08/2021,963743821,olsio july 21,12/08/2021,13.23,264.58,277.81,OLSIO - Site & Centre Management,Gas,60305
http://statistics.data.gov.uk/id/local-authority/12UE,Huntingdonshire District Council,200126,BRITISH GAS BUSINESS BRITISH GAS BUSINESS,52961,03/09/2021,430652938,OLSI OD GAS 0108-310821,09/09/2021,13.23,264.58,277.81,OLSIO - Site & Centre Management,Gas,60305
http://statistics.data.gov.uk/id/local-authority/12UE,Huntingdonshire District Council,200126,BRITISH GAS BUSINESS BRITISH GAS BUSINESS,50605,05/07/2021,994402178,OLSI OUTDOOR JUNE 21,15/07/2021,12.8,256.05,268.85,OLSIO - Site & Centre Management,Gas,60305
http://statistics.data.gov.uk/id/local-authority/12UE,Huntingdonshire District Council,200126,BRITISH GAS BUSINESS BRITISH GAS BUSINESS,51261,20/07/2021,716268651,OLH DRY JUNE 21,29/07/2021,14.34,286.78,301.12,OLSN - Site & Centre Management,Gas,60305
http://statistics.data.gov.uk/id/local-authority/12UE,Huntingdonshire District Council,200126,BRITISH GAS BUSINESS BRITISH GAS BUSINESS,52962,03/09/2021,430652936,OLSTN DRY GAS 0108-310821,09/09/2021,13.23,264.58,277.81,OLSN - Site & Centre Management,Gas,60305
http://statistics.data.gov.uk/id/local-authority/12UE,Huntingdonshire District Council,200126,BRITISH GAS BUSINESS BRITISH GAS BUSINESS,52964,09/08/2021,340843108,OLSN DRY GAS 0107-310721,09/09/2021,13.23,264.58,277.81,OLSN - Site & Centre Management,Gas,60305
http://statistics.data.gov.uk/id/local-authority/12UE,Huntingdonshire District Council,200126,BRITISH GAS BUSINESS BRITISH GAS BUSINESS,51529,03/08/2021,716268405,olstn dry gas credit,12/08/2021,-13.23,-264.58,-277.81,OLSN - Site & Centre Management,Gas,60305
http://statistics.data.gov.uk/id/local-authority/12UE,Huntingdonshire District Council,200126,BRITISH GAS BUSINESS BRITISH GAS BUSINESS,51258,20/07/2021,716268730,OLSTN WET JUNE,29/07/2021,531.22,2656.1,3187.32,OLSN - Swimming,Gas,60305
http://statistics.data.gov.uk/id/local-authority/12UE,Huntingdonshire District Council,200126,BRITISH GAS BUSINESS BRITISH GAS BUSINESS,53614,23/09/2021,957778473,olst wet aug 21,30/09/2021,486.25,2431.24,2917.49,OLSN - Swimming,Gas,60305
http://statistics.data.gov.uk/id/local-authority/12UE,Huntingdonshire District Council,200126,BRITISH GAS BUSINESS BRITISH GAS BUSINESS,52066,10/08/2021,984510138,OLSTN WET JULY 21,19/08/2021,464.9,2324.5,2789.4,OLSN - Swimming,Gas,60305
http://statistics.data.gov.uk/id/local-authority/12UE,Huntingdonshire District Council,200126,BRITISH GAS BUSINESS BRITISH GAS BUSINESS,51257,20/07/2021,716268729,OLSTN WET MAY,29/07/2021,458.9,2294.51,2753.41,OLSN - Swimming,Gas,60305
http://statistics.data.gov.uk/id/local-authority/12UE,Huntingdonshire District Council,200126,BRITISH GAS BUSINESS BRITISH GAS BUSINESS,53615,23/09/2021,957778474,olstn wet sept 21,30/09/2021,239.38,1196.89,1436.27,OLSN - Swimming,Gas,60305
http://statistics.data.gov.uk/id/local-authority/12UE,Huntingdonshire District Council,200126,BRITISH GAS BUSINESS BRITISH GAS BUSINESS,53172,08/09/2021,716550808,OLSTN GAS 0108-310821,16/09/2021,197.76,988.77,1186.53,OLSN - Swimming,Gas,60305
http://statistics.data.gov.uk/id/local-authority/12UE,Huntingdonshire District Council,200126,BRITISH GAS BUSINESS BRITISH GAS BUSINESS,51256,20/07/2021,716268728,OLSTN MAY,29/07/2021,166.72,833.58,1000.3,OLSN - Swimming,Gas,60305
http://statistics.data.gov.uk/id/local-authority/12UE,Huntingdonshire District Council,200126,BRITISH GAS BUSINESS BRITISH GAS BUSINESS,53605,27/09/2021,716614136,olstn wet aug,30/09/2021,-56.5,-1130.03,-1186.53,OLSN - Swimming,Gas,60305
http://statistics.data.gov.uk/id/local-authority/12UE,Huntingdonshire District Council,200126,BRITISH GAS BUSINESS BRITISH GAS BUSINESS,51528,03/08/2021,716268395,olstn wet credit,12/08/2021,-654.38,-3271.91,-3926.29,OLSN - Swimming,Gas,60305
http://statistics.data.gov.uk/id/local-authority/12UE,Huntingdonshire District Council,200126,BRITISH GAS BUSINESS BRITISH GAS BUSINESS,52032,27/07/2021,999393502,market st ives,12/08/2021,13.42,268.37,281.79,St Ives Bus Station,Gas,60305
http://statistics.data.gov.uk/id/local-authority/12UE,Huntingdonshire District Council,200126,BRITISH GAS BUSINESS BRITISH GAS BUSINESS,52024,06/08/2021,958769533,EFH JULY 21,12/08/2021,105.43,527.16,632.59,Eastfield House,Gas,60305
http://statistics.data.gov.uk/id/local-authority/12UE,Huntingdonshire District Council,200126,BRITISH GAS BUSINESS BRITISH GAS BUSINESS,53051,03/09/2021,430652939,EFH GAS 0108-310821,09/09/2021,80.09,400.42,480.51,Eastfield House,Gas,60305
http://statistics.data.gov.uk/id/local-authority/12UE,Huntingdonshire District Council,200126,BRITISH GAS BUSINESS BRITISH GAS BUSINESS,52023,06/08/2021,958769532,EFH  JUNE 21,12/08/2021,79.63,398.13,477.76,Eastfield House,Gas,60305
http://statistics.data.gov.uk/id/local-authority/12UE,Huntingdonshire District Council,200126,BRITISH GAS BUSINESS BRITISH GAS BUSINESS,52022,06/08/2021,958769530,PFH JUNE 21,12/08/2021,169.79,848.95,1018.74,Pathfinder House,Gas,60305
http://statistics.data.gov.uk/id/local-authority/12UE,Huntingdonshire District Council,200126,BRITISH GAS BUSINESS BRITISH GAS BUSINESS,52025,06/08/2021,958769531,PFH JULY 21,12/08/2021,111.93,559.63,671.56,Pathfinder House,Gas,60305
http://statistics.data.gov.uk/id/local-authority/12UE,Huntingdonshire District Council,200126,BRITISH GAS BUSINESS BRITISH GAS BUSINESS,53050,03/09/2021,430652937,PHF GAS 0108-310821,09/09/2021,101.81,509.05,610.86,Pathfinder House,Gas,60305
http://statistics.data.gov.uk/id/local-authority/12UE,Huntingdonshire District Council,200126,BRITISH GAS BUSINESS BRITISH GAS BUSINESS,53614,23/09/2021,957778473,olst wet aug 21,30/09/2021,-0.01,0,-0.01,Finance,Over/Under VAT Rounding,68350
http://statistics.data.gov.uk/id/local-authority/12UE,Huntingdonshire District Council,200126,BRITISH GAS BUSINESS BRITISH GAS BUSINESS,53615,23/09/2021,957778474,olstn wet sept 21,30/09/2021,-0.01,0,-0.01,Finance,Over/Under VAT Rounding,68350
http://statistics.data.gov.uk/id/local-authority/12UE,Huntingdonshire District Council,200126,BRITISH GAS BUSINESS BRITISH GAS BUSINESS,51256,20/07/2021,716268728,OLSTN MAY,29/07/2021,-0.01,0,-0.01,Finance,Over/Under VAT Rounding,68350
http://statistics.data.gov.uk/id/local-authority/12UE,Huntingdonshire District Council,200126,BRITISH GAS BUSINESS BRITISH GAS BUSINESS,53618,21/09/2021,716605833,olsi july 21,30/09/2021,-0.01,0,-0.01,Finance,Over/Under VAT Rounding,68350
http://statistics.data.gov.uk/id/local-authority/12UE,Huntingdonshire District Council,200126,BRITISH GAS BUSINESS BRITISH GAS BUSINESS,51260,20/07/2021,716268650,OLH DRY MAY 21,29/07/2021,-0.01,0,-0.01,Finance,Over/Under VAT Rounding,68350
http://statistics.data.gov.uk/id/local-authority/12UE,Huntingdonshire District Council,200126,BRITISH GAS BUSINESS BRITISH GAS BUSINESS,52025,06/08/2021,958769531,PFH JULY 21,12/08/2021,-0.01,0,-0.01,Finance,Over/Under VAT Rounding,68350
http://statistics.data.gov.uk/id/local-authority/12UE,Huntingdonshire District Council,200126,BRITISH GAS BUSINESS BRITISH GAS BUSINESS,52023,06/08/2021,958769532,EFH  JUNE 21,12/08/2021,-0.01,0,-0.01,Finance,Over/Under VAT Rounding,68350
http://statistics.data.gov.uk/id/local-authority/12UE,Huntingdonshire District Council,200131,BROXAP LTD BROXAP LTD,51896,30/07/2021,INV278536,OPS FIXINGS,26/08/2021,315.6,1578,1893.6,Parks & Open Spaces,Playground Equipment,61706
http://statistics.data.gov.uk/id/local-authority/12UE,Huntingdonshire District Council,200131,BROXAP LTD BROXAP LTD,53284,22/07/2021,INV278062,LITTER BINS OPS,16/09/2021,735,3675,4410,Covid-19,Refuse Containers/Litter Bins,61200
http://statistics.data.gov.uk/id/local-authority/12UE,Huntingdonshire District Council,200132,BRYAN LECOCHE LTD BRYAN LECOCHE LTD,52003,31/07/2021,5860,Eviction,26/08/2021,560.77,2803.86,3364.63,Env Protection,Subcontractors,62401
http://statistics.data.gov.uk/id/local-authority/12UE,Huntingdonshire District Council,200132,BRYAN LECOCHE LTD BRYAN LECOCHE LTD,53137,23/07/2021,5858,community eviction,16/09/2021,259.37,1296.86,1556.23,Env Protection,Subcontractors,62401
http://statistics.data.gov.uk/id/local-authority/12UE,Huntingdonshire District Council,200132,BRYAN LECOCHE LTD BRYAN LECOCHE LTD,53136,23/07/2021,5857,xommunity june notice served,16/09/2021,253.87,1269.36,1523.23,Env Protection,Subcontractors,62401
http://statistics.data.gov.uk/id/local-authority/12UE,Huntingdonshire District Council,200132,BRYAN LECOCHE LTD BRYAN LECOCHE LTD,52004,31/07/2021,5861,Eviction,26/08/2021,153.33,766.65,919.98,Env Protection,Subcontractors,62401
http://statistics.data.gov.uk/id/local-authority/12UE,Huntingdonshire District Council,200132,BRYAN LECOCHE LTD BRYAN LECOCHE LTD,53139,15/07/2021,5836,community 2806 eviction,16/09/2021,147.88,739.38,887.26,Env Protection,Subcontractors,62401
http://statistics.data.gov.uk/id/local-authority/12UE,Huntingdonshire District Council,200132,BRYAN LECOCHE LTD BRYAN LECOCHE LTD,53134,23/07/2021,5859,community eviction,16/09/2021,110.44,552.18,662.62,Env Protection,Subcontractors,62401
http://statistics.data.gov.uk/id/local-authority/12UE,Huntingdonshire District Council,200133,BSG PROPERTY SERVICES LTD BSG PROPERTY SERVICES LTD,53864,16/07/2021,S48486,CHIA 200660,30/09/2021,0,22600.56,22600.56,Disables Facilities Grants,Mandatory Grants,64601
http://statistics.data.gov.uk/id/local-authority/12UE,Huntingdonshire District Council,200133,BSG PROPERTY SERVICES LTD BSG PROPERTY SERVICES LTD,50598,25/01/2021,S46993,CHIA 200202,08/07/2021,0,19964.06,19964.06,Disables Facilities Grants,Mandatory Grants,64601
http://statistics.data.gov.uk/id/local-authority/12UE,Huntingdonshire District Council,200133,BSG PROPERTY SERVICES LTD BSG PROPERTY SERVICES LTD,44553,22/12/2020,S46826,200202,08/07/2021,0,19174.06,19174.06,Disables Facilities Grants,Mandatory Grants,64601
http://statistics.data.gov.uk/id/local-authority/12UE,Huntingdonshire District Council,200133,BSG PROPERTY SERVICES LTD BSG PROPERTY SERVICES LTD,50315,11/12/2020,S46672,200223 LAS CHIA,01/07/2021,0,10635,10635,Disables Facilities Grants,Mandatory Grants,64601
http://statistics.data.gov.uk/id/local-authority/12UE,Huntingdonshire District Council,200133,BSG PROPERTY SERVICES LTD BSG PROPERTY SERVICES LTD,50469,21/06/2021,S48311,CHIA LAS 190740,15/07/2021,0,1383,1383,Disables Facilities Grants,Mandatory Grants,64601
http://statistics.data.gov.uk/id/local-authority/12UE,Huntingdonshire District Council,200133,BSG PROPERTY SERVICES LTD BSG PROPERTY SERVICES LTD,50469,21/06/2021,S48311,CHIA LAS 190740,15/07/2021,0,6152,6152,Disables Facilities Grants,Mandatory Grants,64601
http://statistics.data.gov.uk/id/local-authority/12UE,Huntingdonshire District Council,200133,BSG PROPERTY SERVICES LTD BSG PROPERTY SERVICES LTD,50469,21/06/2021,S48311,CHIA LAS 190740,15/07/2021,0,2260.8,2260.8,Disables Facilities Grants,Mandatory Grants,64601
http://statistics.data.gov.uk/id/local-authority/12UE,Huntingdonshire District Council,200133,BSG PROPERTY SERVICES LTD BSG PROPERTY SERVICES LTD,50666,23/04/2021,S47840,CHIA 200616 LAS,08/07/2021,0,8950.56,8950.56,Disables Facilities Grants,Mandatory Grants,64601
http://statistics.data.gov.uk/id/local-authority/12UE,Huntingdonshire District Council,200133,BSG PROPERTY SERVICES LTD BSG PROPERTY SERVICES LTD,51171,07/06/2021,S48226,CHIA LAS 191119,22/07/2021,0,8407,8407,Disables Facilities Grants,Mandatory Grants,64601
http://statistics.data.gov.uk/id/local-authority/12UE,Huntingdonshire District Council,200133,BSG PROPERTY SERVICES LTD BSG PROPERTY SERVICES LTD,53235,30/06/2021,S48423,LEVEL ACCESS SHOWER,16/09/2021,0,6370,6370,Disables Facilities Grants,Mandatory Grants,64601
http://statistics.data.gov.uk/id/local-authority/12UE,Huntingdonshire District Council,200133,BSG PROPERTY SERVICES LTD BSG PROPERTY SERVICES LTD,50218,23/04/2021,S47839,200473 CHIA LAS,01/07/2021,0,6318.32,6318.32,Disables Facilities Grants,Mandatory Grants,64601
http://statistics.data.gov.uk/id/local-authority/12UE,Huntingdonshire District Council,200133,BSG PROPERTY SERVICES LTD BSG PROPERTY SERVICES LTD,51863,27/07/2021,S48536,CHIA 200728,19/08/2021,0,6174,6174,Disables Facilities Grants,Mandatory Grants,64601
http://statistics.data.gov.uk/id/local-authority/12UE,Huntingdonshire District Council,200133,BSG PROPERTY SERVICES LTD BSG PROPERTY SERVICES LTD,53036,27/07/2021,S48532,LEVEL ACCESS SHOWER,09/09/2021,0,5972,5972,Disables Facilities Grants,Mandatory Grants,64601
http://statistics.data.gov.uk/id/local-authority/12UE,Huntingdonshire District Council,200133,BSG PROPERTY SERVICES LTD BSG PROPERTY SERVICES LTD,50212,27/05/2021,S48141,chia LAS,01/07/2021,0,5823.5,5823.5,Disables Facilities Grants,Mandatory Grants,64601
http://statistics.data.gov.uk/id/local-authority/12UE,Huntingdonshire District Council,200133,BSG PROPERTY SERVICES LTD BSG PROPERTY SERVICES LTD,53244,26/08/2021,S48783,CHIA LAS  ORDER 7097,16/09/2021,0,5181,5181,Disables Facilities Grants,Mandatory Grants,64601
http://statistics.data.gov.uk/id/local-authority/12UE,Huntingdonshire District Council,200133,BSG PROPERTY SERVICES LTD BSG PROPERTY SERVICES LTD,52065,30/06/2021,S48428,CHIA 200509 LAS,12/08/2021,0,4990,4990,Disables Facilities Grants,Mandatory Grants,64601
http://statistics.data.gov.uk/id/local-authority/12UE,Huntingdonshire District Council,200133,BSG PROPERTY SERVICES LTD BSG PROPERTY SERVICES LTD,52345,07/06/2021,S48223,SHOWER FACILITY REDO,19/08/2021,0,4977,4977,Disables Facilities Grants,Mandatory Grants,64601
http://statistics.data.gov.uk/id/local-authority/12UE,Huntingdonshire District Council,200133,BSG PROPERTY SERVICES LTD BSG PROPERTY SERVICES LTD,51723,26/07/2021,S48524,CHIA 200335 LAS,19/08/2021,0,4938.5,4938.5,Disables Facilities Grants,Mandatory Grants,64601
http://statistics.data.gov.uk/id/local-authority/12UE,Huntingdonshire District Council,200133,BSG PROPERTY SERVICES LTD BSG PROPERTY SERVICES LTD,50671,21/12/2020,S46742,CHIA 200446 LAS,08/07/2021,0,4582,4582,Disables Facilities Grants,Mandatory Grants,64601
http://statistics.data.gov.uk/id/local-authority/12UE,Huntingdonshire District Council,200133,BSG PROPERTY SERVICES LTD BSG PROPERTY SERVICES LTD,50237,07/06/2021,S48224,200715,01/07/2021,0,4549.5,4549.5,Disables Facilities Grants,Mandatory Grants,64601
http://statistics.data.gov.uk/id/local-authority/12UE,Huntingdonshire District Council,200133,BSG PROPERTY SERVICES LTD BSG PROPERTY SERVICES LTD,53185,27/05/2021,S48139,LEVEL ACCESS SHOWER,16/09/2021,0,4468,4468,Disables Facilities Grants,Mandatory Grants,64601
http://statistics.data.gov.uk/id/local-authority/12UE,Huntingdonshire District Council,200133,BSG PROPERTY SERVICES LTD BSG PROPERTY SERVICES LTD,53850,30/04/2021,S47894,CHIS 200676,30/09/2021,0,4350,4350,Disables Facilities Grants,Mandatory Grants,64601
http://statistics.data.gov.uk/id/local-authority/12UE,Huntingdonshire District Council,200133,BSG PROPERTY SERVICES LTD BSG PROPERTY SERVICES LTD,51716,27/05/2021,S48129,CHIA 200433 ALTERATIONS,10/08/2021,0,4326,4326,Disables Facilities Grants,Mandatory Grants,64601
http://statistics.data.gov.uk/id/local-authority/12UE,Huntingdonshire District Council,200133,BSG PROPERTY SERVICES LTD BSG PROPERTY SERVICES LTD,50224,25/06/2021,S48352,200686,22/07/2021,0,3765,3765,Disables Facilities Grants,Mandatory Grants,64601
http://statistics.data.gov.uk/id/local-authority/12UE,Huntingdonshire District Council,200133,BSG PROPERTY SERVICES LTD BSG PROPERTY SERVICES LTD,51153,30/06/2021,S48421,REDACTED,22/07/2021,0,3656,3656,Disables Facilities Grants,Mandatory Grants,64601
http://statistics.data.gov.uk/id/local-authority/12UE,Huntingdonshire District Council,200133,BSG PROPERTY SERVICES LTD BSG PROPERTY SERVICES LTD,53784,27/08/2021,S48815,CHIA 200149,30/09/2021,0,2625,2625,Disables Facilities Grants,Mandatory Grants,64601
http://statistics.data.gov.uk/id/local-authority/12UE,Huntingdonshire District Council,200133,BSG PROPERTY SERVICES LTD BSG PROPERTY SERVICES LTD,50668,24/06/2021,S48338,CHIA 200616 KITCHEN,22/07/2021,0,1006.2,1006.2,Disables Facilities Grants,Mandatory Grants,64601
http://statistics.data.gov.uk/id/local-authority/12UE,Huntingdonshire District Council,200134,BT ONEBILLPLUS BT ONEBILLPLUS,50031,05/06/2021,Q038 LW,LAND LINE RENTAL,01/07/2021,267.63,1338.16,1605.79,HDC Business Case ,Land Line Rental,64077
http://statistics.data.gov.uk/id/local-authority/12UE,Huntingdonshire District Council,201204,Buckden Parish Council,53569,24/09/2021,PARISH PRECEPT SEP 24,Parish Precept - September 2021,24/09/2021,0,74600,74600,P C Precept Buckden,Precepts,66301
http://statistics.data.gov.uk/id/local-authority/12UE,Huntingdonshire District Council,200136,BUGS BUGS,52504,30/06/2021,INV-5508,PEST CONTROL 260521-300621,26/08/2021,951.31,4756.53,5707.84,Pest Control,Pest Control,60504
http://statistics.data.gov.uk/id/local-authority/12UE,Huntingdonshire District Council,200136,BUGS BUGS,52505,30/07/2021,INV-5718,PEST CONTROL 010721-310721,26/08/2021,829.02,4145.1,4974.12,Pest Control,Pest Control,60504
http://statistics.data.gov.uk/id/local-authority/12UE,Huntingdonshire District Council,201207,Bury Parish Council,53569,24/09/2021,PARISH PRECEPT SEP 25,Parish Precept - September 2021,24/09/2021,0,16250,16250,P C Precept Bury,Precepts,66301
http://statistics.data.gov.uk/id/local-authority/12UE,Huntingdonshire District Council,200145,CACI LIMITED CACI LIMITED,53066,25/08/2021,257297,IT SOFTWARE 301121-291122,16/09/2021,1300.82,6504.12,7804.94,HDC Business Case ,Ict Software,64071
http://statistics.data.gov.uk/id/local-authority/12UE,Huntingdonshire District Council,200148,CALLCREDIT LTD CALLCREDIT LTD,53037,01/09/2021,898590,010821-310821,23/09/2021,0.85,4.27,5.12,Car Park Management,Enquiries,63400
http://statistics.data.gov.uk/id/local-authority/12UE,Huntingdonshire District Council,200148,CALLCREDIT LTD CALLCREDIT LTD,51855,01/08/2021,895833,fraud credit searches,26/08/2021,94.54,472.68,567.22,Benefits Management,Enquiries,63400
http://statistics.data.gov.uk/id/local-authority/12UE,Huntingdonshire District Council,200148,CALLCREDIT LTD CALLCREDIT LTD,50948,01/07/2021,891921,fraud charges,29/07/2021,72.56,362.79,435.35,Benefits Management,Enquiries,63400
http://statistics.data.gov.uk/id/local-authority/12UE,Huntingdonshire District Council,200148,CALLCREDIT LTD CALLCREDIT LTD,53037,01/09/2021,898590,010821-310821,23/09/2021,72.55,362.77,435.32,Benefits Management,Enquiries,63400
http://statistics.data.gov.uk/id/local-authority/12UE,Huntingdonshire District Council,200148,CALLCREDIT LTD CALLCREDIT LTD,50948,01/07/2021,891921,fraud charges,29/07/2021,1.92,9.6,11.52,Finance,Enquiries,63400
http://statistics.data.gov.uk/id/local-authority/12UE,Huntingdonshire District Council,200148,CALLCREDIT LTD CALLCREDIT LTD,51855,01/08/2021,895833,fraud credit searches,26/08/2021,7.04,35.21,42.25,Housing Needs & Resources,Enquiries,63400
http://statistics.data.gov.uk/id/local-authority/12UE,Huntingdonshire District Council,200148,CALLCREDIT LTD CALLCREDIT LTD,50948,01/07/2021,891921,fraud charges,29/07/2021,4.05,20.27,24.32,Housing Needs & Resources,Enquiries,63400
http://statistics.data.gov.uk/id/local-authority/12UE,Huntingdonshire District Council,200148,CALLCREDIT LTD CALLCREDIT LTD,53037,01/09/2021,898590,010821-310821,23/09/2021,1.71,8.55,10.26,Housing Needs & Resources,Enquiries,63400
http://statistics.data.gov.uk/id/local-authority/12UE,Huntingdonshire District Council,200149,CAMBRIDGE CITY COUNCIL CAMBRIDGE CITY COUNCIL,52794,07/07/2021,4.23E+11,SERVICE GRANT,02/09/2021,0,10400,10400,Housing Policy R&D,Grants And Contributions,64600
http://statistics.data.gov.uk/id/local-authority/12UE,Huntingdonshire District Council,200149,CAMBRIDGE CITY COUNCIL CAMBRIDGE CITY COUNCIL,49327,04/06/2021,12058861,QTR 1 FEES TO HIA,01/07/2021,0,72898.8,72898.8,Disables Facilities Grants,Home Improvement Agency Fees,67200
http://statistics.data.gov.uk/id/local-authority/12UE,Huntingdonshire District Council,200149,CAMBRIDGE CITY COUNCIL CAMBRIDGE CITY COUNCIL,52658,25/08/2021,12062213,2021/22 QUARTER FEE,16/09/2021,0,72898.8,72898.8,Disables Facilities Grants,Home Improvement Agency Fees,67200
http://statistics.data.gov.uk/id/local-authority/12UE,Huntingdonshire District Council,200149,CAMBRIDGE CITY COUNCIL CAMBRIDGE CITY COUNCIL,51314,29/03/2021,12057178,REDACTED,29/07/2021,467.6,2338,2805.6,HR Services,Licences,60410
http://statistics.data.gov.uk/id/local-authority/12UE,Huntingdonshire District Council,200149,CAMBRIDGE CITY COUNCIL CAMBRIDGE CITY COUNCIL,52856,01/09/2021,12062228,GARAGE CONVERS FEE,23/09/2021,57.2,286,343.2,Disables Facilities Grants,Mandatory Grants,64601
http://statistics.data.gov.uk/id/local-authority/12UE,Huntingdonshire District Council,200150,CAMBRIDGE CONSULTANCY IN COUNSELLING CAMBRIDGE CONSULTANCY IN COUNSELLING,51201,30/06/2021,102935,jHR une sessions,29/07/2021,0,260,260,HR Services,Occupational Health,60111
http://statistics.data.gov.uk/id/local-authority/12UE,Huntingdonshire District Council,200150,CAMBRIDGE CONSULTANCY IN COUNSELLING CAMBRIDGE CONSULTANCY IN COUNSELLING,51203,30/06/2021,102937,HR JUNE 21,29/07/2021,0,260,260,HR Services,Occupational Health,60111
http://statistics.data.gov.uk/id/local-authority/12UE,Huntingdonshire District Council,200156,CAMBRIDGE VENDING LTD T/A THE VENDING PEOPLE CAMBRIDGE VENDING,51034,25/06/2021,212229,ops CV1905 andCV1906,02/08/2021,0,691.49,691.49,Covid-19,Catering Supplies,61900
http://statistics.data.gov.uk/id/local-authority/12UE,Huntingdonshire District Council,201033,CAMBRIDGESHIRE COUNTY COUNCIL,52756,13/08/2021,4.23E+11,HDC TRADE/FOOD WASTE JUNE21,09/09/2021,0,9899.1,9899.1,Trade Refuse,Waste Disposal Costs,64050
http://statistics.data.gov.uk/id/local-authority/12UE,Huntingdonshire District Council,201033,CAMBRIDGESHIRE COUNTY COUNCIL,50658,29/06/2021,4.23E+11,TW MAY 2021,22/07/2021,0,9591.89,9591.89,Trade Refuse,Waste Disposal Costs,64050
http://statistics.data.gov.uk/id/local-authority/12UE,Huntingdonshire District Council,200159,CAMBRIDGESHIRE COUNTY COUNCIL CAMBRIDGESHIRE COUNTY COUNCIL,52978,09/07/2021,4.23E+11,HIGHWAY SEARCHES 2021/2022,09/09/2021,6254.4,31272,37526.4,Land Enquiry Con 29 Full,General Office Expenses,62004
http://statistics.data.gov.uk/id/local-authority/12UE,Huntingdonshire District Council,200159,CAMBRIDGESHIRE COUNTY COUNCIL CAMBRIDGESHIRE COUNTY COUNCIL,50568,18/06/2021,4.23E+11,CUSTOMER SERVICES RENT,15/07/2021,0,1145,1145,Customer Service Centres,Profit Share Payable,67100
http://statistics.data.gov.uk/id/local-authority/12UE,Huntingdonshire District Council,200159,CAMBRIDGESHIRE COUNTY COUNCIL CAMBRIDGESHIRE COUNTY COUNCIL,50567,18/06/2021,4.23E+11,CUSTOMER SERVICES RENT,15/07/2021,0,986.25,986.25,Customer Service Centres,Profit Share Payable,67100
http://statistics.data.gov.uk/id/local-authority/12UE,Huntingdonshire District Council,201485,CAMBRIDGESHIRE HOTEL LTD T/AS THE DOLPHIN,50079,23/06/2021,DH019906,25/05-26/06/21,15/07/2021,17.5,350,367.5,Homelessness,B&B Accommodation,64401
http://statistics.data.gov.uk/id/local-authority/12UE,Huntingdonshire District Council,201485,CAMBRIDGESHIRE HOTEL LTD T/AS THE DOLPHIN,50080,07/06/2021,DH019903,17-23/05/21,01/07/2021,17.5,350,367.5,Homelessness,B&B Accommodation,64401
http://statistics.data.gov.uk/id/local-authority/12UE,Huntingdonshire District Council,201485,CAMBRIDGESHIRE HOTEL LTD T/AS THE DOLPHIN,50078,07/06/2021,DH019905,31/05-06/06/21,01/07/2021,5,100,105,Homelessness,B&B Accommodation,64401
http://statistics.data.gov.uk/id/local-authority/12UE,Huntingdonshire District Council,201485,CAMBRIDGESHIRE HOTEL LTD T/AS THE DOLPHIN,50119,24/06/2021,DH019908,14-20/06/21,22/07/2021,17.5,350,367.5,Homelessness,B&B Accommodation,64401
http://statistics.data.gov.uk/id/local-authority/12UE,Huntingdonshire District Council,201485,CAMBRIDGESHIRE HOTEL LTD T/AS THE DOLPHIN,50949,12/07/2021,DH019911,housing we 040721,05/08/2021,2.5,50,52.5,Homelessness,B&B Accommodation,64401
http://statistics.data.gov.uk/id/local-authority/12UE,Huntingdonshire District Council,201485,CAMBRIDGESHIRE HOTEL LTD T/AS THE DOLPHIN,50951,12/07/2021,DH019910,HOUSING WE 270621,05/08/2021,17.5,350,367.5,Homelessness,B&B Accommodation,64401
http://statistics.data.gov.uk/id/local-authority/12UE,Huntingdonshire District Council,201485,CAMBRIDGESHIRE HOTEL LTD T/AS THE DOLPHIN,50181,24/06/2021,DH019907,W/ 07.06 5 ROOMS,22/07/2021,15,300,315,Homelessness,B&B Accommodation,64401
http://statistics.data.gov.uk/id/local-authority/12UE,Huntingdonshire District Council,201485,CAMBRIDGESHIRE HOTEL LTD T/AS THE DOLPHIN,50119,24/06/2021,DH019908,14-20/06/21,22/07/2021,17.5,350,367.5,Homelessness,B&B Accommodation,64401
http://statistics.data.gov.uk/id/local-authority/12UE,Huntingdonshire District Council,201485,CAMBRIDGESHIRE HOTEL LTD T/AS THE DOLPHIN,50949,12/07/2021,DH019911,housing we 040721,05/08/2021,17.5,350,367.5,Homelessness,B&B Accommodation,64401
http://statistics.data.gov.uk/id/local-authority/12UE,Huntingdonshire District Council,201485,CAMBRIDGESHIRE HOTEL LTD T/AS THE DOLPHIN,50951,12/07/2021,DH019910,HOUSING WE 270621,05/08/2021,17.5,350,367.5,Homelessness,B&B Accommodation,64401
http://statistics.data.gov.uk/id/local-authority/12UE,Huntingdonshire District Council,201485,CAMBRIDGESHIRE HOTEL LTD T/AS THE DOLPHIN,50950,12/07/2021,DH019912,HOUSING WE 110721,05/08/2021,2.5,50,52.5,Homelessness,B&B Accommodation,64401
http://statistics.data.gov.uk/id/local-authority/12UE,Huntingdonshire District Council,201485,CAMBRIDGESHIRE HOTEL LTD T/AS THE DOLPHIN,50079,23/06/2021,DH019906,25/05-26/06/21,15/07/2021,17.5,350,367.5,Homelessness,B&B Accommodation,64401
http://statistics.data.gov.uk/id/local-authority/12UE,Huntingdonshire District Council,201485,CAMBRIDGESHIRE HOTEL LTD T/AS THE DOLPHIN,50080,07/06/2021,DH019903,17-23/05/21,01/07/2021,17.5,350,367.5,Homelessness,B&B Accommodation,64401
http://statistics.data.gov.uk/id/local-authority/12UE,Huntingdonshire District Council,201485,CAMBRIDGESHIRE HOTEL LTD T/AS THE DOLPHIN,50181,24/06/2021,DH019907,W/ 07.06 5 ROOMS,22/07/2021,17.5,350,367.5,Homelessness,B&B Accommodation,64401
http://statistics.data.gov.uk/id/local-authority/12UE,Huntingdonshire District Council,201485,CAMBRIDGESHIRE HOTEL LTD T/AS THE DOLPHIN,50078,07/06/2021,DH019905,31/05-06/06/21,01/07/2021,17.5,350,367.5,Homelessness,B&B Accommodation,64401
http://statistics.data.gov.uk/id/local-authority/12UE,Huntingdonshire District Council,201485,CAMBRIDGESHIRE HOTEL LTD T/AS THE DOLPHIN,51346,26/07/2021,DH019915,HOUSING TA WE 250721,19/08/2021,17.5,350,367.5,Homelessness,B&B Accommodation,64401
http://statistics.data.gov.uk/id/local-authority/12UE,Huntingdonshire District Council,201485,CAMBRIDGESHIRE HOTEL LTD T/AS THE DOLPHIN,51345,26/07/2021,DH019914,TA HOUSING WE 180721,19/08/2021,17.5,350,367.5,Homelessness,B&B Accommodation,64401
http://statistics.data.gov.uk/id/local-authority/12UE,Huntingdonshire District Council,201485,CAMBRIDGESHIRE HOTEL LTD T/AS THE DOLPHIN,50119,24/06/2021,DH019908,14-20/06/21,22/07/2021,17.5,350,367.5,Homelessness,B&B Accommodation,64401
http://statistics.data.gov.uk/id/local-authority/12UE,Huntingdonshire District Council,201485,CAMBRIDGESHIRE HOTEL LTD T/AS THE DOLPHIN,50949,12/07/2021,DH019911,housing we 040721,05/08/2021,17.5,350,367.5,Homelessness,B&B Accommodation,64401
http://statistics.data.gov.uk/id/local-authority/12UE,Huntingdonshire District Council,201485,CAMBRIDGESHIRE HOTEL LTD T/AS THE DOLPHIN,50951,12/07/2021,DH019910,HOUSING WE 270621,05/08/2021,17.5,350,367.5,Homelessness,B&B Accommodation,64401
http://statistics.data.gov.uk/id/local-authority/12UE,Huntingdonshire District Council,201485,CAMBRIDGESHIRE HOTEL LTD T/AS THE DOLPHIN,50950,12/07/2021,DH019912,HOUSING WE 110721,05/08/2021,17.5,350,367.5,Homelessness,B&B Accommodation,64401
http://statistics.data.gov.uk/id/local-authority/12UE,Huntingdonshire District Council,201485,CAMBRIDGESHIRE HOTEL LTD T/AS THE DOLPHIN,50181,24/06/2021,DH019907,W/ 07.06 5 ROOMS,22/07/2021,7.5,150,157.5,Homelessness,B&B Accommodation,64401
http://statistics.data.gov.uk/id/local-authority/12UE,Huntingdonshire District Council,201485,CAMBRIDGESHIRE HOTEL LTD T/AS THE DOLPHIN,53124,22/08/2021,DH019918,LODGING 2607-010821,16/09/2021,17.5,350,367.5,Homelessness,B&B Accommodation,64401
http://statistics.data.gov.uk/id/local-authority/12UE,Huntingdonshire District Council,201485,CAMBRIDGESHIRE HOTEL LTD T/AS THE DOLPHIN,52824,22/08/2021,DH019919,LODDING 0208-080821,16/09/2021,17.5,350,367.5,Homelessness,B&B Accommodation,64401
http://statistics.data.gov.uk/id/local-authority/12UE,Huntingdonshire District Council,201485,CAMBRIDGESHIRE HOTEL LTD T/AS THE DOLPHIN,52847,22/08/2021,DH019920,LODGING 0908-150821,16/09/2021,17.5,350,367.5,Homelessness,B&B Accommodation,64401
http://statistics.data.gov.uk/id/local-authority/12UE,Huntingdonshire District Council,201485,CAMBRIDGESHIRE HOTEL LTD T/AS THE DOLPHIN,52848,23/08/2021,DH019921,LODGING 1608-2208,16/09/2021,17.5,350,367.5,Homelessness,B&B Accommodation,64401
http://statistics.data.gov.uk/id/local-authority/12UE,Huntingdonshire District Council,201485,CAMBRIDGESHIRE HOTEL LTD T/AS THE DOLPHIN,52920,03/09/2021,DH019923,LODGING 2308-290821,30/09/2021,17.5,350,367.5,Homelessness,B&B Accommodation,64401
http://statistics.data.gov.uk/id/local-authority/12UE,Huntingdonshire District Council,201485,CAMBRIDGESHIRE HOTEL LTD T/AS THE DOLPHIN,51346,26/07/2021,DH019915,HOUSING TA WE 250721,19/08/2021,17.5,350,367.5,Homelessness,B&B Accommodation,64401
http://statistics.data.gov.uk/id/local-authority/12UE,Huntingdonshire District Council,201485,CAMBRIDGESHIRE HOTEL LTD T/AS THE DOLPHIN,51345,26/07/2021,DH019914,TA HOUSING WE 180721,19/08/2021,17.5,350,367.5,Homelessness,B&B Accommodation,64401
http://statistics.data.gov.uk/id/local-authority/12UE,Huntingdonshire District Council,201485,CAMBRIDGESHIRE HOTEL LTD T/AS THE DOLPHIN,50119,24/06/2021,DH019908,14-20/06/21,22/07/2021,17.5,350,367.5,Homelessness,B&B Accommodation,64401
http://statistics.data.gov.uk/id/local-authority/12UE,Huntingdonshire District Council,201485,CAMBRIDGESHIRE HOTEL LTD T/AS THE DOLPHIN,50949,12/07/2021,DH019911,housing we 040721,05/08/2021,17.5,350,367.5,Homelessness,B&B Accommodation,64401
http://statistics.data.gov.uk/id/local-authority/12UE,Huntingdonshire District Council,201485,CAMBRIDGESHIRE HOTEL LTD T/AS THE DOLPHIN,50951,12/07/2021,DH019910,HOUSING WE 270621,05/08/2021,17.5,350,367.5,Homelessness,B&B Accommodation,64401
http://statistics.data.gov.uk/id/local-authority/12UE,Huntingdonshire District Council,201485,CAMBRIDGESHIRE HOTEL LTD T/AS THE DOLPHIN,50950,12/07/2021,DH019912,HOUSING WE 110721,05/08/2021,17.5,350,367.5,Homelessness,B&B Accommodation,64401
http://statistics.data.gov.uk/id/local-authority/12UE,Huntingdonshire District Council,201485,CAMBRIDGESHIRE HOTEL LTD T/AS THE DOLPHIN,50079,23/06/2021,DH019906,25/05-26/06/21,15/07/2021,17.5,350,367.5,Homelessness,B&B Accommodation,64401
http://statistics.data.gov.uk/id/local-authority/12UE,Huntingdonshire District Council,201485,CAMBRIDGESHIRE HOTEL LTD T/AS THE DOLPHIN,50181,24/06/2021,DH019907,W/ 07.06 5 ROOMS,22/07/2021,17.5,350,367.5,Homelessness,B&B Accommodation,64401
http://statistics.data.gov.uk/id/local-authority/12UE,Huntingdonshire District Council,201485,CAMBRIDGESHIRE HOTEL LTD T/AS THE DOLPHIN,53124,22/08/2021,DH019918,LODGING 2607-010821,16/09/2021,17.5,350,367.5,Homelessness,B&B Accommodation,64401
http://statistics.data.gov.uk/id/local-authority/12UE,Huntingdonshire District Council,201485,CAMBRIDGESHIRE HOTEL LTD T/AS THE DOLPHIN,52824,22/08/2021,DH019919,LODDING 0208-080821,16/09/2021,17.5,350,367.5,Homelessness,B&B Accommodation,64401
http://statistics.data.gov.uk/id/local-authority/12UE,Huntingdonshire District Council,201485,CAMBRIDGESHIRE HOTEL LTD T/AS THE DOLPHIN,50078,07/06/2021,DH019905,31/05-06/06/21,01/07/2021,17.5,350,367.5,Homelessness,B&B Accommodation,64401
http://statistics.data.gov.uk/id/local-authority/12UE,Huntingdonshire District Council,201485,CAMBRIDGESHIRE HOTEL LTD T/AS THE DOLPHIN,52847,22/08/2021,DH019920,LODGING 0908-150821,16/09/2021,17.5,350,367.5,Homelessness,B&B Accommodation,64401
http://statistics.data.gov.uk/id/local-authority/12UE,Huntingdonshire District Council,201485,CAMBRIDGESHIRE HOTEL LTD T/AS THE DOLPHIN,52848,23/08/2021,DH019921,LODGING 1608-2208,16/09/2021,17.5,350,367.5,Homelessness,B&B Accommodation,64401
http://statistics.data.gov.uk/id/local-authority/12UE,Huntingdonshire District Council,201485,CAMBRIDGESHIRE HOTEL LTD T/AS THE DOLPHIN,52920,03/09/2021,DH019923,LODGING 2308-290821,30/09/2021,17.5,350,367.5,Homelessness,B&B Accommodation,64401
http://statistics.data.gov.uk/id/local-authority/12UE,Huntingdonshire District Council,201485,CAMBRIDGESHIRE HOTEL LTD T/AS THE DOLPHIN,50079,23/06/2021,DH019906,25/05-26/06/21,15/07/2021,17.5,350,367.5,Homelessness,B&B Accommodation,64401
http://statistics.data.gov.uk/id/local-authority/12UE,Huntingdonshire District Council,201485,CAMBRIDGESHIRE HOTEL LTD T/AS THE DOLPHIN,50080,07/06/2021,DH019903,17-23/05/21,01/07/2021,17.5,350,367.5,Homelessness,B&B Accommodation,64401
http://statistics.data.gov.uk/id/local-authority/12UE,Huntingdonshire District Council,201485,CAMBRIDGESHIRE HOTEL LTD T/AS THE DOLPHIN,50078,07/06/2021,DH019905,31/05-06/06/21,01/07/2021,10,200,210,Homelessness,B&B Accommodation,64401
http://statistics.data.gov.uk/id/local-authority/12UE,Huntingdonshire District Council,201485,CAMBRIDGESHIRE HOTEL LTD T/AS THE DOLPHIN,51346,26/07/2021,DH019915,HOUSING TA WE 250721,19/08/2021,17.5,350,367.5,Homelessness,B&B Accommodation,64401
http://statistics.data.gov.uk/id/local-authority/12UE,Huntingdonshire District Council,201485,CAMBRIDGESHIRE HOTEL LTD T/AS THE DOLPHIN,51345,26/07/2021,DH019914,TA HOUSING WE 180721,19/08/2021,17.5,350,367.5,Homelessness,B&B Accommodation,64401
http://statistics.data.gov.uk/id/local-authority/12UE,Huntingdonshire District Council,201485,CAMBRIDGESHIRE HOTEL LTD T/AS THE DOLPHIN,50119,24/06/2021,DH019908,14-20/06/21,22/07/2021,17.5,350,367.5,Homelessness,B&B Accommodation,64401
http://statistics.data.gov.uk/id/local-authority/12UE,Huntingdonshire District Council,201485,CAMBRIDGESHIRE HOTEL LTD T/AS THE DOLPHIN,50949,12/07/2021,DH019911,housing we 040721,05/08/2021,17.5,350,367.5,Homelessness,B&B Accommodation,64401
http://statistics.data.gov.uk/id/local-authority/12UE,Huntingdonshire District Council,201485,CAMBRIDGESHIRE HOTEL LTD T/AS THE DOLPHIN,50951,12/07/2021,DH019910,HOUSING WE 270621,05/08/2021,17.5,350,367.5,Homelessness,B&B Accommodation,64401
http://statistics.data.gov.uk/id/local-authority/12UE,Huntingdonshire District Council,201485,CAMBRIDGESHIRE HOTEL LTD T/AS THE DOLPHIN,50950,12/07/2021,DH019912,HOUSING WE 110721,05/08/2021,17.5,350,367.5,Homelessness,B&B Accommodation,64401
http://statistics.data.gov.uk/id/local-authority/12UE,Huntingdonshire District Council,201485,CAMBRIDGESHIRE HOTEL LTD T/AS THE DOLPHIN,50079,23/06/2021,DH019906,25/05-26/06/21,15/07/2021,17.5,350,367.5,Homelessness,B&B Accommodation,64401
http://statistics.data.gov.uk/id/local-authority/12UE,Huntingdonshire District Council,201485,CAMBRIDGESHIRE HOTEL LTD T/AS THE DOLPHIN,50080,07/06/2021,DH019903,17-23/05/21,01/07/2021,17.5,350,367.5,Homelessness,B&B Accommodation,64401
http://statistics.data.gov.uk/id/local-authority/12UE,Huntingdonshire District Council,201485,CAMBRIDGESHIRE HOTEL LTD T/AS THE DOLPHIN,50181,24/06/2021,DH019907,W/ 07.06 5 ROOMS,22/07/2021,17.5,350,367.5,Homelessness,B&B Accommodation,64401
http://statistics.data.gov.uk/id/local-authority/12UE,Huntingdonshire District Council,201485,CAMBRIDGESHIRE HOTEL LTD T/AS THE DOLPHIN,53124,22/08/2021,DH019918,LODGING 2607-010821,16/09/2021,2.5,50,52.5,Homelessness,B&B Accommodation,64401
http://statistics.data.gov.uk/id/local-authority/12UE,Huntingdonshire District Council,201485,CAMBRIDGESHIRE HOTEL LTD T/AS THE DOLPHIN,50078,07/06/2021,DH019905,31/05-06/06/21,01/07/2021,17.5,350,367.5,Homelessness,B&B Accommodation,64401
http://statistics.data.gov.uk/id/local-authority/12UE,Huntingdonshire District Council,201485,CAMBRIDGESHIRE HOTEL LTD T/AS THE DOLPHIN,50079,23/06/2021,DH019906,25/05-26/06/21,15/07/2021,17.5,350,367.5,Homelessness,B&B Accommodation,64401
http://statistics.data.gov.uk/id/local-authority/12UE,Huntingdonshire District Council,201485,CAMBRIDGESHIRE HOTEL LTD T/AS THE DOLPHIN,50080,07/06/2021,DH019903,17-23/05/21,01/07/2021,17.5,350,367.5,Homelessness,B&B Accommodation,64401
http://statistics.data.gov.uk/id/local-authority/12UE,Huntingdonshire District Council,201485,CAMBRIDGESHIRE HOTEL LTD T/AS THE DOLPHIN,51346,26/07/2021,DH019915,HOUSING TA WE 250721,19/08/2021,17.5,350,367.5,Homelessness,B&B Accommodation,64401
http://statistics.data.gov.uk/id/local-authority/12UE,Huntingdonshire District Council,201485,CAMBRIDGESHIRE HOTEL LTD T/AS THE DOLPHIN,51345,26/07/2021,DH019914,TA HOUSING WE 180721,19/08/2021,17.5,350,367.5,Homelessness,B&B Accommodation,64401
http://statistics.data.gov.uk/id/local-authority/12UE,Huntingdonshire District Council,201485,CAMBRIDGESHIRE HOTEL LTD T/AS THE DOLPHIN,50119,24/06/2021,DH019908,14-20/06/21,22/07/2021,17.5,350,367.5,Homelessness,B&B Accommodation,64401
http://statistics.data.gov.uk/id/local-authority/12UE,Huntingdonshire District Council,201485,CAMBRIDGESHIRE HOTEL LTD T/AS THE DOLPHIN,50949,12/07/2021,DH019911,housing we 040721,05/08/2021,17.5,350,367.5,Homelessness,B&B Accommodation,64401
http://statistics.data.gov.uk/id/local-authority/12UE,Huntingdonshire District Council,201485,CAMBRIDGESHIRE HOTEL LTD T/AS THE DOLPHIN,50951,12/07/2021,DH019910,HOUSING WE 270621,05/08/2021,17.5,350,367.5,Homelessness,B&B Accommodation,64401
http://statistics.data.gov.uk/id/local-authority/12UE,Huntingdonshire District Council,201485,CAMBRIDGESHIRE HOTEL LTD T/AS THE DOLPHIN,50950,12/07/2021,DH019912,HOUSING WE 110721,05/08/2021,17.5,350,367.5,Homelessness,B&B Accommodation,64401
http://statistics.data.gov.uk/id/local-authority/12UE,Huntingdonshire District Council,201485,CAMBRIDGESHIRE HOTEL LTD T/AS THE DOLPHIN,50079,23/06/2021,DH019906,25/05-26/06/21,15/07/2021,17.5,350,367.5,Homelessness,B&B Accommodation,64401
http://statistics.data.gov.uk/id/local-authority/12UE,Huntingdonshire District Council,201485,CAMBRIDGESHIRE HOTEL LTD T/AS THE DOLPHIN,50080,07/06/2021,DH019903,17-23/05/21,01/07/2021,17.5,350,367.5,Homelessness,B&B Accommodation,64401
http://statistics.data.gov.uk/id/local-authority/12UE,Huntingdonshire District Council,201485,CAMBRIDGESHIRE HOTEL LTD T/AS THE DOLPHIN,50181,24/06/2021,DH019907,W/ 07.06 5 ROOMS,22/07/2021,17.5,350,367.5,Homelessness,B&B Accommodation,64401
http://statistics.data.gov.uk/id/local-authority/12UE,Huntingdonshire District Council,201485,CAMBRIDGESHIRE HOTEL LTD T/AS THE DOLPHIN,50078,07/06/2021,DH019905,31/05-06/06/21,01/07/2021,17.5,350,367.5,Homelessness,B&B Accommodation,64401
http://statistics.data.gov.uk/id/local-authority/12UE,Huntingdonshire District Council,201485,CAMBRIDGESHIRE HOTEL LTD T/AS THE DOLPHIN,50079,23/06/2021,DH019906,25/05-26/06/21,15/07/2021,5,100,105,Homelessness,B&B Accommodation,64401
http://statistics.data.gov.uk/id/local-authority/12UE,Huntingdonshire District Council,201485,CAMBRIDGESHIRE HOTEL LTD T/AS THE DOLPHIN,50080,07/06/2021,DH019903,17-23/05/21,01/07/2021,17.5,350,367.5,Homelessness,B&B Accommodation,64401
http://statistics.data.gov.uk/id/local-authority/12UE,Huntingdonshire District Council,201485,CAMBRIDGESHIRE HOTEL LTD T/AS THE DOLPHIN,51345,26/07/2021,DH019914,TA HOUSING WE 180721,19/08/2021,17.5,350,367.5,Homelessness,B&B Accommodation,64401
http://statistics.data.gov.uk/id/local-authority/12UE,Huntingdonshire District Council,201485,CAMBRIDGESHIRE HOTEL LTD T/AS THE DOLPHIN,50119,24/06/2021,DH019908,14-20/06/21,22/07/2021,17.5,350,367.5,Homelessness,B&B Accommodation,64401
http://statistics.data.gov.uk/id/local-authority/12UE,Huntingdonshire District Council,201485,CAMBRIDGESHIRE HOTEL LTD T/AS THE DOLPHIN,50949,12/07/2021,DH019911,housing we 040721,05/08/2021,17.5,350,367.5,Homelessness,B&B Accommodation,64401
http://statistics.data.gov.uk/id/local-authority/12UE,Huntingdonshire District Council,201485,CAMBRIDGESHIRE HOTEL LTD T/AS THE DOLPHIN,50951,12/07/2021,DH019910,HOUSING WE 270621,05/08/2021,17.5,350,367.5,Homelessness,B&B Accommodation,64401
http://statistics.data.gov.uk/id/local-authority/12UE,Huntingdonshire District Council,201485,CAMBRIDGESHIRE HOTEL LTD T/AS THE DOLPHIN,50950,12/07/2021,DH019912,HOUSING WE 110721,05/08/2021,17.5,350,367.5,Homelessness,B&B Accommodation,64401
http://statistics.data.gov.uk/id/local-authority/12UE,Huntingdonshire District Council,201485,CAMBRIDGESHIRE HOTEL LTD T/AS THE DOLPHIN,50181,24/06/2021,DH019907,W/ 07.06 5 ROOMS,22/07/2021,17.5,350,367.5,Homelessness,B&B Accommodation,64401
http://statistics.data.gov.uk/id/local-authority/12UE,Huntingdonshire District Council,201485,CAMBRIDGESHIRE HOTEL LTD T/AS THE DOLPHIN,50078,07/06/2021,DH019905,31/05-06/06/21,01/07/2021,5,100,105,Homelessness,B&B Accommodation,64401
http://statistics.data.gov.uk/id/local-authority/12UE,Huntingdonshire District Council,201485,CAMBRIDGESHIRE HOTEL LTD T/AS THE DOLPHIN,51346,26/07/2021,DH019915,HOUSING TA WE 250721,19/08/2021,17.5,350,367.5,Homelessness,B&B Accommodation,64401
http://statistics.data.gov.uk/id/local-authority/12UE,Huntingdonshire District Council,201485,CAMBRIDGESHIRE HOTEL LTD T/AS THE DOLPHIN,51345,26/07/2021,DH019914,TA HOUSING WE 180721,19/08/2021,17.5,350,367.5,Homelessness,B&B Accommodation,64401
http://statistics.data.gov.uk/id/local-authority/12UE,Huntingdonshire District Council,201485,CAMBRIDGESHIRE HOTEL LTD T/AS THE DOLPHIN,50119,24/06/2021,DH019908,14-20/06/21,22/07/2021,17.5,350,367.5,Homelessness,B&B Accommodation,64401
http://statistics.data.gov.uk/id/local-authority/12UE,Huntingdonshire District Council,201485,CAMBRIDGESHIRE HOTEL LTD T/AS THE DOLPHIN,50949,12/07/2021,DH019911,housing we 040721,05/08/2021,17.5,350,367.5,Homelessness,B&B Accommodation,64401
http://statistics.data.gov.uk/id/local-authority/12UE,Huntingdonshire District Council,201485,CAMBRIDGESHIRE HOTEL LTD T/AS THE DOLPHIN,50951,12/07/2021,DH019910,HOUSING WE 270621,05/08/2021,17.5,350,367.5,Homelessness,B&B Accommodation,64401
http://statistics.data.gov.uk/id/local-authority/12UE,Huntingdonshire District Council,201485,CAMBRIDGESHIRE HOTEL LTD T/AS THE DOLPHIN,50950,12/07/2021,DH019912,HOUSING WE 110721,05/08/2021,17.5,350,367.5,Homelessness,B&B Accommodation,64401
http://statistics.data.gov.uk/id/local-authority/12UE,Huntingdonshire District Council,201485,CAMBRIDGESHIRE HOTEL LTD T/AS THE DOLPHIN,50181,24/06/2021,DH019907,W/ 07.06 5 ROOMS,22/07/2021,2.5,50,52.5,Homelessness,B&B Accommodation,64401
http://statistics.data.gov.uk/id/local-authority/12UE,Huntingdonshire District Council,201485,CAMBRIDGESHIRE HOTEL LTD T/AS THE DOLPHIN,53124,22/08/2021,DH019918,LODGING 2607-010821,16/09/2021,17.5,350,367.5,Homelessness,B&B Accommodation,64401
http://statistics.data.gov.uk/id/local-authority/12UE,Huntingdonshire District Council,201485,CAMBRIDGESHIRE HOTEL LTD T/AS THE DOLPHIN,52824,22/08/2021,DH019919,LODDING 0208-080821,16/09/2021,17.5,350,367.5,Homelessness,B&B Accommodation,64401
http://statistics.data.gov.uk/id/local-authority/12UE,Huntingdonshire District Council,201485,CAMBRIDGESHIRE HOTEL LTD T/AS THE DOLPHIN,52847,22/08/2021,DH019920,LODGING 0908-150821,16/09/2021,5,100,105,Homelessness,B&B Accommodation,64401
http://statistics.data.gov.uk/id/local-authority/12UE,Huntingdonshire District Council,201485,CAMBRIDGESHIRE HOTEL LTD T/AS THE DOLPHIN,51346,26/07/2021,DH019915,HOUSING TA WE 250721,19/08/2021,17.5,350,367.5,Homelessness,B&B Accommodation,64401
http://statistics.data.gov.uk/id/local-authority/12UE,Huntingdonshire District Council,201485,CAMBRIDGESHIRE HOTEL LTD T/AS THE DOLPHIN,51345,26/07/2021,DH019914,TA HOUSING WE 180721,19/08/2021,17.5,350,367.5,Homelessness,B&B Accommodation,64401
http://statistics.data.gov.uk/id/local-authority/12UE,Huntingdonshire District Council,201485,CAMBRIDGESHIRE HOTEL LTD T/AS THE DOLPHIN,50949,12/07/2021,DH019911,housing we 040721,05/08/2021,10,200,210,Homelessness,B&B Accommodation,64401
http://statistics.data.gov.uk/id/local-authority/12UE,Huntingdonshire District Council,201485,CAMBRIDGESHIRE HOTEL LTD T/AS THE DOLPHIN,50950,12/07/2021,DH019912,HOUSING WE 110721,05/08/2021,17.5,350,367.5,Homelessness,B&B Accommodation,64401
http://statistics.data.gov.uk/id/local-authority/12UE,Huntingdonshire District Council,201485,CAMBRIDGESHIRE HOTEL LTD T/AS THE DOLPHIN,50950,12/07/2021,DH019912,HOUSING WE 110721,05/08/2021,7.5,150,157.5,Homelessness,B&B Accommodation,64401
http://statistics.data.gov.uk/id/local-authority/12UE,Huntingdonshire District Council,201485,CAMBRIDGESHIRE HOTEL LTD T/AS THE DOLPHIN,53124,22/08/2021,DH019918,LODGING 2607-010821,16/09/2021,17.5,350,367.5,Homelessness,B&B Accommodation,64401
http://statistics.data.gov.uk/id/local-authority/12UE,Huntingdonshire District Council,201485,CAMBRIDGESHIRE HOTEL LTD T/AS THE DOLPHIN,52824,22/08/2021,DH019919,LODDING 0208-080821,16/09/2021,17.5,350,367.5,Homelessness,B&B Accommodation,64401
http://statistics.data.gov.uk/id/local-authority/12UE,Huntingdonshire District Council,201485,CAMBRIDGESHIRE HOTEL LTD T/AS THE DOLPHIN,52847,22/08/2021,DH019920,LODGING 0908-150821,16/09/2021,17.5,350,367.5,Homelessness,B&B Accommodation,64401
http://statistics.data.gov.uk/id/local-authority/12UE,Huntingdonshire District Council,201485,CAMBRIDGESHIRE HOTEL LTD T/AS THE DOLPHIN,52848,23/08/2021,DH019921,LODGING 1608-2208,16/09/2021,17.5,350,367.5,Homelessness,B&B Accommodation,64401
http://statistics.data.gov.uk/id/local-authority/12UE,Huntingdonshire District Council,201485,CAMBRIDGESHIRE HOTEL LTD T/AS THE DOLPHIN,52920,03/09/2021,DH019923,LODGING 2308-290821,30/09/2021,17.5,350,367.5,Homelessness,B&B Accommodation,64401
http://statistics.data.gov.uk/id/local-authority/12UE,Huntingdonshire District Council,201485,CAMBRIDGESHIRE HOTEL LTD T/AS THE DOLPHIN,51346,26/07/2021,DH019915,HOUSING TA WE 250721,19/08/2021,17.5,350,367.5,Homelessness,B&B Accommodation,64401
http://statistics.data.gov.uk/id/local-authority/12UE,Huntingdonshire District Council,201485,CAMBRIDGESHIRE HOTEL LTD T/AS THE DOLPHIN,51345,26/07/2021,DH019914,TA HOUSING WE 180721,19/08/2021,17.5,350,367.5,Homelessness,B&B Accommodation,64401
http://statistics.data.gov.uk/id/local-authority/12UE,Huntingdonshire District Council,201485,CAMBRIDGESHIRE HOTEL LTD T/AS THE DOLPHIN,50949,12/07/2021,DH019911,housing we 040721,05/08/2021,5,100,105,Homelessness,B&B Accommodation,64401
http://statistics.data.gov.uk/id/local-authority/12UE,Huntingdonshire District Council,201485,CAMBRIDGESHIRE HOTEL LTD T/AS THE DOLPHIN,51346,26/07/2021,DH019915,HOUSING TA WE 250721,19/08/2021,17.5,350,367.5,Homelessness,B&B Accommodation,64401
http://statistics.data.gov.uk/id/local-authority/12UE,Huntingdonshire District Council,201485,CAMBRIDGESHIRE HOTEL LTD T/AS THE DOLPHIN,51345,26/07/2021,DH019914,TA HOUSING WE 180721,19/08/2021,17.5,350,367.5,Homelessness,B&B Accommodation,64401
http://statistics.data.gov.uk/id/local-authority/12UE,Huntingdonshire District Council,201485,CAMBRIDGESHIRE HOTEL LTD T/AS THE DOLPHIN,53124,22/08/2021,DH019918,LODGING 2607-010821,16/09/2021,17.5,350,367.5,Homelessness,B&B Accommodation,64401
http://statistics.data.gov.uk/id/local-authority/12UE,Huntingdonshire District Council,201485,CAMBRIDGESHIRE HOTEL LTD T/AS THE DOLPHIN,52824,22/08/2021,DH019919,LODDING 0208-080821,16/09/2021,17.5,350,367.5,Homelessness,B&B Accommodation,64401
http://statistics.data.gov.uk/id/local-authority/12UE,Huntingdonshire District Council,201485,CAMBRIDGESHIRE HOTEL LTD T/AS THE DOLPHIN,52847,22/08/2021,DH019920,LODGING 0908-150821,16/09/2021,7.5,150,157.5,Homelessness,B&B Accommodation,64401
http://statistics.data.gov.uk/id/local-authority/12UE,Huntingdonshire District Council,201485,CAMBRIDGESHIRE HOTEL LTD T/AS THE DOLPHIN,51346,26/07/2021,DH019915,HOUSING TA WE 250721,19/08/2021,17.5,350,367.5,Homelessness,B&B Accommodation,64401
http://statistics.data.gov.uk/id/local-authority/12UE,Huntingdonshire District Council,201485,CAMBRIDGESHIRE HOTEL LTD T/AS THE DOLPHIN,51345,26/07/2021,DH019914,TA HOUSING WE 180721,19/08/2021,7.5,150,157.5,Homelessness,B&B Accommodation,64401
http://statistics.data.gov.uk/id/local-authority/12UE,Huntingdonshire District Council,201485,CAMBRIDGESHIRE HOTEL LTD T/AS THE DOLPHIN,53124,22/08/2021,DH019918,LODGING 2607-010821,16/09/2021,17.5,350,367.5,Homelessness,B&B Accommodation,64401
http://statistics.data.gov.uk/id/local-authority/12UE,Huntingdonshire District Council,201485,CAMBRIDGESHIRE HOTEL LTD T/AS THE DOLPHIN,52824,22/08/2021,DH019919,LODDING 0208-080821,16/09/2021,7.5,150,157.5,Homelessness,B&B Accommodation,64401
http://statistics.data.gov.uk/id/local-authority/12UE,Huntingdonshire District Council,201485,CAMBRIDGESHIRE HOTEL LTD T/AS THE DOLPHIN,51346,26/07/2021,DH019915,HOUSING TA WE 250721,19/08/2021,15,300,315,Homelessness,B&B Accommodation,64401
http://statistics.data.gov.uk/id/local-authority/12UE,Huntingdonshire District Council,201485,CAMBRIDGESHIRE HOTEL LTD T/AS THE DOLPHIN,53124,22/08/2021,DH019918,LODGING 2607-010821,16/09/2021,5,100,105,Homelessness,B&B Accommodation,64401
http://statistics.data.gov.uk/id/local-authority/12UE,Huntingdonshire District Council,201485,CAMBRIDGESHIRE HOTEL LTD T/AS THE DOLPHIN,52847,22/08/2021,DH019920,LODGING 0908-150821,16/09/2021,7.5,150,157.5,Homelessness,B&B Accommodation,64401
http://statistics.data.gov.uk/id/local-authority/12UE,Huntingdonshire District Council,202646,Campbell Buchanan George LLP,51088,16/07/2021,PRF 21/70003/PENQ,PENQ NON DETERMINATION,02/08/2021,0,336,336,Dm Application Processing,Planning Applications Income,54100
http://statistics.data.gov.uk/id/local-authority/12UE,Huntingdonshire District Council,200169,CARE CHECK LTD CARE CHECK LTD,53240,31/08/2021,296485,DBS CHECK,23/09/2021,0,498,498,HR Services,Enquiries,63400
http://statistics.data.gov.uk/id/local-authority/12UE,Huntingdonshire District Council,200169,CARE CHECK LTD CARE CHECK LTD,53240,31/08/2021,296485,DBS CHECK,23/09/2021,15,75,90,HR Services,Enquiries,63400
http://statistics.data.gov.uk/id/local-authority/12UE,Huntingdonshire District Council,200170,CAREBASE CAREBASE,51210,14/07/2021,82504,CHIA CAMBS003,05/08/2021,0,2230,2230,Disables Facilities Grants,Mandatory Grants,64601
http://statistics.data.gov.uk/id/local-authority/12UE,Huntingdonshire District Council,202458,CARRINGTON WEST LTD,52435,19/08/2021,169644,REDACTED,16/09/2021,660,3300,3960,Development Management,Agency Staff,60011
http://statistics.data.gov.uk/id/local-authority/12UE,Huntingdonshire District Council,202458,CARRINGTON WEST LTD,49750,16/06/2021,163720,REDACTED,08/07/2021,605,3025,3630,Development Management,Agency Staff,60011
http://statistics.data.gov.uk/id/local-authority/12UE,Huntingdonshire District Council,202458,CARRINGTON WEST LTD,50081,23/06/2021,164426,REDACTED,15/07/2021,588.23,2941.13,3529.36,Development Management,Agency Staff,60011
http://statistics.data.gov.uk/id/local-authority/12UE,Huntingdonshire District Council,202458,CARRINGTON WEST LTD,51054,15/07/2021,166398,REDACTED,19/08/2021,569.25,2846.25,3415.5,Development Management,Agency Staff,60011
http://statistics.data.gov.uk/id/local-authority/12UE,Huntingdonshire District Council,202458,CARRINGTON WEST LTD,49749,16/06/2021,163721,AGENCY STAFF,08/07/2021,567.1,2835.5,3402.6,Development Management,Agency Staff,60011
http://statistics.data.gov.uk/id/local-authority/12UE,Huntingdonshire District Council,202458,CARRINGTON WEST LTD,51605,29/07/2021,167711,REDACTED,26/08/2021,552,2760,3312,Development Management,Agency Staff,60011
http://statistics.data.gov.uk/id/local-authority/12UE,Huntingdonshire District Council,202458,CARRINGTON WEST LTD,51606,29/07/2021,167715,REDACTED,26/08/2021,552,2760,3312,Development Management,Agency Staff,60011
http://statistics.data.gov.uk/id/local-authority/12UE,Huntingdonshire District Council,202458,CARRINGTON WEST LTD,51997,05/08/2021,168423,REDACTED,02/09/2021,552,2760,3312,Development Management,Agency Staff,60011
http://statistics.data.gov.uk/id/local-authority/12UE,Huntingdonshire District Council,202458,CARRINGTON WEST LTD,52164,12/08/2021,169055,REDACTED,09/09/2021,552,2760,3312,Development Management,Agency Staff,60011
http://statistics.data.gov.uk/id/local-authority/12UE,Huntingdonshire District Council,202458,CARRINGTON WEST LTD,52618,25/08/2021,170245,REDACTED,16/09/2021,552,2760,3312,Development Management,Agency Staff,60011
http://statistics.data.gov.uk/id/local-authority/12UE,Huntingdonshire District Council,202458,CARRINGTON WEST LTD,52844,01/09/2021,170908,REDACTED,23/09/2021,552,2760,3312,Development Management,Agency Staff,60011
http://statistics.data.gov.uk/id/local-authority/12UE,Huntingdonshire District Council,202458,CARRINGTON WEST LTD,50082,23/06/2021,164427,AGENCY STAFF,15/07/2021,550,2750,3300,Development Management,Agency Staff,60011
http://statistics.data.gov.uk/id/local-authority/12UE,Huntingdonshire District Council,202458,CARRINGTON WEST LTD,50748,08/07/2021,165688,REDACTED,02/08/2021,550,2750,3300,Development Management,Agency Staff,60011
http://statistics.data.gov.uk/id/local-authority/12UE,Huntingdonshire District Council,202458,CARRINGTON WEST LTD,51046,15/07/2021,166397,REDACTED,10/08/2021,550,2750,3300,Development Management,Agency Staff,60011
http://statistics.data.gov.uk/id/local-authority/12UE,Huntingdonshire District Council,202458,CARRINGTON WEST LTD,51288,22/07/2021,167057,REDACTED,19/08/2021,550,2750,3300,Development Management,Agency Staff,60011
http://statistics.data.gov.uk/id/local-authority/12UE,Huntingdonshire District Council,202458,CARRINGTON WEST LTD,51995,05/08/2021,168422,REDACTED,02/09/2021,550,2750,3300,Development Management,Agency Staff,60011
http://statistics.data.gov.uk/id/local-authority/12UE,Huntingdonshire District Council,202458,CARRINGTON WEST LTD,52845,01/09/2021,170911,REDACTED,23/09/2021,550,2750,3300,Development Management,Agency Staff,60011
http://statistics.data.gov.uk/id/local-authority/12UE,Huntingdonshire District Council,202458,CARRINGTON WEST LTD,53422,08/08/2021,169054,REDACTED,23/09/2021,550,2750,3300,Development Management,Agency Staff,60011
http://statistics.data.gov.uk/id/local-authority/12UE,Huntingdonshire District Council,202458,CARRINGTON WEST LTD,49540,10/06/2021,163073,AGENCY STAFF,08/07/2021,512.33,2561.63,3073.96,Development Management,Agency Staff,60011
http://statistics.data.gov.uk/id/local-authority/12UE,Huntingdonshire District Council,202458,CARRINGTON WEST LTD,50512,30/06/2021,165044,ESTATES STAFF,22/07/2021,440,2200,2640,Development Management,Agency Staff,60011
http://statistics.data.gov.uk/id/local-authority/12UE,Huntingdonshire District Council,202458,CARRINGTON WEST LTD,52114,05/08/2021,168425,REDACTED,02/09/2021,340.4,1702,2042.4,Development Management,Agency Staff,60011
http://statistics.data.gov.uk/id/local-authority/12UE,Huntingdonshire District Council,202458,CARRINGTON WEST LTD,52161,12/08/2021,169057,REDACTED,09/09/2021,340.4,1702,2042.4,Development Management,Agency Staff,60011
http://statistics.data.gov.uk/id/local-authority/12UE,Huntingdonshire District Council,202458,CARRINGTON WEST LTD,52642,25/08/2021,170250,REDACTED,16/09/2021,340.4,1702,2042.4,Development Management,Agency Staff,60011
http://statistics.data.gov.uk/id/local-authority/12UE,Huntingdonshire District Council,202458,CARRINGTON WEST LTD,52647,25/08/2021,170249,REDACTED,16/09/2021,331.2,1656,1987.2,Development Management,Agency Staff,60011
http://statistics.data.gov.uk/id/local-authority/12UE,Huntingdonshire District Council,202458,CARRINGTON WEST LTD,49531,10/06/2021,163072,AGENCY STAFF,08/07/2021,330,1650,1980,Development Management,Agency Staff,60011
http://statistics.data.gov.uk/id/local-authority/12UE,Huntingdonshire District Council,202458,CARRINGTON WEST LTD,51604,29/07/2021,167710,REDACTED,26/08/2021,330,1650,1980,Development Management,Agency Staff,60011
http://statistics.data.gov.uk/id/local-authority/12UE,Huntingdonshire District Council,202458,CARRINGTON WEST LTD,52843,01/09/2021,170909,REDACTED,23/09/2021,312.8,1564,1876.8,Development Management,Agency Staff,60011
http://statistics.data.gov.uk/id/local-authority/12UE,Huntingdonshire District Council,202458,CARRINGTON WEST LTD,52113,05/08/2021,168424,REDACTED,02/09/2021,246.4,1232,1478.4,Development Management,Agency Staff,60011
http://statistics.data.gov.uk/id/local-authority/12UE,Huntingdonshire District Council,202458,CARRINGTON WEST LTD,52644,25/08/2021,170248,REDACTED,16/09/2021,242.55,1212.75,1455.3,Development Management,Agency Staff,60011
http://statistics.data.gov.uk/id/local-authority/12UE,Huntingdonshire District Council,202458,CARRINGTON WEST LTD,52842,01/09/2021,170910,REDACTED,23/09/2021,238.28,1191.4,1429.68,Development Management,Agency Staff,60011
http://statistics.data.gov.uk/id/local-authority/12UE,Huntingdonshire District Council,202458,CARRINGTON WEST LTD,52849,25/08/2021,170251,REDACTED,16/09/2021,238.28,1191.4,1429.68,Development Management,Agency Staff,60011
http://statistics.data.gov.uk/id/local-authority/12UE,Huntingdonshire District Council,202458,CARRINGTON WEST LTD,52163,12/08/2021,169056,REDACTED,09/09/2021,219.45,1097.25,1316.7,Development Management,Agency Staff,60011
http://statistics.data.gov.uk/id/local-authority/12UE,Huntingdonshire District Council,202458,CARRINGTON WEST LTD,52110,29/07/2021,167713,REDACTED,26/08/2021,211.75,1058.75,1270.5,Development Management,Agency Staff,60011
http://statistics.data.gov.uk/id/local-authority/12UE,Huntingdonshire District Council,202458,CARRINGTON WEST LTD,53016,25/08/2021,170247,REDACTED,16/09/2021,211.75,1058.75,1270.5,Development Management,Agency Staff,60011
http://statistics.data.gov.uk/id/local-authority/12UE,Huntingdonshire District Council,202458,CARRINGTON WEST LTD,52838,19/08/2021,169646,REDACTED,16/09/2021,193.2,966,1159.2,Development Management,Agency Staff,60011
http://statistics.data.gov.uk/id/local-authority/12UE,Huntingdonshire District Council,202458,CARRINGTON WEST LTD,52840,25/08/2021,170252,REDACTED,16/09/2021,190.62,953.12,1143.74,Development Management,Agency Staff,60011
http://statistics.data.gov.uk/id/local-authority/12UE,Huntingdonshire District Council,202458,CARRINGTON WEST LTD,52111,29/07/2021,167714,REDACTED,26/08/2021,151.8,759,910.8,Development Management,Agency Staff,60011
http://statistics.data.gov.uk/id/local-authority/12UE,Huntingdonshire District Council,202458,CARRINGTON WEST LTD,52109,29/07/2021,167712,REDACTED,26/08/2021,142.45,712.25,854.7,Development Management,Agency Staff,60011
http://statistics.data.gov.uk/id/local-authority/12UE,Huntingdonshire District Council,202458,CARRINGTON WEST LTD,52434,19/08/2021,169645,REDACTED,16/09/2021,110.4,552,662.4,Development Management,Agency Staff,60011
http://statistics.data.gov.uk/id/local-authority/12UE,Huntingdonshire District Council,202458,CARRINGTON WEST LTD,50747,08/07/2021,165689,REDACTED,02/08/2021,101.2,506,607.2,Development Management,Agency Staff,60011
http://statistics.data.gov.uk/id/local-authority/12UE,Huntingdonshire District Council,202458,CARRINGTON WEST LTD,52643,25/08/2021,170246,REDACTED,16/09/2021,65.45,327.25,392.7,Development Management,Agency Staff,60011
http://statistics.data.gov.uk/id/local-authority/12UE,Huntingdonshire District Council,202458,CARRINGTON WEST LTD,50081,23/06/2021,164426,AGENCY STAFF,15/07/2021,-0.01,0,-0.01,Finance,Over/Under VAT Rounding,68350
http://statistics.data.gov.uk/id/local-authority/12UE,Huntingdonshire District Council,202458,CARRINGTON WEST LTD,49540,10/06/2021,163073,AGENCY STAFF,08/07/2021,-0.01,0,-0.01,Finance,Over/Under VAT Rounding,68350
http://statistics.data.gov.uk/id/local-authority/12UE,Huntingdonshire District Council,201011,CENTENNIAL PROPERTY LTD,50487,01/07/2021,CP-HDC110,HOUSING TA,08/07/2021,33.75,675,708.75,Homelessness,B&B Accommodation,64401
http://statistics.data.gov.uk/id/local-authority/12UE,Huntingdonshire District Council,201011,CENTENNIAL PROPERTY LTD,51188,19/07/2021,CP-HDC111,HOUSING TA WE 190721,29/07/2021,15.75,315,330.75,Homelessness,B&B Accommodation,64401
http://statistics.data.gov.uk/id/local-authority/12UE,Huntingdonshire District Council,201011,CENTENNIAL PROPERTY LTD,50487,01/07/2021,CP-HDC110,HOUSING TA,08/07/2021,33.75,675,708.75,Homelessness,B&B Accommodation,64401
http://statistics.data.gov.uk/id/local-authority/12UE,Huntingdonshire District Council,201011,CENTENNIAL PROPERTY LTD,51188,19/07/2021,CP-HDC111,HOUSING TA WE 190721,29/07/2021,36,720,756,Homelessness,B&B Accommodation,64401
http://statistics.data.gov.uk/id/local-authority/12UE,Huntingdonshire District Council,201011,CENTENNIAL PROPERTY LTD,52552,01/08/2021,CP-HDC112,HOUSING TA 170721-310721,26/08/2021,33.75,675,708.75,Homelessness,B&B Accommodation,64401
http://statistics.data.gov.uk/id/local-authority/12UE,Huntingdonshire District Council,201011,CENTENNIAL PROPERTY LTD,53485,16/09/2021,CP-HDC115,TA 0109-150921,23/09/2021,22.5,450,472.5,Homelessness,B&B Accommodation,64401
http://statistics.data.gov.uk/id/local-authority/12UE,Huntingdonshire District Council,201011,CENTENNIAL PROPERTY LTD,53485,16/09/2021,CP-HDC115,TA 0109-150921,23/09/2021,33.75,675,708.75,Homelessness,B&B Accommodation,64401
http://statistics.data.gov.uk/id/local-authority/12UE,Huntingdonshire District Council,201011,CENTENNIAL PROPERTY LTD,52503,17/08/2021,CP-HDC113,HOUSING TA 010821-160821,26/08/2021,36,720,756,Homelessness,B&B Accommodation,64401
http://statistics.data.gov.uk/id/local-authority/12UE,Huntingdonshire District Council,201011,CENTENNIAL PROPERTY LTD,52894,01/09/2021,CP-HDC114R,TA HOUSING 1708-310821,09/09/2021,33.75,675,708.75,Homelessness,B&B Accommodation,64401
http://statistics.data.gov.uk/id/local-authority/12UE,Huntingdonshire District Council,201011,CENTENNIAL PROPERTY LTD,50487,01/07/2021,CP-HDC110,HOUSING TA,08/07/2021,33.75,675,708.75,Homelessness,B&B Accommodation,64401
http://statistics.data.gov.uk/id/local-authority/12UE,Huntingdonshire District Council,201011,CENTENNIAL PROPERTY LTD,53485,16/09/2021,CP-HDC115,TA 0109-150921,23/09/2021,33.75,675,708.75,Homelessness,B&B Accommodation,64401
http://statistics.data.gov.uk/id/local-authority/12UE,Huntingdonshire District Council,201011,CENTENNIAL PROPERTY LTD,51188,19/07/2021,CP-HDC111,HOUSING TA WE 190721,29/07/2021,36,720,756,Homelessness,B&B Accommodation,64401
http://statistics.data.gov.uk/id/local-authority/12UE,Huntingdonshire District Council,201011,CENTENNIAL PROPERTY LTD,52503,17/08/2021,CP-HDC113,HOUSING TA 010821-160821,26/08/2021,36,720,756,Homelessness,B&B Accommodation,64401
http://statistics.data.gov.uk/id/local-authority/12UE,Huntingdonshire District Council,201011,CENTENNIAL PROPERTY LTD,52894,01/09/2021,CP-HDC114R,TA HOUSING 1708-310821,09/09/2021,33.75,675,708.75,Homelessness,B&B Accommodation,64401
http://statistics.data.gov.uk/id/local-authority/12UE,Huntingdonshire District Council,201011,CENTENNIAL PROPERTY LTD,52552,01/08/2021,CP-HDC112,HOUSING TA 170721-310721,26/08/2021,33.75,675,708.75,Homelessness,B&B Accommodation,64401
http://statistics.data.gov.uk/id/local-authority/12UE,Huntingdonshire District Council,201011,CENTENNIAL PROPERTY LTD,50487,01/07/2021,CP-HDC110,HOUSING TA,08/07/2021,28.5,570,598.5,Homelessness,B&B Accommodation,64401
http://statistics.data.gov.uk/id/local-authority/12UE,Huntingdonshire District Council,201011,CENTENNIAL PROPERTY LTD,53485,16/09/2021,CP-HDC115,TA 0109-150921,23/09/2021,28.5,570,598.5,Homelessness,B&B Accommodation,64401
http://statistics.data.gov.uk/id/local-authority/12UE,Huntingdonshire District Council,201011,CENTENNIAL PROPERTY LTD,51188,19/07/2021,CP-HDC111,HOUSING TA WE 190721,29/07/2021,30.4,608,638.4,Homelessness,B&B Accommodation,64401
http://statistics.data.gov.uk/id/local-authority/12UE,Huntingdonshire District Council,201011,CENTENNIAL PROPERTY LTD,52503,17/08/2021,CP-HDC113,HOUSING TA 010821-160821,26/08/2021,30.4,608,638.4,Homelessness,B&B Accommodation,64401
http://statistics.data.gov.uk/id/local-authority/12UE,Huntingdonshire District Council,201011,CENTENNIAL PROPERTY LTD,52894,01/09/2021,CP-HDC114R,TA HOUSING 1708-310821,09/09/2021,28.5,570,598.5,Homelessness,B&B Accommodation,64401
http://statistics.data.gov.uk/id/local-authority/12UE,Huntingdonshire District Council,201011,CENTENNIAL PROPERTY LTD,52552,01/08/2021,CP-HDC112,HOUSING TA 170721-310721,26/08/2021,28.5,570,598.5,Homelessness,B&B Accommodation,64401
http://statistics.data.gov.uk/id/local-authority/12UE,Huntingdonshire District Council,201011,CENTENNIAL PROPERTY LTD,50487,01/07/2021,CP-HDC110,HOUSING TA,08/07/2021,33.75,675,708.75,Homelessness,B&B Accommodation,64401
http://statistics.data.gov.uk/id/local-authority/12UE,Huntingdonshire District Council,201011,CENTENNIAL PROPERTY LTD,53485,16/09/2021,CP-HDC115,TA 0109-150921,23/09/2021,33.75,675,708.75,Homelessness,B&B Accommodation,64401
http://statistics.data.gov.uk/id/local-authority/12UE,Huntingdonshire District Council,201011,CENTENNIAL PROPERTY LTD,51188,19/07/2021,CP-HDC111,HOUSING TA WE 190721,29/07/2021,36,720,756,Homelessness,B&B Accommodation,64401
http://statistics.data.gov.uk/id/local-authority/12UE,Huntingdonshire District Council,201011,CENTENNIAL PROPERTY LTD,52503,17/08/2021,CP-HDC113,HOUSING TA 010821-160821,26/08/2021,36,720,756,Homelessness,B&B Accommodation,64401
http://statistics.data.gov.uk/id/local-authority/12UE,Huntingdonshire District Council,201011,CENTENNIAL PROPERTY LTD,52894,01/09/2021,CP-HDC114R,TA HOUSING 1708-310821,09/09/2021,33.75,675,708.75,Homelessness,B&B Accommodation,64401
http://statistics.data.gov.uk/id/local-authority/12UE,Huntingdonshire District Council,201011,CENTENNIAL PROPERTY LTD,52552,01/08/2021,CP-HDC112,HOUSING TA 170721-310721,26/08/2021,33.75,675,708.75,Homelessness,B&B Accommodation,64401
http://statistics.data.gov.uk/id/local-authority/12UE,Huntingdonshire District Council,201011,CENTENNIAL PROPERTY LTD,50487,01/07/2021,CP-HDC110,HOUSING TA,08/07/2021,31.5,630,661.5,Homelessness,B&B Accommodation,64401
http://statistics.data.gov.uk/id/local-authority/12UE,Huntingdonshire District Council,201011,CENTENNIAL PROPERTY LTD,50487,01/07/2021,CP-HDC110,HOUSING TA,08/07/2021,28.5,570,598.5,Homelessness,B&B Accommodation,64401
http://statistics.data.gov.uk/id/local-authority/12UE,Huntingdonshire District Council,201011,CENTENNIAL PROPERTY LTD,53485,16/09/2021,CP-HDC115,TA 0109-150921,23/09/2021,28.5,570,598.5,Homelessness,B&B Accommodation,64401
http://statistics.data.gov.uk/id/local-authority/12UE,Huntingdonshire District Council,201011,CENTENNIAL PROPERTY LTD,51188,19/07/2021,CP-HDC111,HOUSING TA WE 190721,29/07/2021,30.4,608,638.4,Homelessness,B&B Accommodation,64401
http://statistics.data.gov.uk/id/local-authority/12UE,Huntingdonshire District Council,201011,CENTENNIAL PROPERTY LTD,52503,17/08/2021,CP-HDC113,HOUSING TA 010821-160821,26/08/2021,30.4,608,638.4,Homelessness,B&B Accommodation,64401
http://statistics.data.gov.uk/id/local-authority/12UE,Huntingdonshire District Council,201011,CENTENNIAL PROPERTY LTD,52894,01/09/2021,CP-HDC114R,TA HOUSING 1708-310821,09/09/2021,28.5,570,598.5,Homelessness,B&B Accommodation,64401
http://statistics.data.gov.uk/id/local-authority/12UE,Huntingdonshire District Council,201011,CENTENNIAL PROPERTY LTD,52552,01/08/2021,CP-HDC112,HOUSING TA 170721-310721,26/08/2021,28.5,570,598.5,Homelessness,B&B Accommodation,64401
http://statistics.data.gov.uk/id/local-authority/12UE,Huntingdonshire District Council,201011,CENTENNIAL PROPERTY LTD,50487,01/07/2021,CP-HDC110,HOUSING TA,08/07/2021,41.25,825,866.25,Homelessness,B&B Accommodation,64401
http://statistics.data.gov.uk/id/local-authority/12UE,Huntingdonshire District Council,201011,CENTENNIAL PROPERTY LTD,53485,16/09/2021,CP-HDC115,TA 0109-150921,23/09/2021,41.25,825,866.25,Homelessness,B&B Accommodation,64401
http://statistics.data.gov.uk/id/local-authority/12UE,Huntingdonshire District Council,201011,CENTENNIAL PROPERTY LTD,51188,19/07/2021,CP-HDC111,HOUSING TA WE 190721,29/07/2021,44,880,924,Homelessness,B&B Accommodation,64401
http://statistics.data.gov.uk/id/local-authority/12UE,Huntingdonshire District Council,201011,CENTENNIAL PROPERTY LTD,52503,17/08/2021,CP-HDC113,HOUSING TA 010821-160821,26/08/2021,44,880,924,Homelessness,B&B Accommodation,64401
http://statistics.data.gov.uk/id/local-authority/12UE,Huntingdonshire District Council,201011,CENTENNIAL PROPERTY LTD,52894,01/09/2021,CP-HDC114R,TA HOUSING 1708-310821,09/09/2021,41.25,825,866.25,Homelessness,B&B Accommodation,64401
http://statistics.data.gov.uk/id/local-authority/12UE,Huntingdonshire District Council,201011,CENTENNIAL PROPERTY LTD,52552,01/08/2021,CP-HDC112,HOUSING TA 170721-310721,26/08/2021,41.25,825,866.25,Homelessness,B&B Accommodation,64401
http://statistics.data.gov.uk/id/local-authority/12UE,Huntingdonshire District Council,201011,CENTENNIAL PROPERTY LTD,50487,01/07/2021,CP-HDC110,HOUSING TA,08/07/2021,28.5,570,598.5,Homelessness,B&B Accommodation,64401
http://statistics.data.gov.uk/id/local-authority/12UE,Huntingdonshire District Council,201011,CENTENNIAL PROPERTY LTD,51188,19/07/2021,CP-HDC111,HOUSING TA WE 190721,29/07/2021,11.4,228,239.4,Homelessness,B&B Accommodation,64401
http://statistics.data.gov.uk/id/local-authority/12UE,Huntingdonshire District Council,201011,CENTENNIAL PROPERTY LTD,50487,01/07/2021,CP-HDC110,HOUSING TA,08/07/2021,28.5,570,598.5,Homelessness,B&B Accommodation,64401
http://statistics.data.gov.uk/id/local-authority/12UE,Huntingdonshire District Council,201011,CENTENNIAL PROPERTY LTD,53485,16/09/2021,CP-HDC115,TA 0109-150921,23/09/2021,28.5,570,598.5,Homelessness,B&B Accommodation,64401
http://statistics.data.gov.uk/id/local-authority/12UE,Huntingdonshire District Council,201011,CENTENNIAL PROPERTY LTD,51188,19/07/2021,CP-HDC111,HOUSING TA WE 190721,29/07/2021,30.4,608,638.4,Homelessness,B&B Accommodation,64401
http://statistics.data.gov.uk/id/local-authority/12UE,Huntingdonshire District Council,201011,CENTENNIAL PROPERTY LTD,52503,17/08/2021,CP-HDC113,HOUSING TA 010821-160821,26/08/2021,30.4,608,638.4,Homelessness,B&B Accommodation,64401
http://statistics.data.gov.uk/id/local-authority/12UE,Huntingdonshire District Council,201011,CENTENNIAL PROPERTY LTD,52894,01/09/2021,CP-HDC114R,TA HOUSING 1708-310821,09/09/2021,28.5,570,598.5,Homelessness,B&B Accommodation,64401
http://statistics.data.gov.uk/id/local-authority/12UE,Huntingdonshire District Council,201011,CENTENNIAL PROPERTY LTD,52552,01/08/2021,CP-HDC112,HOUSING TA 170721-310721,26/08/2021,28.5,570,598.5,Homelessness,B&B Accommodation,64401
http://statistics.data.gov.uk/id/local-authority/12UE,Huntingdonshire District Council,201011,CENTENNIAL PROPERTY LTD,50487,01/07/2021,CP-HDC110,HOUSING TA,08/07/2021,28.5,570,598.5,Homelessness,B&B Accommodation,64401
http://statistics.data.gov.uk/id/local-authority/12UE,Huntingdonshire District Council,201011,CENTENNIAL PROPERTY LTD,53485,16/09/2021,CP-HDC115,TA 0109-150921,23/09/2021,28.5,570,598.5,Homelessness,B&B Accommodation,64401
http://statistics.data.gov.uk/id/local-authority/12UE,Huntingdonshire District Council,201011,CENTENNIAL PROPERTY LTD,51188,19/07/2021,CP-HDC111,HOUSING TA WE 190721,29/07/2021,30.4,608,638.4,Homelessness,B&B Accommodation,64401
http://statistics.data.gov.uk/id/local-authority/12UE,Huntingdonshire District Council,201011,CENTENNIAL PROPERTY LTD,52503,17/08/2021,CP-HDC113,HOUSING TA 010821-160821,26/08/2021,30.4,608,638.4,Homelessness,B&B Accommodation,64401
http://statistics.data.gov.uk/id/local-authority/12UE,Huntingdonshire District Council,201011,CENTENNIAL PROPERTY LTD,52894,01/09/2021,CP-HDC114R,TA HOUSING 1708-310821,09/09/2021,28.5,570,598.5,Homelessness,B&B Accommodation,64401
http://statistics.data.gov.uk/id/local-authority/12UE,Huntingdonshire District Council,201011,CENTENNIAL PROPERTY LTD,52552,01/08/2021,CP-HDC112,HOUSING TA 170721-310721,26/08/2021,28.5,570,598.5,Homelessness,B&B Accommodation,64401
http://statistics.data.gov.uk/id/local-authority/12UE,Huntingdonshire District Council,201011,CENTENNIAL PROPERTY LTD,53485,16/09/2021,CP-HDC115,TA 0109-150921,23/09/2021,33.75,675,708.75,Homelessness,B&B Accommodation,64401
http://statistics.data.gov.uk/id/local-authority/12UE,Huntingdonshire District Council,201011,CENTENNIAL PROPERTY LTD,52894,01/09/2021,CP-HDC114R,TA HOUSING 1708-310821,09/09/2021,2.25,45,47.25,Homelessness,B&B Accommodation,64401
http://statistics.data.gov.uk/id/local-authority/12UE,Huntingdonshire District Council,200181,CFL ESTATE SERVICES CFL ESTATE SERVICES,53057,07/09/2021,HDC129,ESTATE PORTFOLIO AUG21,30/09/2021,0,312,312,Bridge Place Car Park Const,Agency Staff,60011
http://statistics.data.gov.uk/id/local-authority/12UE,Huntingdonshire District Council,202483,CHILTERN INVADEX (UK) LTD,51731,27/07/2021,482644,CHIA SHOWER,19/08/2021,0,8149,8149,Disables Facilities Grants,Mandatory Grants,64601
http://statistics.data.gov.uk/id/local-authority/12UE,Huntingdonshire District Council,200190,CHIPSIDE CHIPSIDE,51982,31/07/2021,S214164,Ops parking fees,26/08/2021,326.25,1631.23,1957.48,Car Park Management,Contract Charges ,61800
http://statistics.data.gov.uk/id/local-authority/12UE,Huntingdonshire District Council,200190,CHIPSIDE CHIPSIDE,51982,31/07/2021,S214164,Ops parking fees,26/08/2021,0.09,0.43,0.52,Car Park Management,Contract Charges ,61800
http://statistics.data.gov.uk/id/local-authority/12UE,Huntingdonshire District Council,200190,CHIPSIDE CHIPSIDE,51982,31/07/2021,S214164,Ops parking fees,26/08/2021,1.2,6,7.2,Car Park Management,Contract Charges ,61800
http://statistics.data.gov.uk/id/local-authority/12UE,Huntingdonshire District Council,200190,CHIPSIDE CHIPSIDE,50717,31/05/2021,S213372,PARKING MAY 21,08/07/2021,279.17,1395.83,1675,Car Park Management,Contract Charges ,61800
http://statistics.data.gov.uk/id/local-authority/12UE,Huntingdonshire District Council,200190,CHIPSIDE CHIPSIDE,52208,31/07/2021,S214236,PARKING CASHLESS MACHINE,26/08/2021,92.17,460.83,553,Car Park Management,Contract Charges ,61800
http://statistics.data.gov.uk/id/local-authority/12UE,Huntingdonshire District Council,200190,CHIPSIDE CHIPSIDE,52208,31/07/2021,S214236,PARKING CASHLESS MACHINE,26/08/2021,0.18,0.92,1.1,Car Park Management,Contract Charges ,61800
http://statistics.data.gov.uk/id/local-authority/12UE,Huntingdonshire District Council,200190,CHIPSIDE CHIPSIDE,50716,31/05/2021,S213443,PARKING MAY 21,08/07/2021,67.4,337.01,404.41,Car Park Management,Contract Charges ,61800
http://statistics.data.gov.uk/id/local-authority/12UE,Huntingdonshire District Council,200190,CHIPSIDE CHIPSIDE,50716,31/05/2021,S213443,PARKING MAY 21,08/07/2021,0.18,0.92,1.1,Car Park Management,Contract Charges ,61800
http://statistics.data.gov.uk/id/local-authority/12UE,Huntingdonshire District Council,200190,CHIPSIDE CHIPSIDE,53489,25/08/2021,S214330,CHIPASSIST 070721-090722,23/09/2021,380,1900,2280,Car Park Management,Ict Software,64071
http://statistics.data.gov.uk/id/local-authority/12UE,Huntingdonshire District Council,200190,CHIPSIDE CHIPSIDE,53490,25/08/2021,S214329,CHIPASSIST 070721-090722,23/09/2021,244.37,1221.87,1466.24,Car Park Management,Ict Software,64071
http://statistics.data.gov.uk/id/local-authority/12UE,Huntingdonshire District Council,200190,CHIPSIDE CHIPSIDE,49723,16/06/2021,S213483,CAR PARK MACHINES,08/07/2021,71.6,358,429.6,Car Park Management,Ict Software,64071
http://statistics.data.gov.uk/id/local-authority/12UE,Huntingdonshire District Council,200190,CHIPSIDE CHIPSIDE,50716,31/05/2021,S213443,PARKING MAY 21,08/07/2021,0.01,0,0.01,Finance,Over/Under VAT Rounding,68350
http://statistics.data.gov.uk/id/local-authority/12UE,Huntingdonshire District Council,200511,CHORUS HOMES GROUP LTD,53319,09/09/2021,1169287,HOME PARK FEE 0107-300921,16/09/2021,1320.49,6602.43,7922.92,Mobile Home Park,Management Charge,60411
http://statistics.data.gov.uk/id/local-authority/12UE,Huntingdonshire District Council,200511.01,CHORUS HOMES LTD (PRIVATE RENTS),50977,13/07/2021,506883,H/L PREVENTION PAYMENT,15/07/2021,0,661.38,661.38,Homelessness,Homeless Prevention Payments,64403
http://statistics.data.gov.uk/id/local-authority/12UE,Huntingdonshire District Council,200511.01,CHORUS HOMES LTD (PRIVATE RENTS),53585,23/09/2021,REDACTED,REDACTED,30/09/2021,0,440.64,440.64,Homelessness,Homeless Prevention Payments,64403
http://statistics.data.gov.uk/id/local-authority/12UE,Huntingdonshire District Council,202628,REDACTED,51305,26/07/2021,REDACTED,prf independent remuneration panel,02/08/2021,0,250,250,Member Allowances & Support,Consultancy Fees,62400
http://statistics.data.gov.uk/id/local-authority/12UE,Huntingdonshire District Council,200197,CIVICA UK LTD CIVICA UK LTD,53184,31/07/2021,M/MG089979,ANNUAL LICENSES,16/09/2021,1514.43,7572.15,9086.58,HDC Business Case ,Ict Software,64071
http://statistics.data.gov.uk/id/local-authority/12UE,Huntingdonshire District Council,201534,CLARION HOUSING,52585,16/08/2021,C200343341,RENT ARREARS,26/08/2021,0,1966,1966,Homelessness,Homeless Prevention Payments,64403
http://statistics.data.gov.uk/id/local-authority/12UE,Huntingdonshire District Council,201573,CLC CONTRACTORS LTD,52763,26/08/2021,INV001409,PAPWORTH 190250,23/09/2021,0,6157.5,6157.5,Disables Facilities Grants,Mandatory Grants,64601
http://statistics.data.gov.uk/id/local-authority/12UE,Huntingdonshire District Council,202512,CLICK IT LOCAL LTD,51594,01/08/2021,INV-0218, 12 months program,05/08/2021,1500,7500,9000,ARG Economic Development,Ict Software,64071
http://statistics.data.gov.uk/id/local-authority/12UE,Huntingdonshire District Council,201012,COACH & HORSES,51714,02/08/2021,499,HOUSING TA WC 260721,10/08/2021,9,180,189,Homelessness,B&B Accommodation,64401
http://statistics.data.gov.uk/id/local-authority/12UE,Huntingdonshire District Council,201012,COACH & HORSES,52099,09/08/2021,500,housing ta we 080821,12/08/2021,15.75,315,330.75,Homelessness,B&B Accommodation,64401
http://statistics.data.gov.uk/id/local-authority/12UE,Huntingdonshire District Council,201012,COACH & HORSES,50199,27/06/2021,494,housing TA C&H,01/07/2021,4.5,90,94.5,Homelessness,B&B Accommodation,64401
http://statistics.data.gov.uk/id/local-authority/12UE,Huntingdonshire District Council,201012,COACH & HORSES,50199,27/06/2021,494,housing TA C&H,01/07/2021,14,280,294,Homelessness,B&B Accommodation,64401
http://statistics.data.gov.uk/id/local-authority/12UE,Huntingdonshire District Council,201012,COACH & HORSES,50952,11/07/2021,496,HOUSING 110721,15/07/2021,14,280,294,Homelessness,B&B Accommodation,64401
http://statistics.data.gov.uk/id/local-authority/12UE,Huntingdonshire District Council,201012,COACH & HORSES,50660,04/07/2021,495,HOUSING TA WE 04/07/21,08/07/2021,14,280,294,Homelessness,B&B Accommodation,64401
http://statistics.data.gov.uk/id/local-authority/12UE,Huntingdonshire District Council,201012,COACH & HORSES,51120,18/07/2021,497,housing ta we 180721,22/07/2021,14,280,294,Homelessness,B&B Accommodation,64401
http://statistics.data.gov.uk/id/local-authority/12UE,Huntingdonshire District Council,201012,COACH & HORSES,50952,11/07/2021,496,HOUSING 110721,15/07/2021,14,280,294,Homelessness,B&B Accommodation,64401
http://statistics.data.gov.uk/id/local-authority/12UE,Huntingdonshire District Council,201012,COACH & HORSES,50660,04/07/2021,495,HOUSING TA WE 04/07/21,08/07/2021,14,280,294,Homelessness,B&B Accommodation,64401
http://statistics.data.gov.uk/id/local-authority/12UE,Huntingdonshire District Council,201012,COACH & HORSES,51120,18/07/2021,497,housing ta we 180721,22/07/2021,14,280,294,Homelessness,B&B Accommodation,64401
http://statistics.data.gov.uk/id/local-authority/12UE,Huntingdonshire District Council,201012,COACH & HORSES,51714,02/08/2021,499,HOUSING TA WC 260721,10/08/2021,2.25,45,47.25,Homelessness,B&B Accommodation,64401
http://statistics.data.gov.uk/id/local-authority/12UE,Huntingdonshire District Council,201012,COACH & HORSES,51348,26/07/2021,498,HOUSING TA WE 260721,29/07/2021,11.25,225,236.25,Homelessness,B&B Accommodation,64401
http://statistics.data.gov.uk/id/local-authority/12UE,Huntingdonshire District Council,201012,COACH & HORSES,52265,15/08/2021,501,COACH&HORSE GH,19/08/2021,4.5,90,94.5,Homelessness,B&B Accommodation,64401
http://statistics.data.gov.uk/id/local-authority/12UE,Huntingdonshire District Council,201012,COACH & HORSES,53007,05/09/2021,504,LODGING 3008-050921,09/09/2021,13.5,270,283.5,Homelessness,B&B Accommodation,64401
http://statistics.data.gov.uk/id/local-authority/12UE,Huntingdonshire District Council,201012,COACH & HORSES,53318,12/09/2021,505,LODGING 0609-120921,16/09/2021,15.75,315,330.75,Homelessness,B&B Accommodation,64401
http://statistics.data.gov.uk/id/local-authority/12UE,Huntingdonshire District Council,201012,COACH & HORSES,53495,19/09/2021,506,LODGING 1309-190921,23/09/2021,2.25,45,47.25,Homelessness,B&B Accommodation,64401
http://statistics.data.gov.uk/id/local-authority/12UE,Huntingdonshire District Council,201012,COACH & HORSES,50199,27/06/2021,494,housing TA C&H,01/07/2021,14,280,294,Homelessness,B&B Accommodation,64401
http://statistics.data.gov.uk/id/local-authority/12UE,Huntingdonshire District Council,201012,COACH & HORSES,50199,27/06/2021,494,housing TA C&H,01/07/2021,15.75,315,330.75,Homelessness,B&B Accommodation,64401
http://statistics.data.gov.uk/id/local-authority/12UE,Huntingdonshire District Council,201012,COACH & HORSES,50952,11/07/2021,496,HOUSING 110721,15/07/2021,15.75,315,330.75,Homelessness,B&B Accommodation,64401
http://statistics.data.gov.uk/id/local-authority/12UE,Huntingdonshire District Council,201012,COACH & HORSES,50660,04/07/2021,495,HOUSING TA WE 04/07/21,08/07/2021,15.75,315,330.75,Homelessness,B&B Accommodation,64401
http://statistics.data.gov.uk/id/local-authority/12UE,Huntingdonshire District Council,201012,COACH & HORSES,51120,18/07/2021,497,housing ta we 180721,22/07/2021,15.75,315,330.75,Homelessness,B&B Accommodation,64401
http://statistics.data.gov.uk/id/local-authority/12UE,Huntingdonshire District Council,201012,COACH & HORSES,50199,27/06/2021,494,housing TA C&H,01/07/2021,15.75,315,330.75,Homelessness,B&B Accommodation,64401
http://statistics.data.gov.uk/id/local-authority/12UE,Huntingdonshire District Council,201012,COACH & HORSES,50952,11/07/2021,496,HOUSING 110721,15/07/2021,15.75,315,330.75,Homelessness,B&B Accommodation,64401
http://statistics.data.gov.uk/id/local-authority/12UE,Huntingdonshire District Council,201012,COACH & HORSES,50660,04/07/2021,495,HOUSING TA WE 04/07/21,08/07/2021,15.75,315,330.75,Homelessness,B&B Accommodation,64401
http://statistics.data.gov.uk/id/local-authority/12UE,Huntingdonshire District Council,201012,COACH & HORSES,51120,18/07/2021,497,housing ta we 180721,22/07/2021,2.25,45,47.25,Homelessness,B&B Accommodation,64401
http://statistics.data.gov.uk/id/local-authority/12UE,Huntingdonshire District Council,201012,COACH & HORSES,51714,02/08/2021,499,HOUSING TA WC 260721,10/08/2021,15.75,315,330.75,Homelessness,B&B Accommodation,64401
http://statistics.data.gov.uk/id/local-authority/12UE,Huntingdonshire District Council,201012,COACH & HORSES,51348,26/07/2021,498,HOUSING TA WE 260721,29/07/2021,6.75,135,141.75,Homelessness,B&B Accommodation,64401
http://statistics.data.gov.uk/id/local-authority/12UE,Huntingdonshire District Council,201012,COACH & HORSES,52099,09/08/2021,500,housing ta we 080821,12/08/2021,15.75,315,330.75,Homelessness,B&B Accommodation,64401
http://statistics.data.gov.uk/id/local-authority/12UE,Huntingdonshire District Council,201012,COACH & HORSES,52513,22/08/2021,502,COACH&HORSE GH,26/08/2021,2.25,45,47.25,Homelessness,B&B Accommodation,64401
http://statistics.data.gov.uk/id/local-authority/12UE,Huntingdonshire District Council,201012,COACH & HORSES,52265,15/08/2021,501,COACH&HORSE GH,19/08/2021,15.75,315,330.75,Homelessness,B&B Accommodation,64401
http://statistics.data.gov.uk/id/local-authority/12UE,Huntingdonshire District Council,201012,COACH & HORSES,50199,27/06/2021,494,housing TA C&H,01/07/2021,15.75,315,330.75,Homelessness,B&B Accommodation,64401
http://statistics.data.gov.uk/id/local-authority/12UE,Huntingdonshire District Council,201012,COACH & HORSES,50199,27/06/2021,494,housing TA C&H,01/07/2021,15.75,315,330.75,Homelessness,B&B Accommodation,64401
http://statistics.data.gov.uk/id/local-authority/12UE,Huntingdonshire District Council,201012,COACH & HORSES,50952,11/07/2021,496,HOUSING 110721,15/07/2021,15.75,315,330.75,Homelessness,B&B Accommodation,64401
http://statistics.data.gov.uk/id/local-authority/12UE,Huntingdonshire District Council,201012,COACH & HORSES,50660,04/07/2021,495,HOUSING TA WE 04/07/21,08/07/2021,15.75,315,330.75,Homelessness,B&B Accommodation,64401
http://statistics.data.gov.uk/id/local-authority/12UE,Huntingdonshire District Council,201012,COACH & HORSES,50199,27/06/2021,494,housing TA C&H,01/07/2021,15.75,315,330.75,Homelessness,B&B Accommodation,64401
http://statistics.data.gov.uk/id/local-authority/12UE,Huntingdonshire District Council,201012,COACH & HORSES,50952,11/07/2021,496,HOUSING 110721,15/07/2021,15.75,315,330.75,Homelessness,B&B Accommodation,64401
http://statistics.data.gov.uk/id/local-authority/12UE,Huntingdonshire District Council,201012,COACH & HORSES,50660,04/07/2021,495,HOUSING TA WE 04/07/21,08/07/2021,15.75,315,330.75,Homelessness,B&B Accommodation,64401
http://statistics.data.gov.uk/id/local-authority/12UE,Huntingdonshire District Council,201012,COACH & HORSES,51120,18/07/2021,497,housing ta we 180721,22/07/2021,15.75,315,330.75,Homelessness,B&B Accommodation,64401
http://statistics.data.gov.uk/id/local-authority/12UE,Huntingdonshire District Council,201012,COACH & HORSES,51714,02/08/2021,499,HOUSING TA WC 260721,10/08/2021,15.75,315,330.75,Homelessness,B&B Accommodation,64401
http://statistics.data.gov.uk/id/local-authority/12UE,Huntingdonshire District Council,201012,COACH & HORSES,51348,26/07/2021,498,HOUSING TA WE 260721,29/07/2021,15.75,315,330.75,Homelessness,B&B Accommodation,64401
http://statistics.data.gov.uk/id/local-authority/12UE,Huntingdonshire District Council,201012,COACH & HORSES,52099,09/08/2021,500,housing ta we 080821,12/08/2021,15.75,315,330.75,Homelessness,B&B Accommodation,64401
http://statistics.data.gov.uk/id/local-authority/12UE,Huntingdonshire District Council,201012,COACH & HORSES,52265,15/08/2021,501,COACH&HORSE GH,19/08/2021,9,180,189,Homelessness,B&B Accommodation,64401
http://statistics.data.gov.uk/id/local-authority/12UE,Huntingdonshire District Council,201012,COACH & HORSES,53007,05/09/2021,504,LODGING 3008-050921,09/09/2021,15.75,315,330.75,Homelessness,B&B Accommodation,64401
http://statistics.data.gov.uk/id/local-authority/12UE,Huntingdonshire District Council,201012,COACH & HORSES,52513,22/08/2021,502,COACH&HORSE GH,26/08/2021,9,180,189,Homelessness,B&B Accommodation,64401
http://statistics.data.gov.uk/id/local-authority/12UE,Huntingdonshire District Council,201012,COACH & HORSES,52765,30/08/2021,503,COACH&HORSE GH 2308-290821,02/09/2021,15.75,315,330.75,Homelessness,B&B Accommodation,64401
http://statistics.data.gov.uk/id/local-authority/12UE,Huntingdonshire District Council,201012,COACH & HORSES,53318,12/09/2021,505,LODGING 0609-120921,16/09/2021,4.5,90,94.5,Homelessness,B&B Accommodation,64401
http://statistics.data.gov.uk/id/local-authority/12UE,Huntingdonshire District Council,201012,COACH & HORSES,53007,05/09/2021,504,LODGING 3008-050921,09/09/2021,15.75,315,330.75,Homelessness,B&B Accommodation,64401
http://statistics.data.gov.uk/id/local-authority/12UE,Huntingdonshire District Council,201012,COACH & HORSES,52513,22/08/2021,502,COACH&HORSE GH,26/08/2021,13.5,270,283.5,Homelessness,B&B Accommodation,64401
http://statistics.data.gov.uk/id/local-authority/12UE,Huntingdonshire District Council,201012,COACH & HORSES,53741,27/09/2021,507,TA 270921,30/09/2021,15.75,315,330.75,Homelessness,B&B Accommodation,64401
http://statistics.data.gov.uk/id/local-authority/12UE,Huntingdonshire District Council,201012,COACH & HORSES,52765,30/08/2021,503,COACH&HORSE GH 2308-290821,02/09/2021,15.75,315,330.75,Homelessness,B&B Accommodation,64401
http://statistics.data.gov.uk/id/local-authority/12UE,Huntingdonshire District Council,201012,COACH & HORSES,53318,12/09/2021,505,LODGING 0609-120921,16/09/2021,15.75,315,330.75,Homelessness,B&B Accommodation,64401
http://statistics.data.gov.uk/id/local-authority/12UE,Huntingdonshire District Council,201012,COACH & HORSES,53495,19/09/2021,506,LODGING 1309-190921,23/09/2021,15.75,315,330.75,Homelessness,B&B Accommodation,64401
http://statistics.data.gov.uk/id/local-authority/12UE,Huntingdonshire District Council,201012,COACH & HORSES,50952,11/07/2021,496,HOUSING 110721,15/07/2021,15.75,315,330.75,Homelessness,B&B Accommodation,64401
http://statistics.data.gov.uk/id/local-authority/12UE,Huntingdonshire District Council,201012,COACH & HORSES,50660,04/07/2021,495,HOUSING TA WE 04/07/21,08/07/2021,6.75,135,141.75,Homelessness,B&B Accommodation,64401
http://statistics.data.gov.uk/id/local-authority/12UE,Huntingdonshire District Council,201012,COACH & HORSES,51120,18/07/2021,497,housing ta we 180721,22/07/2021,15.75,315,330.75,Homelessness,B&B Accommodation,64401
http://statistics.data.gov.uk/id/local-authority/12UE,Huntingdonshire District Council,201012,COACH & HORSES,51714,02/08/2021,499,HOUSING TA WC 260721,10/08/2021,15.75,315,330.75,Homelessness,B&B Accommodation,64401
http://statistics.data.gov.uk/id/local-authority/12UE,Huntingdonshire District Council,201012,COACH & HORSES,51348,26/07/2021,498,HOUSING TA WE 260721,29/07/2021,15.75,315,330.75,Homelessness,B&B Accommodation,64401
http://statistics.data.gov.uk/id/local-authority/12UE,Huntingdonshire District Council,201012,COACH & HORSES,52099,09/08/2021,500,housing ta we 080821,12/08/2021,15.75,315,330.75,Homelessness,B&B Accommodation,64401
http://statistics.data.gov.uk/id/local-authority/12UE,Huntingdonshire District Council,201012,COACH & HORSES,52265,15/08/2021,501,COACH&HORSE GH,19/08/2021,9,180,189,Homelessness,B&B Accommodation,64401
http://statistics.data.gov.uk/id/local-authority/12UE,Huntingdonshire District Council,201012,COACH & HORSES,51120,18/07/2021,497,housing ta we 180721,22/07/2021,9,180,189,Homelessness,B&B Accommodation,64401
http://statistics.data.gov.uk/id/local-authority/12UE,Huntingdonshire District Council,201012,COACH & HORSES,51714,02/08/2021,499,HOUSING TA WC 260721,10/08/2021,15.75,315,330.75,Homelessness,B&B Accommodation,64401
http://statistics.data.gov.uk/id/local-authority/12UE,Huntingdonshire District Council,201012,COACH & HORSES,51348,26/07/2021,498,HOUSING TA WE 260721,29/07/2021,15.75,315,330.75,Homelessness,B&B Accommodation,64401
http://statistics.data.gov.uk/id/local-authority/12UE,Huntingdonshire District Council,201012,COACH & HORSES,51348,26/07/2021,498,HOUSING TA WE 260721,29/07/2021,4.5,90,94.5,Homelessness,B&B Accommodation,64401
http://statistics.data.gov.uk/id/local-authority/12UE,Huntingdonshire District Council,201012,COACH & HORSES,53007,05/09/2021,504,LODGING 3008-050921,09/09/2021,15.75,315,330.75,Homelessness,B&B Accommodation,64401
http://statistics.data.gov.uk/id/local-authority/12UE,Huntingdonshire District Council,201012,COACH & HORSES,52513,22/08/2021,502,COACH&HORSE GH,26/08/2021,15.75,315,330.75,Homelessness,B&B Accommodation,64401
http://statistics.data.gov.uk/id/local-authority/12UE,Huntingdonshire District Council,201012,COACH & HORSES,52765,30/08/2021,503,COACH&HORSE GH 2308-290821,02/09/2021,15.75,315,330.75,Homelessness,B&B Accommodation,64401
http://statistics.data.gov.uk/id/local-authority/12UE,Huntingdonshire District Council,201012,COACH & HORSES,52265,15/08/2021,501,COACH&HORSE GH,19/08/2021,2.25,45,47.25,Homelessness,B&B Accommodation,64401
http://statistics.data.gov.uk/id/local-authority/12UE,Huntingdonshire District Council,201012,COACH & HORSES,52513,22/08/2021,502,COACH&HORSE GH,26/08/2021,15.75,315,330.75,Homelessness,B&B Accommodation,64401
http://statistics.data.gov.uk/id/local-authority/12UE,Huntingdonshire District Council,201012,COACH & HORSES,52765,30/08/2021,503,COACH&HORSE GH 2308-290821,02/09/2021,6.75,135,141.75,Homelessness,B&B Accommodation,64401
http://statistics.data.gov.uk/id/local-authority/12UE,Huntingdonshire District Council,201012,COACH & HORSES,52265,15/08/2021,501,COACH&HORSE GH,19/08/2021,9,180,189,Homelessness,B&B Accommodation,64401
http://statistics.data.gov.uk/id/local-authority/12UE,Huntingdonshire District Council,201012,COACH & HORSES,53741,27/09/2021,507,TA 270921,30/09/2021,15.75,315,330.75,Homelessness,B&B Accommodation,64401
http://statistics.data.gov.uk/id/local-authority/12UE,Huntingdonshire District Council,201012,COACH & HORSES,53318,12/09/2021,505,LODGING 0609-120921,16/09/2021,15.75,315,330.75,Homelessness,B&B Accommodation,64401
http://statistics.data.gov.uk/id/local-authority/12UE,Huntingdonshire District Council,201012,COACH & HORSES,53495,19/09/2021,506,LODGING 1309-190921,23/09/2021,15.75,315,330.75,Homelessness,B&B Accommodation,64401
http://statistics.data.gov.uk/id/local-authority/12UE,Huntingdonshire District Council,201012,COACH & HORSES,53741,27/09/2021,507,TA 270921,30/09/2021,15.75,315,330.75,Homelessness,B&B Accommodation,64401
http://statistics.data.gov.uk/id/local-authority/12UE,Huntingdonshire District Council,201012,COACH & HORSES,53495,19/09/2021,506,LODGING 1309-190921,23/09/2021,15.75,315,330.75,Homelessness,B&B Accommodation,64401
http://statistics.data.gov.uk/id/local-authority/12UE,Huntingdonshire District Council,201012,COACH & HORSES,53741,27/09/2021,507,TA 270921,30/09/2021,9,180,189,Homelessness,B&B Accommodation,64401
http://statistics.data.gov.uk/id/local-authority/12UE,Huntingdonshire District Council,200205,COMMUNICATIONS SOLUTIONS UK LTD COMMUNICATIONS SOLUTIONS UK LTD,49719,11/06/2021,45711,HEADSETS,08/07/2021,24.7,123.52,148.22,One Leisure Support Team,Ict Hardware,64070
http://statistics.data.gov.uk/id/local-authority/12UE,Huntingdonshire District Council,200205,COMMUNICATIONS SOLUTIONS UK LTD COMMUNICATIONS SOLUTIONS UK LTD,49719,11/06/2021,45711,HEADSETS,08/07/2021,229.09,1145.43,1374.52,One Leisure Support Team,Ict Hardware,64070
http://statistics.data.gov.uk/id/local-authority/12UE,Huntingdonshire District Council,200205,COMMUNICATIONS SOLUTIONS UK LTD COMMUNICATIONS SOLUTIONS UK LTD,49719,11/06/2021,45711,HEADSETS,08/07/2021,19.48,97.42,116.9,One Leisure Support Team,Ict Hardware,64070
http://statistics.data.gov.uk/id/local-authority/12UE,Huntingdonshire District Council,200205,COMMUNICATIONS SOLUTIONS UK LTD COMMUNICATIONS SOLUTIONS UK LTD,49719,11/06/2021,45711,HEADSETS,08/07/2021,3.96,19.8,23.76,One Leisure Support Team,Ict Hardware,64070
http://statistics.data.gov.uk/id/local-authority/12UE,Huntingdonshire District Council,200210,COMPUTERSHARE VOUCHERS LTD COMPUTERSHARE VOUCHERS LTD,50238,24/06/2021,C-0003216263,TAX FREE VOUCHERS,01/07/2021,9.71,48.53,58.24,Payroll Services,Childcare Admin Vouchers,60106
http://statistics.data.gov.uk/id/local-authority/12UE,Huntingdonshire District Council,200210,COMPUTERSHARE VOUCHERS LTD COMPUTERSHARE VOUCHERS LTD,51413,27/07/2021,C-0003226896,hr childcare voucjers,29/07/2021,9.31,46.53,55.84,Payroll Services,Childcare Admin Vouchers,60106
http://statistics.data.gov.uk/id/local-authority/12UE,Huntingdonshire District Council,200210,COMPUTERSHARE VOUCHERS LTD COMPUTERSHARE VOUCHERS LTD,52616,25/08/2021,C-0003236968,CHILDCARE VOUCHER,26/08/2021,9.31,46.53,55.84,Payroll Services,Childcare Admin Vouchers,60106
http://statistics.data.gov.uk/id/local-authority/12UE,Huntingdonshire District Council,200210,COMPUTERSHARE VOUCHERS LTD COMPUTERSHARE VOUCHERS LTD,53707,27/09/2021,C-0003247075,HR 15/10/2021,30/09/2021,7.8,38.98,46.78,Payroll Services,Childcare Admin Vouchers,60106
http://statistics.data.gov.uk/id/local-authority/12UE,Huntingdonshire District Council,200210,COMPUTERSHARE VOUCHERS LTD COMPUTERSHARE VOUCHERS LTD,50238,24/06/2021,C-0003216263,TAX FREE VOUCHERS,01/07/2021,0,1941,1941,Child Care Vouchers - Payroll,Childcare Admin Vouchers,60106
http://statistics.data.gov.uk/id/local-authority/12UE,Huntingdonshire District Council,200210,COMPUTERSHARE VOUCHERS LTD COMPUTERSHARE VOUCHERS LTD,51413,27/07/2021,C-0003226896,hr childcare voucjers,29/07/2021,0,1861,1861,Child Care Vouchers - Payroll,Childcare Admin Vouchers,60106
http://statistics.data.gov.uk/id/local-authority/12UE,Huntingdonshire District Council,200210,COMPUTERSHARE VOUCHERS LTD COMPUTERSHARE VOUCHERS LTD,52616,25/08/2021,C-0003236968,CHILDCARE VOUCHER,26/08/2021,0,1861,1861,Child Care Vouchers - Payroll,Childcare Admin Vouchers,60106
http://statistics.data.gov.uk/id/local-authority/12UE,Huntingdonshire District Council,200210,COMPUTERSHARE VOUCHERS LTD COMPUTERSHARE VOUCHERS LTD,53707,27/09/2021,C-0003247075,HR 15/10/2021,30/09/2021,0,1559,1559,Child Care Vouchers - Payroll,Childcare Admin Vouchers,60106
http://statistics.data.gov.uk/id/local-authority/12UE,Huntingdonshire District Council,202410,CORAL DESIGN MANAGEMENT,51189,20/07/2021,2134,HCP ARTWORK,12/08/2021,0,1700,1700,Hinchingbrooke Country Park,Site Alterations And Materials,60273
http://statistics.data.gov.uk/id/local-authority/12UE,Huntingdonshire District Council,200900,CRAEMER UK LTD,51928,04/08/2021,3037527,ops household waste,26/08/2021,2772,13860,16632,Wheeled Bins,Refuse Containers/Litter Bins,61200
http://statistics.data.gov.uk/id/local-authority/12UE,Huntingdonshire District Council,200900,CRAEMER UK LTD,52517,19/08/2021,3037917,ops bin printing,16/09/2021,2711.28,13556.4,16267.68,Wheeled Bins,Refuse Containers/Litter Bins,61200
http://statistics.data.gov.uk/id/local-authority/12UE,Huntingdonshire District Council,202337,CRANBROOK PLANTS,53402,20/06/2021,HDC0521,HANGING BASKET,17/09/2021,139.99,699.96,839.95,Grounds Maintenance,Gardening Supplies,60506
http://statistics.data.gov.uk/id/local-authority/12UE,Huntingdonshire District Council,202337,CRANBROOK PLANTS,53177,02/07/2021,HDC0621,SUMMER BED PLANTS STN,16/09/2021,83.6,418,501.6,Grounds Maintenance,Gardening Supplies,60506
http://statistics.data.gov.uk/id/local-authority/12UE,Huntingdonshire District Council,201341,CROSS KEYS HOMES LTD,53533,07/09/2021,70921,HPP RENT,23/09/2021,0,520.12,520.12,Homelessness,Homeless Prevention Payments,64403
http://statistics.data.gov.uk/id/local-authority/12UE,Huntingdonshire District Council,201341,CROSS KEYS HOMES LTD,53534,09/09/2021,REDACTED,HPP LOAN,23/09/2021,0,322,322,Homelessness,Homeless Prevention Payments,64403
http://statistics.data.gov.uk/id/local-authority/12UE,Huntingdonshire District Council,201341,CROSS KEYS HOMES LTD,53801,28/09/2021,REDACTED,REDACTED,30/09/2021,0,322.22,322.22,Homelessness,Homeless Prevention Payments,64403
http://statistics.data.gov.uk/id/local-authority/12UE,Huntingdonshire District Council,202245,CTA CONSULTANCY LTD,49355,08/06/2021,217,CONSULTANCY,01/07/2021,55,275,330,Benefits Management,Consultancy Fees,62400
http://statistics.data.gov.uk/id/local-authority/12UE,Huntingdonshire District Council,202513,CV-LIBRARY LTD,53013,05/08/2021,361165,CV DATABASE 6 MONTHS,09/09/2021,259.9,1299.5,1559.4,HR Services,"Advertising, Publicity And Marketing",62005
http://statistics.data.gov.uk/id/local-authority/12UE,Huntingdonshire District Council,202187,CYCLESCHEME LTD,50227,29/06/2021,W577685,CYCLESCHEME,01/07/2021,333.33,1666.67,2000,Cycle to Work,Vehicles Plant Furniture & Equipment Cost,11300
http://statistics.data.gov.uk/id/local-authority/12UE,Huntingdonshire District Council,202187,CYCLESCHEME LTD,52326,18/08/2021,W586492,BIKES AND EQUIPT,19/08/2021,162.5,812.5,975,Cycle to Work,Vehicles Plant Furniture & Equipment Cost,11300
http://statistics.data.gov.uk/id/local-authority/12UE,Huntingdonshire District Council,202187,CYCLESCHEME LTD,51729,03/08/2021,W583880,REDACTED,10/08/2021,108.33,541.67,650,Cycle to Work,Vehicles Plant Furniture & Equipment Cost,11300
http://statistics.data.gov.uk/id/local-authority/12UE,Huntingdonshire District Council,202187,CYCLESCHEME LTD,51729,03/08/2021,W583880,REDACTED,10/08/2021,0,50,50,Cycle to Work,Vehicles Plant Furniture & Equipment Cost,11300
http://statistics.data.gov.uk/id/local-authority/12UE,Huntingdonshire District Council,202187,CYCLESCHEME LTD,51379,27/07/2021,W582682,REDACTED,29/07/2021,0,36.99,36.99,Cycle to Work,Vehicles Plant Furniture & Equipment Cost,11300
http://statistics.data.gov.uk/id/local-authority/12UE,Huntingdonshire District Council,202187,CYCLESCHEME LTD,51379,27/07/2021,W582682,REDACTED,29/07/2021,92.16,460.82,552.98,Cycle to Work,Vehicles Plant Furniture & Equipment Cost,11300
http://statistics.data.gov.uk/id/local-authority/12UE,Huntingdonshire District Council,200220,D & H SIGN & DISPLAY SERVICE D & H SIGN & DISPLAY SERVICE,51874,02/08/2021,7032,ops elite 6 refuse,26/08/2021,136.6,683,819.6,Recycling Collections,Vehicle Maintenance - External,60921
http://statistics.data.gov.uk/id/local-authority/12UE,Huntingdonshire District Council,200220,D & H SIGN & DISPLAY SERVICE D & H SIGN & DISPLAY SERVICE,51875,02/08/2021,7033,ops,26/08/2021,136.6,683,819.6,Recycling Collections,Vehicle Maintenance - External,60921
http://statistics.data.gov.uk/id/local-authority/12UE,Huntingdonshire District Council,200220,D & H SIGN & DISPLAY SERVICE D & H SIGN & DISPLAY SERVICE,52015,07/08/2021,7034,OPS GRAPHICS,02/09/2021,136.6,683,819.6,Domestic Waste Collection,Vehicle Maintenance - External,60921
http://statistics.data.gov.uk/id/local-authority/12UE,Huntingdonshire District Council,200220,D & H SIGN & DISPLAY SERVICE D & H SIGN & DISPLAY SERVICE,53310,07/08/2021,70352,RUFUSE LORRY GRAPHICS,16/09/2021,136.6,683,819.6,Domestic Waste Collection,Vehicle Maintenance - External,60921
http://statistics.data.gov.uk/id/local-authority/12UE,Huntingdonshire District Council,200220,D & H SIGN & DISPLAY SERVICE D & H SIGN & DISPLAY SERVICE,50839,02/07/2021,7025,ops luton box,29/07/2021,157.2,786,943.2,Bin Deliveries,Vehicle Repairs And Maintenance,60904
http://statistics.data.gov.uk/id/local-authority/12UE,Huntingdonshire District Council,200226,DAL-ROD (CAMRIDGESHIRE) DAL-ROD (CAMRIDGESHIRE),52509,20/08/2021,57257,UNBLOCK POOLSIDE DRAIN OLR,16/09/2021,142,710,852,OLR - Swimming,Maintenance - Building,60201
http://statistics.data.gov.uk/id/local-authority/12UE,Huntingdonshire District Council,200226,DAL-ROD (CAMRIDGESHIRE) DAL-ROD (CAMRIDGESHIRE),52175,04/08/2021,57078,ops waste emptying,26/08/2021,64,320,384,Pathfinder House,Maintenance - Building,60201
http://statistics.data.gov.uk/id/local-authority/12UE,Huntingdonshire District Council,200229,DATACENTRE UK DATACENTRE UK,51918,30/07/2021,473369,FACILITIES FIRE SUPRESSION,26/08/2021,244,1220,1464,HDC Business Case ,Maintenance - Building,60201
http://statistics.data.gov.uk/id/local-authority/12UE,Huntingdonshire District Council,200229,DATACENTRE UK DATACENTRE UK,51918,30/07/2021,473369,FACILITIES FIRE SUPRESSION,26/08/2021,114,570,684,HDC Business Case ,Maintenance - Building,60201
http://statistics.data.gov.uk/id/local-authority/12UE,Huntingdonshire District Council,201715,DATASHREDDERS LTD,52941,31/08/2021,98452,SHREDDING,30/09/2021,75,375,450,Pathfinder House,Shredding,64055
http://statistics.data.gov.uk/id/local-authority/12UE,Huntingdonshire District Council,201715,DATASHREDDERS LTD,50513,30/06/2021,97341,FACILITIES DATA SHREDDING,22/07/2021,72.6,363,435.6,Pathfinder House,Shredding,64055
http://statistics.data.gov.uk/id/local-authority/12UE,Huntingdonshire District Council,201715,DATASHREDDERS LTD,51814,31/07/2021,97927,FACILITES CONFIDENTIAL SHREDDING,26/08/2021,57.6,288,345.6,Pathfinder House,Shredding,64055
http://statistics.data.gov.uk/id/local-authority/12UE,Huntingdonshire District Council,200230,REDACTED,49691,12/06/2021,119,VEHICLE CLEANING,08/07/2021,0,32,32,Pool Cars,Vehicle Cleaning,60923
http://statistics.data.gov.uk/id/local-authority/12UE,Huntingdonshire District Council,200230,REDACTED,49691,12/06/2021,119,VEHICLE CLEANING,08/07/2021,0,32,32,Pool Cars,Vehicle Cleaning,60923
http://statistics.data.gov.uk/id/local-authority/12UE,Huntingdonshire District Council,200230,REDACTED,49691,12/06/2021,119,VEHICLE CLEANING,08/07/2021,0,32,32,Pool Cars,Vehicle Cleaning,60923
http://statistics.data.gov.uk/id/local-authority/12UE,Huntingdonshire District Council,200230,REDACTED,49691,12/06/2021,119,VEHICLE CLEANING,08/07/2021,0,32,32,Pool Cars,Vehicle Cleaning,60923
http://statistics.data.gov.uk/id/local-authority/12UE,Huntingdonshire District Council,200230,REDACTED,49691,12/06/2021,119,VEHICLE CLEANING,08/07/2021,0,32,32,Pool Cars,Vehicle Cleaning,60923
http://statistics.data.gov.uk/id/local-authority/12UE,Huntingdonshire District Council,200230,REDACTED,49691,12/06/2021,119,VEHICLE CLEANING,08/07/2021,0,32,32,Pool Cars,Vehicle Cleaning,60923
http://statistics.data.gov.uk/id/local-authority/12UE,Huntingdonshire District Council,200230,REDACTED,49691,12/06/2021,119,VEHICLE CLEANING,08/07/2021,0,37,37,Vehicle Maintenance,Vehicle Cleaning,60923
http://statistics.data.gov.uk/id/local-authority/12UE,Huntingdonshire District Council,200230,REDACTED,49691,12/06/2021,119,VEHICLE CLEANING,08/07/2021,0,37,37,Grounds Maintenance,Vehicle Cleaning,60923
http://statistics.data.gov.uk/id/local-authority/12UE,Huntingdonshire District Council,200230,REDACTED,49691,12/06/2021,119,VEHICLE CLEANING,08/07/2021,0,37,37,Street Cleansing,Vehicle Cleaning,60923
http://statistics.data.gov.uk/id/local-authority/12UE,Huntingdonshire District Council,202375,WALDEN HOUSE LTD,51812,04/08/2021,REDACTED,REDACTED,10/08/2021,0,784.23,784.23,Homelessness,Claim on Covid Bond,64406
http://statistics.data.gov.uk/id/local-authority/12UE,Huntingdonshire District Council,201002.01,DAVID WILSON HOMES,37287,26/06/2020,20/00428/REM,REM- Overpaid,05/08/2021,0,27503,27503,Dm Application Processing,Planning Applications Income,54100
http://statistics.data.gov.uk/id/local-authority/12UE,Huntingdonshire District Council,200232,DCRS LTD DCRS LTD,51972,10/05/2021,247453,OLSI ORDER 140922,12/08/2021,70.8,354,424.8,OLH - Site & Centre Management,"Maintenance - Equipment, Furniture And Materials",61702
http://statistics.data.gov.uk/id/local-authority/12UE,Huntingdonshire District Council,202657,REDACTED,51499,22/07/2021,HDC050721,elections may-july fees,19/08/2021,0,2300,2300,Member Allowances & Support,Consultancy Fees,62400
http://statistics.data.gov.uk/id/local-authority/12UE,Huntingdonshire District Council,200236,DENNIS EAGLE LTD DENNIS EAGLE LTD,50317,16/04/2021,376241,OPS HARDWARE,01/07/2021,1595,7975,9570,Vehicles & Plant,Ict Hardware,64070
http://statistics.data.gov.uk/id/local-authority/12UE,Huntingdonshire District Council,200236,DENNIS EAGLE LTD DENNIS EAGLE LTD,50317,16/04/2021,376241,OPS HARDWARE,01/07/2021,551,2755,3306,Vehicles & Plant,Ict Hardware,64070
http://statistics.data.gov.uk/id/local-authority/12UE,Huntingdonshire District Council,200236,DENNIS EAGLE LTD DENNIS EAGLE LTD,50317,16/04/2021,376241,OPS HARDWARE,01/07/2021,280,1400,1680,Vehicles & Plant,Ict Hardware,64070
http://statistics.data.gov.uk/id/local-authority/12UE,Huntingdonshire District Council,200236,DENNIS EAGLE LTD DENNIS EAGLE LTD,50318,16/04/2021,376239,OPS HARDWARE,01/07/2021,935,4675,5610,Vehicles & Plant,Ict Hardware,64070
http://statistics.data.gov.uk/id/local-authority/12UE,Huntingdonshire District Council,200236,DENNIS EAGLE LTD DENNIS EAGLE LTD,50318,16/04/2021,376239,OPS HARDWARE,01/07/2021,323,1615,1938,Vehicles & Plant,Ict Hardware,64070
http://statistics.data.gov.uk/id/local-authority/12UE,Huntingdonshire District Council,200236,DENNIS EAGLE LTD DENNIS EAGLE LTD,50318,16/04/2021,376239,OPS HARDWARE,01/07/2021,100,500,600,Vehicles & Plant,Ict Hardware,64070
http://statistics.data.gov.uk/id/local-authority/12UE,Huntingdonshire District Council,200236,DENNIS EAGLE LTD DENNIS EAGLE LTD,50318,16/04/2021,376239,OPS HARDWARE,01/07/2021,408,2040,2448,Street Cleansing,Land Line Rental,64077
http://statistics.data.gov.uk/id/local-authority/12UE,Huntingdonshire District Council,200236,DENNIS EAGLE LTD DENNIS EAGLE LTD,50318,16/04/2021,376239,OPS HARDWARE,01/07/2021,408,2040,2448,Street Cleansing,Land Line Rental,64077
http://statistics.data.gov.uk/id/local-authority/12UE,Huntingdonshire District Council,200236,DENNIS EAGLE LTD DENNIS EAGLE LTD,50318,16/04/2021,376239,OPS HARDWARE,01/07/2021,408,2040,2448,Street Cleansing,Land Line Rental,64077
http://statistics.data.gov.uk/id/local-authority/12UE,Huntingdonshire District Council,200236,DENNIS EAGLE LTD DENNIS EAGLE LTD,50317,16/04/2021,376241,OPS HARDWARE,01/07/2021,696,3480,4176,Grounds Maintenance,Land Line Rental,64077
http://statistics.data.gov.uk/id/local-authority/12UE,Huntingdonshire District Council,200236,DENNIS EAGLE LTD DENNIS EAGLE LTD,50317,16/04/2021,376241,OPS HARDWARE,01/07/2021,696,3480,4176,Grounds Maintenance,Land Line Rental,64077
http://statistics.data.gov.uk/id/local-authority/12UE,Huntingdonshire District Council,200236,DENNIS EAGLE LTD DENNIS EAGLE LTD,50317,16/04/2021,376241,OPS HARDWARE,01/07/2021,696,3480,4176,Grounds Maintenance,Land Line Rental,64077
http://statistics.data.gov.uk/id/local-authority/12UE,Huntingdonshire District Council,200236,DENNIS EAGLE LTD DENNIS EAGLE LTD,51487,19/07/2021,DE11422322 & DE11423439,OPS DE11422322 & DE11423439,12/08/2021,-0.01,0,-0.01,Finance,Over/Under VAT Rounding,68350
http://statistics.data.gov.uk/id/local-authority/12UE,Huntingdonshire District Council,200236,DENNIS EAGLE LTD DENNIS EAGLE LTD,52325,11/08/2021,DE11428284,OPS VEHICLE REPAIR,02/09/2021,-0.01,0,-0.01,Finance,Over/Under VAT Rounding,68350
http://statistics.data.gov.uk/id/local-authority/12UE,Huntingdonshire District Council,200236,DENNIS EAGLE LTD DENNIS EAGLE LTD,50896,21/06/2021,DE11415267,ORDER 3125,15/07/2021,-0.01,0,-0.01,Finance,Over/Under VAT Rounding,68350
http://statistics.data.gov.uk/id/local-authority/12UE,Huntingdonshire District Council,200236,DENNIS EAGLE LTD DENNIS EAGLE LTD,50248,24/06/2021,412984,ORDER 3143,22/07/2021,335.1,1675.51,2010.61,Recycling Collections,Vehicle Maintenance - External,60921
http://statistics.data.gov.uk/id/local-authority/12UE,Huntingdonshire District Council,200236,DENNIS EAGLE LTD DENNIS EAGLE LTD,51395,20/07/2021,415124,OPS IMMOBILISER FAULT,12/08/2021,136.28,681.39,817.67,Green Waste Collection,Vehicle Maintenance - External,60921
http://statistics.data.gov.uk/id/local-authority/12UE,Huntingdonshire District Council,200236,DENNIS EAGLE LTD DENNIS EAGLE LTD,52325,11/08/2021,DE11428284,OPS VEHICLE REPAIR,02/09/2021,94.43,472.13,566.56,Domestic Waste Collection,Vehicle Repairs And Maintenance,60904
http://statistics.data.gov.uk/id/local-authority/12UE,Huntingdonshire District Council,200236,DENNIS EAGLE LTD DENNIS EAGLE LTD,52325,11/08/2021,DE11428284,OPS VEHICLE REPAIR,02/09/2021,94.43,472.13,566.56,Domestic Waste Collection,Vehicle Repairs And Maintenance,60904
http://statistics.data.gov.uk/id/local-authority/12UE,Huntingdonshire District Council,200236,DENNIS EAGLE LTD DENNIS EAGLE LTD,50001,15/06/2021,DE11413858,ORDER 3100,08/07/2021,50.56,252.78,303.34,Domestic Waste Collection,Vehicle Repairs And Maintenance,60904
http://statistics.data.gov.uk/id/local-authority/12UE,Huntingdonshire District Council,200236,DENNIS EAGLE LTD DENNIS EAGLE LTD,51777,29/07/2021,DE11425275,OPS PRESSURE SENSOR,26/08/2021,175.47,877.36,1052.83,Green Waste Collection,Vehicle Repairs And Maintenance,60904
http://statistics.data.gov.uk/id/local-authority/12UE,Huntingdonshire District Council,200236,DENNIS EAGLE LTD DENNIS EAGLE LTD,50846,02/07/2021,DE11418607,OPS FILTER KIT,29/07/2021,51.36,256.8,308.16,Green Waste Collection,Vehicle Repairs And Maintenance,60904
http://statistics.data.gov.uk/id/local-authority/12UE,Huntingdonshire District Council,200236,DENNIS EAGLE LTD DENNIS EAGLE LTD,50541,10/06/2021,DE1141273,ops vehicles,08/07/2021,67.06,335.32,402.38,Domestic Waste Collection,Vehicle Repairs And Maintenance,60904
http://statistics.data.gov.uk/id/local-authority/12UE,Huntingdonshire District Council,200236,DENNIS EAGLE LTD DENNIS EAGLE LTD,51912,02/08/2021,DE11425907,OPS EQUIPMENT,26/08/2021,171.42,857.1,1028.52,Recycling Collections,Vehicle Repairs And Maintenance,60904
http://statistics.data.gov.uk/id/local-authority/12UE,Huntingdonshire District Council,200236,DENNIS EAGLE LTD DENNIS EAGLE LTD,52701,16/08/2021,DE11429382,VEHICLE REPAIR,09/09/2021,401.96,2009.82,2411.78,Recycling Collections,Vehicle Repairs And Maintenance,60904
http://statistics.data.gov.uk/id/local-authority/12UE,Huntingdonshire District Council,200236,DENNIS EAGLE LTD DENNIS EAGLE LTD,52696,17/08/2021,DE11429046,MOT PARTS ,09/09/2021,86.42,432.1,518.52,Recycling Collections,Vehicle Repairs And Maintenance,60904
http://statistics.data.gov.uk/id/local-authority/12UE,Huntingdonshire District Council,200236,DENNIS EAGLE LTD DENNIS EAGLE LTD,52695,17/08/2021,DE11429383,MOT PARTS ,09/09/2021,60.04,300.19,360.23,Recycling Collections,Vehicle Repairs And Maintenance,60904
http://statistics.data.gov.uk/id/local-authority/12UE,Huntingdonshire District Council,200236,DENNIS EAGLE LTD DENNIS EAGLE LTD,51487,19/07/2021,DE11422322 & DE11423439,OPS DE11422322 & DE11423439,12/08/2021,287.64,1438.18,1725.82,Domestic Waste Collection,Vehicle Repairs And Maintenance,60904
http://statistics.data.gov.uk/id/local-authority/12UE,Huntingdonshire District Council,200236,DENNIS EAGLE LTD DENNIS EAGLE LTD,51487,19/07/2021,DE11422322 & DE11423439,OPS DE11422322 & DE11423439,12/08/2021,2.23,11.15,13.38,Domestic Waste Collection,Vehicle Repairs And Maintenance,60904
http://statistics.data.gov.uk/id/local-authority/12UE,Huntingdonshire District Council,200236,DENNIS EAGLE LTD DENNIS EAGLE LTD,52379,09/08/2021,DE11427522,OPS VEHICLE REPAIR AXEL,02/09/2021,135.31,676.55,811.86,Domestic Waste Collection,Vehicle Repairs And Maintenance,60904
http://statistics.data.gov.uk/id/local-authority/12UE,Huntingdonshire District Council,200236,DENNIS EAGLE LTD DENNIS EAGLE LTD,53677,01/09/2021,DE11433095,OPS AIR DRYER/FILTERS,30/09/2021,53.24,266.19,319.43,Recycling Collections,Vehicle Repairs And Maintenance,60904
http://statistics.data.gov.uk/id/local-authority/12UE,Huntingdonshire District Council,200236,DENNIS EAGLE LTD DENNIS EAGLE LTD,50897,05/07/2021,DE11418994,ORDER 3170,29/07/2021,365.4,1827.02,2192.42,Domestic Waste Collection,Vehicle Repairs And Maintenance,60904
http://statistics.data.gov.uk/id/local-authority/12UE,Huntingdonshire District Council,200236,DENNIS EAGLE LTD DENNIS EAGLE LTD,50896,21/06/2021,DE11415267,ORDER 3125,15/07/2021,183.51,917.53,1101.04,Domestic Waste Collection,Vehicle Repairs And Maintenance,60904
http://statistics.data.gov.uk/id/local-authority/12UE,Huntingdonshire District Council,200236,DENNIS EAGLE LTD DENNIS EAGLE LTD,50884,06/07/2021,DE11419366,ORDER 3125,29/07/2021,68.17,340.83,409,Domestic Waste Collection,Vehicle Repairs And Maintenance,60904
http://statistics.data.gov.uk/id/local-authority/12UE,Huntingdonshire District Council,200236,DENNIS EAGLE LTD DENNIS EAGLE LTD,50881,24/06/2021,DE11416485,ORDER 3125,22/07/2021,68.16,340.82,408.98,Domestic Waste Collection,Vehicle Repairs And Maintenance,60904
http://statistics.data.gov.uk/id/local-authority/12UE,Huntingdonshire District Council,200236,DENNIS EAGLE LTD DENNIS EAGLE LTD,51764,27/07/2021,DE11424520,OPS BALL JOINT,19/08/2021,64.32,321.59,385.91,Domestic Waste Collection,Vehicle Repairs And Maintenance,60904
http://statistics.data.gov.uk/id/local-authority/12UE,Huntingdonshire District Council,200236,DENNIS EAGLE LTD DENNIS EAGLE LTD,49967,07/06/2021,DE11411520,ORDER 3073,01/07/2021,71.85,359.27,431.12,Recycling Collections,Vehicle Repairs And Maintenance,60904
http://statistics.data.gov.uk/id/local-authority/12UE,Huntingdonshire District Council,200236,DENNIS EAGLE LTD DENNIS EAGLE LTD,49357,03/06/2021,DE11410849,ORDER 3061,01/07/2021,108.89,544.43,653.32,Recycling Collections,Vehicle Repairs And Maintenance,60904
http://statistics.data.gov.uk/id/local-authority/12UE,Huntingdonshire District Council,200236,DENNIS EAGLE LTD DENNIS EAGLE LTD,50634,01/07/2021,DE1141872,OPS PUMPS,29/07/2021,530.44,2652.2,3182.64,Green Waste Collection,Vehicle Repairs And Maintenance,60904
http://statistics.data.gov.uk/id/local-authority/12UE,Huntingdonshire District Council,200236,DENNIS EAGLE LTD DENNIS EAGLE LTD,52697,17/08/2021,DE11429758,OPS HYDRAULIC CYLINDER,09/09/2021,343.28,1716.38,2059.66,Green Waste Collection,Vehicle Repairs And Maintenance,60904
http://statistics.data.gov.uk/id/local-authority/12UE,Huntingdonshire District Council,200236,DENNIS EAGLE LTD DENNIS EAGLE LTD,53633,01/09/2021,DE11433094,OPS DIPSTICK,30/09/2021,69.48,347.39,416.87,Green Waste Collection,Vehicle Repairs And Maintenance,60904
http://statistics.data.gov.uk/id/local-authority/12UE,Huntingdonshire District Council,200236,DENNIS EAGLE LTD DENNIS EAGLE LTD,51779,27/07/2021,DE11424521,OPS BRAKE PADS,19/08/2021,378.74,1893.69,2272.43,Green Waste Collection,Vehicle Repairs And Maintenance,60904
http://statistics.data.gov.uk/id/local-authority/12UE,Huntingdonshire District Council,200236,DENNIS EAGLE LTD DENNIS EAGLE LTD,50635,29/06/2021,DE11417528,OPS SELECTOR UNIT,22/07/2021,125.5,627.49,752.99,Green Waste Collection,Vehicle Repairs And Maintenance,60904
http://statistics.data.gov.uk/id/local-authority/12UE,Huntingdonshire District Council,200236,DENNIS EAGLE LTD DENNIS EAGLE LTD,51766,29/07/2021,DE11425276,OPS SHOCK ABSORBER,26/08/2021,121.7,608.49,730.19,Domestic Waste Collection,Vehicle Repairs And Maintenance,60904
http://statistics.data.gov.uk/id/local-authority/12UE,Huntingdonshire District Council,200236,DENNIS EAGLE LTD DENNIS EAGLE LTD,50845,05/07/2021,DE11418993,ops tachograph,29/07/2021,155.17,775.86,931.03,Recycling Collections,Vehicle Repairs And Maintenance,60904
http://statistics.data.gov.uk/id/local-authority/12UE,Huntingdonshire District Council,200236,DENNIS EAGLE LTD DENNIS EAGLE LTD,53263,01/09/2021,DE11433093,OPS VEHICLE PARTS,23/09/2021,57.26,286.32,343.58,Domestic Waste Collection,Vehicle Repairs And Maintenance,60904
http://statistics.data.gov.uk/id/local-authority/12UE,Huntingdonshire District Council,200236,DENNIS EAGLE LTD DENNIS EAGLE LTD,51276,14/07/2021,414684,ops vehickle build,05/08/2021,36186,180930,217116,Vehicles & Plant,Vehicles Plant Furniture & Equipment Cost,11300
http://statistics.data.gov.uk/id/local-authority/12UE,Huntingdonshire District Council,200236,DENNIS EAGLE LTD DENNIS EAGLE LTD,51277,14/07/2021,414683,ops ,05/08/2021,36186,180930,217116,Vehicles & Plant,Vehicles Plant Furniture & Equipment Cost,11300
http://statistics.data.gov.uk/id/local-authority/12UE,Huntingdonshire District Council,200236,DENNIS EAGLE LTD DENNIS EAGLE LTD,51353,26/07/2021,415625,pos vehicles,19/08/2021,36186,180930,217116,Vehicles & Plant,Vehicles Plant Furniture & Equipment Cost,11300
http://statistics.data.gov.uk/id/local-authority/12UE,Huntingdonshire District Council,200236,DENNIS EAGLE LTD DENNIS EAGLE LTD,51354,26/07/2021,415627,ops vehicle,19/08/2021,36186,180930,217116,Vehicles & Plant,Vehicles Plant Furniture & Equipment Cost,11300
http://statistics.data.gov.uk/id/local-authority/12UE,Huntingdonshire District Council,201313,DENNIS EASTON FUNERAL SERVICE,52051,02/08/2021,60288555/522642,REDACTED,12/08/2021,0,905,905,Burials Under Health Act,Cremation And Burial Costs,62600
http://statistics.data.gov.uk/id/local-authority/12UE,Huntingdonshire District Council,200240,DIRECT PLASTICS LTD DIRECT PLASTICS LTD,50517,08/06/2021,252065,PAXTON PITS CLEAR SHEET,08/07/2021,247.82,1239.09,1486.91,Paxton Pits,Materials,61709
http://statistics.data.gov.uk/id/local-authority/12UE,Huntingdonshire District Council,200242,DOBSON UK LLP DOBSON UK LLP,50476,30/06/2021,7819,ops weed spray,22/07/2021,730,3650,4380,Street Cleansing,Grounds Maintenance,60503
http://statistics.data.gov.uk/id/local-authority/12UE,Huntingdonshire District Council,200242,DOBSON UK LLP DOBSON UK LLP,50674,24/06/2021,7812,OPS WEED SPRAY,22/07/2021,730,3650,4380,Street Cleansing,Grounds Maintenance,60503
http://statistics.data.gov.uk/id/local-authority/12UE,Huntingdonshire District Council,202680,REDACTED,53068,23/08/2021,FF036/2122,WILDLIFE WALKS,09/09/2021,0,1975,1975,Welcome Back Fund,Consultancy Fees,62400
http://statistics.data.gov.uk/id/local-authority/12UE,Huntingdonshire District Council,200363,Drax Energy Solutions Limited Drax Energy Solutions Limited,52952,03/09/2021,IN1105434017,OLH ELEC FEES,09/09/2021,423.4,2117.02,2540.42,OLH - Site & Centre Management,Electricity,60303
http://statistics.data.gov.uk/id/local-authority/12UE,Huntingdonshire District Council,200363,Drax Energy Solutions Limited Drax Energy Solutions Limited,51868,04/08/2021,IN1105366621,OLH JULY 21,12/08/2021,375.48,1877.39,2252.87,OLH - Site & Centre Management,Electricity,60303
http://statistics.data.gov.uk/id/local-authority/12UE,Huntingdonshire District Council,200363,Drax Energy Solutions Limited Drax Energy Solutions Limited,50642,05/07/2021,IN1105296228,OLH JUNE 2021,15/07/2021,309.97,1549.82,1859.79,OLH - Site & Centre Management,Electricity,60303
http://statistics.data.gov.uk/id/local-authority/12UE,Huntingdonshire District Council,200363,Drax Energy Solutions Limited Drax Energy Solutions Limited,50644,05/07/2021,IN1105296230,OLSI JUNE 21,15/07/2021,1441.13,7205.63,8646.76,OLSI - Site & Centre Management,Electricity,60303
http://statistics.data.gov.uk/id/local-authority/12UE,Huntingdonshire District Council,200363,Drax Energy Solutions Limited Drax Energy Solutions Limited,51870,04/08/2021,IN1105366623,OLSI JULY 21,12/08/2021,1206.4,6032.02,7238.42,OLSI - Site & Centre Management,Electricity,60303
http://statistics.data.gov.uk/id/local-authority/12UE,Huntingdonshire District Council,200363,Drax Energy Solutions Limited Drax Energy Solutions Limited,52949,03/09/2021,IN1105434019,OLSI ELEC FEES,09/09/2021,970.35,4851.72,5822.07,OLSI - Site & Centre Management,Electricity,60303
http://statistics.data.gov.uk/id/local-authority/12UE,Huntingdonshire District Council,200363,Drax Energy Solutions Limited Drax Energy Solutions Limited,51872,04/08/2021,1001282031,OLSI JULY 21,12/08/2021,-134.28,-671.38,-805.66,OLSI - Site & Centre Management,Electricity,60303
http://statistics.data.gov.uk/id/local-authority/12UE,Huntingdonshire District Council,200363,Drax Energy Solutions Limited Drax Energy Solutions Limited,51871,04/08/2021,CN10012820,OLSI JULY 21,12/08/2021,-938.96,-4694.78,-5633.74,OLSI - Site & Centre Management,Electricity,60303
http://statistics.data.gov.uk/id/local-authority/12UE,Huntingdonshire District Council,200363,Drax Energy Solutions Limited Drax Energy Solutions Limited,52953,03/09/2021,IN1105434018,ST IVES OUTDOOR ELEC FEES,09/09/2021,326.12,1630.57,1956.69,OLSIO - Site & Centre Management,Electricity,60303
http://statistics.data.gov.uk/id/local-authority/12UE,Huntingdonshire District Council,200363,Drax Energy Solutions Limited Drax Energy Solutions Limited,50643,05/07/2021,IN1105296229,OLSI OUTDOOR JUNE 2021,15/07/2021,274.21,1371.07,1645.28,OLSIO - Site & Centre Management,Electricity,60303
http://statistics.data.gov.uk/id/local-authority/12UE,Huntingdonshire District Council,200363,Drax Energy Solutions Limited Drax Energy Solutions Limited,51869,04/08/2021,IN110536622,OL COMP JUL 21,12/08/2021,247.99,1239.94,1487.93,OLSIO - Site & Centre Management,Electricity,60303
http://statistics.data.gov.uk/id/local-authority/12UE,Huntingdonshire District Council,200363,Drax Energy Solutions Limited Drax Energy Solutions Limited,52951,03/09/2021,IN1105434016,OLSN ELEC FEES,09/09/2021,1214.94,6074.72,7289.66,OLSN - Swimming,Electricity,60303
http://statistics.data.gov.uk/id/local-authority/12UE,Huntingdonshire District Council,200363,Drax Energy Solutions Limited Drax Energy Solutions Limited,51867,04/08/2021,IN1105366620,OLSN JULY 21,12/08/2021,1176.54,5882.69,7059.23,OLSN - Swimming,Electricity,60303
http://statistics.data.gov.uk/id/local-authority/12UE,Huntingdonshire District Council,200363,Drax Energy Solutions Limited Drax Energy Solutions Limited,50645,05/07/2021,IN1105296227,OLSN JUNE 21,15/07/2021,1072.51,5362.53,6435.04,OLSN - Swimming,Electricity,60303
http://statistics.data.gov.uk/id/local-authority/12UE,Huntingdonshire District Council,200363,Drax Energy Solutions Limited Drax Energy Solutions Limited,51865,04/08/2021,IN110536619,OLSTN MAY 21,12/08/2021,1064.7,5323.48,6388.18,OLSN - Swimming,Electricity,60303
http://statistics.data.gov.uk/id/local-authority/12UE,Huntingdonshire District Council,200363,Drax Energy Solutions Limited Drax Energy Solutions Limited,51866,04/08/2021,IN110536618,OLST APR,12/08/2021,248.5,1242.47,1490.97,OLSN - Swimming,Electricity,60303
http://statistics.data.gov.uk/id/local-authority/12UE,Huntingdonshire District Council,200363,Drax Energy Solutions Limited Drax Energy Solutions Limited,53031,03/09/2021,IN1105422077,OPS ENERGY 0108-310821,09/09/2021,459.51,2297.55,2757.06,Eastfield House,Electricity,60303
http://statistics.data.gov.uk/id/local-authority/12UE,Huntingdonshire District Council,200363,Drax Energy Solutions Limited Drax Energy Solutions Limited,50864,05/07/2021,IN1105296225,EASTFIELD HOUSE,15/07/2021,409.62,2048.09,2457.71,Eastfield House,Electricity,60303
http://statistics.data.gov.uk/id/local-authority/12UE,Huntingdonshire District Council,200363,Drax Energy Solutions Limited Drax Energy Solutions Limited,51991,04/08/2021,IN1105366616,ops electricity july,12/08/2021,405.26,2026.29,2431.55,Eastfield House,Electricity,60303
http://statistics.data.gov.uk/id/local-authority/12UE,Huntingdonshire District Council,200363,Drax Energy Solutions Limited Drax Energy Solutions Limited,51996,04/08/2021,IN1105366617,ops electricity july,12/08/2021,1692.03,8460.12,10152.15,Pathfinder House,Electricity,60303
http://statistics.data.gov.uk/id/local-authority/12UE,Huntingdonshire District Council,200363,Drax Energy Solutions Limited Drax Energy Solutions Limited,50888,05/07/2021,IN1105296226,PFH,15/07/2021,1662.13,8310.64,9972.77,Pathfinder House,Electricity,60303
http://statistics.data.gov.uk/id/local-authority/12UE,Huntingdonshire District Council,200363,Drax Energy Solutions Limited Drax Energy Solutions Limited,53032,03/09/2021,IN1105422078,PFH ENERGY 0108-310821,09/09/2021,1562.05,7810.22,9372.27,Pathfinder House,Electricity,60303
http://statistics.data.gov.uk/id/local-authority/12UE,Huntingdonshire District Council,200363,Drax Energy Solutions Limited Drax Energy Solutions Limited,51870,04/08/2021,IN1105366623,OLSI JULY 21,12/08/2021,0.02,0,0.02,Finance,Over/Under VAT Rounding,68350
http://statistics.data.gov.uk/id/local-authority/12UE,Huntingdonshire District Council,200363,Drax Energy Solutions Limited Drax Energy Solutions Limited,51867,04/08/2021,IN1105366620,OLSN JULY 21,12/08/2021,-0.02,0,-0.02,Finance,Over/Under VAT Rounding,68350
http://statistics.data.gov.uk/id/local-authority/12UE,Huntingdonshire District Council,200363,Drax Energy Solutions Limited Drax Energy Solutions Limited,50864,05/07/2021,IN1105296225,EASTFIELD HOUSE,15/07/2021,-0.01,0,-0.01,Finance,Over/Under VAT Rounding,68350
http://statistics.data.gov.uk/id/local-authority/12UE,Huntingdonshire District Council,200363,Drax Energy Solutions Limited Drax Energy Solutions Limited,51868,04/08/2021,IN1105366621,OLH JULY 21,12/08/2021,-0.02,0,-0.02,Finance,Over/Under VAT Rounding,68350
http://statistics.data.gov.uk/id/local-authority/12UE,Huntingdonshire District Council,200363,Drax Energy Solutions Limited Drax Energy Solutions Limited,51869,04/08/2021,IN110536622,OL COMP JUL 21,12/08/2021,-0.04,0,-0.04,Finance,Over/Under VAT Rounding,68350
http://statistics.data.gov.uk/id/local-authority/12UE,Huntingdonshire District Council,200363,Drax Energy Solutions Limited Drax Energy Solutions Limited,51872,04/08/2021,1001282031,OLSI JULY 21,12/08/2021,0,0,0,Finance,Over/Under VAT Rounding,68350
http://statistics.data.gov.uk/id/local-authority/12UE,Huntingdonshire District Council,200363,Drax Energy Solutions Limited Drax Energy Solutions Limited,51871,04/08/2021,CN10012820,OLSI JULY 21,12/08/2021,-0.01,-0.01,-0.02,Finance,Over/Under VAT Rounding,68350
http://statistics.data.gov.uk/id/local-authority/12UE,Huntingdonshire District Council,200250,DTS SOLUTIONS (UK) LTD DTS SOLUTIONS (UK) LTD,50832,05/07/2021,S007469,ops vehicles,29/07/2021,57.8,289,346.8,Bin Deliveries,Vehicle Maintenance - External,60921
http://statistics.data.gov.uk/id/local-authority/12UE,Huntingdonshire District Council,200250,DTS SOLUTIONS (UK) LTD DTS SOLUTIONS (UK) LTD,52383,25/07/2021,S007588,OPS VEHICLE MAINT,19/08/2021,68.8,344,412.8,Recycling Collections,Vehicle Maintenance - External,60921
http://statistics.data.gov.uk/id/local-authority/12UE,Huntingdonshire District Council,200250,DTS SOLUTIONS (UK) LTD DTS SOLUTIONS (UK) LTD,52383,25/07/2021,S007588,OPS VEHICLE MAINT,19/08/2021,68.8,344,412.8,Recycling Collections,Vehicle Maintenance - External,60921
http://statistics.data.gov.uk/id/local-authority/12UE,Huntingdonshire District Council,200250,DTS SOLUTIONS (UK) LTD DTS SOLUTIONS (UK) LTD,52383,25/07/2021,S007588,OPS VEHICLE MAINT,19/08/2021,68.8,344,412.8,Domestic Waste Collection,Vehicle Maintenance - External,60921
http://statistics.data.gov.uk/id/local-authority/12UE,Huntingdonshire District Council,200250,DTS SOLUTIONS (UK) LTD DTS SOLUTIONS (UK) LTD,52383,25/07/2021,S007588,OPS VEHICLE MAINT,19/08/2021,68.8,344,412.8,Domestic Waste Collection,Vehicle Maintenance - External,60921
http://statistics.data.gov.uk/id/local-authority/12UE,Huntingdonshire District Council,201394,DWF LLP,50173,04/06/2021,157-0182758,vat only professional fees,01/07/2021,0,670.4,670.4,VAT,VAT Input Tax,11727
http://statistics.data.gov.uk/id/local-authority/12UE,Huntingdonshire District Council,201394,DWF LLP,50829,29/06/2021,157-0189136,INSURANCE 25/08/2018,22/07/2021,0,334.4,334.4,VAT,VAT Input Tax,11727
http://statistics.data.gov.uk/id/local-authority/12UE,Huntingdonshire District Council,201394,DWF LLP,53428,27/08/2021,157-0206310,professional fees 13th August 2021,23/09/2021,0,298.8,298.8,VAT,VAT Input Tax,11727
http://statistics.data.gov.uk/id/local-authority/12UE,Huntingdonshire District Council,201218,Earith Parish Council,53569,24/09/2021,PARISH PRECEPT SEP 26,Parish Precept - September 2021,24/09/2021,0,30000,30000,P C Precept Earith,Precepts,66301
http://statistics.data.gov.uk/id/local-authority/12UE,Huntingdonshire District Council,200255,EAST OF ENGLAND LGA EAST OF ENGLAND LGA,52167,22/08/2019,1001166,REDACTED,19/08/2021,70.5,352.5,423,HDC Ventures,Consultancy Fees,62400
http://statistics.data.gov.uk/id/local-authority/12UE,Huntingdonshire District Council,202236,EASTFIELD GUESTHOUSE LTD,52764,25/08/2021,HUN106,EF GUEST HOUSE 160821-220821,02/09/2021,12,240,252,Homelessness,B&B Accommodation,64401
http://statistics.data.gov.uk/id/local-authority/12UE,Huntingdonshire District Council,202236,EASTFIELD GUESTHOUSE LTD,52764,25/08/2021,HUN106,EF GUEST HOUSE 160821-220821,02/09/2021,21,420,441,Homelessness,B&B Accommodation,64401
http://statistics.data.gov.uk/id/local-authority/12UE,Huntingdonshire District Council,202236,EASTFIELD GUESTHOUSE LTD,52764,25/08/2021,HUN106,EF GUEST HOUSE 160821-220821,02/09/2021,18,360,378,Homelessness,B&B Accommodation,64401
http://statistics.data.gov.uk/id/local-authority/12UE,Huntingdonshire District Council,202236,EASTFIELD GUESTHOUSE LTD,53056,02/09/2021,HUN0108,EFGH NAGS HEAD 2308-290821,09/09/2021,42,840,882,Homelessness,B&B Accommodation,64401
http://statistics.data.gov.uk/id/local-authority/12UE,Huntingdonshire District Council,202236,EASTFIELD GUESTHOUSE LTD,53094,07/09/2021,HUN109,EFGH NAGS HEAD 3008-050921,09/09/2021,21,420,441,Homelessness,B&B Accommodation,64401
